Body Name,Body,Service Label,Service Code,Service Division Label,Service Division Code,Expenditure Category,Expenditure Code,CIPFA Detailed Expenditure Type,CIPFA Detailed Expenditure Code,Date,Transaction Number,CC 43 TBM Section,CCN 43 TBM Section,Net Amount,Capital and Revenue,Creditor Name
Brighton & Hove City Council,http://statistics.data.gov.uk/id/local-authority/00ML,Cultural and Related Serv,BVACUL,Culture and Heritage,CHG,Supplies and Services,E,Miscellaneous Expenses,EM,14/03/2018,PAY01044495,RPMU,Royal Pavilion and Museums,350,Revenue,2UpFront Design Limited
Brighton & Hove City Council,http://statistics.data.gov.uk/id/local-authority/00ML,Cultural and Related Serv,BVACUL,Culture and Heritage,CHG,Supplies and Services,E,Miscellaneous Expenses,EM,21/03/2018,PAY01046440,VENU,Venues,350,Revenue,2UpFront Design Limited
Brighton & Hove City Council,http://statistics.data.gov.uk/id/local-authority/00ML,Public Health,BVAPHE,Public Health,PHE,Supplies and Services,E,Miscellaneous Expenses,EM,23/03/2018,PAY01048174,PHCM,PH Commissioning,300,Revenue,2W Productions Ltd t/a John White Productions
Brighton & Hove City Council,http://statistics.data.gov.uk/id/local-authority/00ML,Housing Revenue Account,BVAHOU,Hsing Management - HRA,HGM,Supplies and Services,E,Services,EF,23/03/2018,PAY01048113,HPAI,Property & Investment,4000,Revenue,31ten Consulting Ltd
Brighton & Hove City Council,http://statistics.data.gov.uk/id/local-authority/00ML,Cultural and Related Serv,BVACUL,Culture and Heritage,CHG,Supplies and Services,E,Miscellaneous Expenses,EM,09/03/2018,PAY01044273,SPLE,Sport and Leisure,500,Revenue,5.30 Events Ltd
Brighton & Hove City Council,http://statistics.data.gov.uk/id/local-authority/00ML,Cultural and Related Serv,BVACUL,Open Spaces,PEN,Third Party Payments,F,Private Contractors,FJ,07/03/2018,PAY01042633,CIPK,City Parks,450,Revenue,6-10 Traffic Management Ltd
Brighton & Hove City Council,http://statistics.data.gov.uk/id/local-authority/00ML,Highways and Transportation,BVAHRT,Traffic Mgmnt and Road Safety,TMR,Supplies and Services,E,Miscellaneous Expenses,EM,07/03/2018,PAY01042633,HIGH,Traffic Management,3439.6,Revenue,6-10 Traffic Management Ltd
Brighton & Hove City Council,http://statistics.data.gov.uk/id/local-authority/00ML,Children`s & Education Serv,BVAEDU,Child Srvcs - Fostering,FLF,Supplies and Services,E,Services,EF,07/03/2018,PAY01042868,CHIC,Fostering and Adoption,1799.8,Revenue,A G Family Support Ltd.
Brighton & Hove City Council,http://statistics.data.gov.uk/id/local-authority/00ML,Children`s & Education Serv,BVAEDU,Child Srvcs - Fostering,FLF,Supplies and Services,E,Services,EF,23/03/2018,PAY01048058,CHIC,Fostering and Adoption,435,Revenue,A G Family Support Ltd.
Brighton & Hove City Council,http://statistics.data.gov.uk/id/local-authority/00ML,Environment & Regulatory Serv,BVAERS,Agricultural and Fisheries,AGF,Third Party Payments,F,Private Contractors,FJ,09/03/2018,PAY01043254,PROP,Property and Design,480,Revenue,A J Taylor Electrical Contractors Ltd
Brighton & Hove City Council,http://statistics.data.gov.uk/id/local-authority/00ML,Non I&E,BVANON,CAP Education Services,4ED,New Construction n Conversion,PB,New Construction n Conversion,PBL5,09/03/2018,PAY01043254,OEDS,Other Education Support,2723.88,Capital,A J Taylor Electrical Contractors Ltd
Brighton & Hove City Council,http://statistics.data.gov.uk/id/local-authority/00ML,Non I&E,BVANON,CAP Education Services,4ED,New Construction n Conversion,PB,New Construction n Conversion,PBL5,28/03/2018,PAY01048380,OEDS,Other Education Support,4037.26,Capital,A J Taylor Electrical Contractors Ltd
Brighton & Hove City Council,http://statistics.data.gov.uk/id/local-authority/00ML,Planning and Development,BVAPLA,Economic Development,ECD,Supplies and Services,E,Grants n Subscriptions,EK,16/03/2018,PAY01046270,CMNY,Communities and Equalities,1000,Revenue,A Network of International Women
Brighton & Hove City Council,http://statistics.data.gov.uk/id/local-authority/00ML,Adult Social Care,BVASOC,ASC Learning Disabilities,ALD,Third Party Payments,F,Other Establishments,FH,07/03/2018,PAY01042386,LDIS,Adults LD Community Care,2600.61,Revenue,A TAD Ltd t/a Carewatch (Brighton & Hove)
Brighton & Hove City Council,http://statistics.data.gov.uk/id/local-authority/00ML,Adult Social Care,BVASOC,ASC Memory Cognition Support,MEM,Third Party Payments,F,Other Establishments,FH,07/03/2018,PAY01042386,COGN,Memory Cognition Support,2771.49,Revenue,A TAD Ltd t/a Carewatch (Brighton & Hove)
Brighton & Hove City Council,http://statistics.data.gov.uk/id/local-authority/00ML,Adult Social Care,BVASOC,ASC Mental Health Support,MHP,Third Party Payments,F,Other Establishments,FH,07/03/2018,PAY01042386,MENH,Mental Health Support,6442.3,Revenue,A TAD Ltd t/a Carewatch (Brighton & Hove)
Brighton & Hove City Council,http://statistics.data.gov.uk/id/local-authority/00ML,Adult Social Care,BVASOC,ASC Physical Support,PHY,Third Party Payments,F,Other Establishments,FH,07/03/2018,PAY01042386,PHYS,Physical Support,40126.16,Revenue,A TAD Ltd t/a Carewatch (Brighton & Hove)
Brighton & Hove City Council,http://statistics.data.gov.uk/id/local-authority/00ML,Central Support and Overheads,BVACEN,Support Services (SSC),PPT,Premises Related,C,Repair Maint n Alterations,CA,02/03/2018,PAY01040878,SCOR,School Organisation,4314.2,Revenue,A2B Office Technology Ltd
Brighton & Hove City Council,http://statistics.data.gov.uk/id/local-authority/00ML,Central Support and Overheads,BVACEN,Support Services (SSC),PPT,Supplies and Services,E,Equip't Furniture n Materials,EA,02/03/2018,PAY01040878,SCOR,School Organisation,5578.5,Revenue,A2B Office Technology Ltd
Brighton & Hove City Council,http://statistics.data.gov.uk/id/local-authority/00ML,Adult Social Care,BVASOC,Social Care Activities,ACM,Supplies and Services,E,Services,EF,16/03/2018,PAY01046085,ASIT,Assessment and SIT,2786,Revenue,AA Noah Consulting Limited
Brighton & Hove City Council,http://statistics.data.gov.uk/id/local-authority/00ML,Adult Social Care,BVASOC,Social Care Activities,ACM,Supplies and Services,E,Services,EF,28/03/2018,PAY01048987,ASIT,Assessment and SIT,796,Revenue,AA Noah Consulting Limited
Brighton & Hove City Council,http://statistics.data.gov.uk/id/local-authority/00ML,Adult Social Care,BVASOC,ASC Learning Disabilities,ALD,Customer n Client Receipts,M,Fees n Charges,MB,09/03/2018,PAY01043544,LDIS,Adults LD Community Care,-323,Revenue,Abbey Care Group Ltd-Saxon Court
Brighton & Hove City Council,http://statistics.data.gov.uk/id/local-authority/00ML,Adult Social Care,BVASOC,ASC Learning Disabilities,ALD,Third Party Payments,F,Other Establishments,FH,09/03/2018,PAY01043544,LDIS,Adults LD Community Care,6296.6,Revenue,Abbey Care Group Ltd-Saxon Court
Brighton & Hove City Council,http://statistics.data.gov.uk/id/local-authority/00ML,Adult Social Care,BVASOC,ASC Memory Cognition Support,MEM,Customer n Client Receipts,M,Fees n Charges,MB,09/03/2018,PAY01044228,COGN,Memory Cognition Support,-947.08,Revenue,Abbey Retirement Home
Brighton & Hove City Council,http://statistics.data.gov.uk/id/local-authority/00ML,Adult Social Care,BVASOC,ASC Memory Cognition Support,MEM,Third Party Payments,F,Other Establishments,FH,09/03/2018,PAY01044228,COGN,Memory Cognition Support,2180,Revenue,Abbey Retirement Home
Brighton & Hove City Council,http://statistics.data.gov.uk/id/local-authority/00ML,Environment & Regulatory Serv,BVAERS,Environmental Health,EVH,Indirect Employees,B,Training,BM,14/03/2018,PAY01044476,PUPO,Public Protection,1875,Revenue,ABC Food Law Ltd
Brighton & Hove City Council,http://statistics.data.gov.uk/id/local-authority/00ML,Highways and Transportation,BVAHRT,Transport Plan Policy Strategy,TPP,Supplies and Services,E,Miscellaneous Expenses,EM,09/03/2018,PAY01043288,TPRS,Transport Projects and Eng,275,Revenue,ABC Magazine Sussex
Brighton & Hove City Council,http://statistics.data.gov.uk/id/local-authority/00ML,Housing Revenue Account,BVAHOU,Hsing Management - HRA,HGM,Supplies and Services,E,Miscellaneous Expenses,EM,07/03/2018,PAY01042715,HTEN,Tenancy Services,395,Revenue,ABC Removals
Brighton & Hove City Council,http://statistics.data.gov.uk/id/local-authority/00ML,Adult Social Care,BVASOC,ASC Learning Disabilities,ALD,Customer n Client Receipts,M,Fees n Charges,MB,09/03/2018,PAY01043707,LDIS,Adults LD Community Care,-402.6,Revenue,Abi House
Brighton & Hove City Council,http://statistics.data.gov.uk/id/local-authority/00ML,Adult Social Care,BVASOC,ASC Learning Disabilities,ALD,Third Party Payments,F,Other Establishments,FH,09/03/2018,PAY01043707,LDIS,Adults LD Community Care,5220.2,Revenue,Abi House
Brighton & Hove City Council,http://statistics.data.gov.uk/id/local-authority/00ML,Non I&E,BVANON,Cap - Housing Services - HRA,4HR,New Construction n Conversion,PB,New Construction n Conversion,PBL5,14/03/2018,PAY01044710,HPAI,Property & Investment,3095,Capital,ABIR Architects Ltd
Brighton & Hove City Council,http://statistics.data.gov.uk/id/local-authority/00ML,Housing Revenue Account,BVAHOU,Hsing Management - HRA,HGM,Supplies and Services,E,Equip't Furniture n Materials,EA,07/03/2018,PAY01042844,HPAI,Property & Investment,2096.51,Revenue,Abmec Ltd T/A Abbamechatronics
Brighton & Hove City Council,http://statistics.data.gov.uk/id/local-authority/00ML,Housing Revenue Account,BVAHOU,Hsing Management - HRA,HGM,Supplies and Services,E,Equip't Furniture n Materials,EA,09/03/2018,PAY01044085,HPAI,Property & Investment,2327.38,Revenue,Abmec Ltd T/A Abbamechatronics
Brighton & Hove City Council,http://statistics.data.gov.uk/id/local-authority/00ML,Non I&E,BVANON,Cap - Housing Services - HRA,4HR,New Construction n Conversion,PB,New Construction n Conversion,PBL5,16/03/2018,PAY01046073,HPAI,Property & Investment,386.83,Capital,Abmec Ltd T/A Abbamechatronics
Brighton & Hove City Council,http://statistics.data.gov.uk/id/local-authority/00ML,Housing Revenue Account,BVAHOU,Hsing Management - HRA,HGM,Supplies and Services,E,Equip't Furniture n Materials,EA,29/03/2018,PAY01050570,HPAI,Property & Investment,1434.84,Revenue,Abmec Ltd T/A Abbamechatronics
Brighton & Hove City Council,http://statistics.data.gov.uk/id/local-authority/00ML,Children`s & Education Serv,BVAEDU,Management Services (DEC),MGT,Supplies and Services,E,Miscellaneous Expenses,EM,28/03/2018,PAY01048833,SOCK,Social Work,352.66,Revenue,Absolute Translations Ltd
Brighton & Hove City Council,http://statistics.data.gov.uk/id/local-authority/00ML,Non I&E,BVANON,CAP Housing Services GF,4HG,Capital Grants,PF,Capital Grants,PFL5,07/03/2018,PAY01042671,PSHG,Private Sector Housing,4490,Capital,Access Automation Ltd
Brighton & Hove City Council,http://statistics.data.gov.uk/id/local-authority/00ML,Non I&E,BVANON,CAP Housing Services GF,4HG,Capital Grants,PF,Capital Grants,PFL5,29/03/2018,PAY01050197,PSHG,Private Sector Housing,4864,Capital,Access Automation Ltd
Brighton & Hove City Council,http://statistics.data.gov.uk/id/local-authority/00ML,Highways and Transportation,BVAHRT,Parking Services,PRK,Supplies and Services,E,Services,EF,21/03/2018,PAY01046459,PARK,Parking Services,1400,Revenue,Access Independent Ltd
Brighton & Hove City Council,http://statistics.data.gov.uk/id/local-authority/00ML,Planning and Development,BVAPLA,Management Services (DEC),MGT,Supplies and Services,E,Services,EF,14/03/2018,PAY01045093,DEVP,Development Planning,3372.5,Revenue,Accon UK Limited
Brighton & Hove City Council,http://statistics.data.gov.uk/id/local-authority/00ML,Children`s & Education Serv,BVAEDU,Ed Ed Other LA Attrib Sch,ELA,Transport Related,D,Other Transport Costs,DG,28/03/2018,PAY01048495,SCOR,School Organisation,360,Revenue,Ace Travel Ltd
Brighton & Hove City Council,http://statistics.data.gov.uk/id/local-authority/00ML,Planning and Development,BVAPLA,Planning Policy,PLP,Supplies and Services,E,Services,EF,02/03/2018,PAY01042014,PPMP,Planning Policy Major Projects,5000,Revenue,ACK Tourism Ltd
Brighton & Hove City Council,http://statistics.data.gov.uk/id/local-authority/00ML,Adult Social Care,BVASOC,ASC Learning Disabilities,ALD,Customer n Client Receipts,M,Fees n Charges,MB,09/03/2018,PAY01043494,LDIS,Adults LD Community Care,-1611.9,Revenue,Acorn (Watford) Ltd
Brighton & Hove City Council,http://statistics.data.gov.uk/id/local-authority/00ML,Adult Social Care,BVASOC,ASC Learning Disabilities,ALD,Third Party Payments,F,Other Establishments,FH,09/03/2018,PAY01043494,LDIS,Adults LD Community Care,12403.95,Revenue,Acorn (Watford) Ltd
Brighton & Hove City Council,http://statistics.data.gov.uk/id/local-authority/00ML,Central Support and Overheads,BVACEN,Support Services (SSC),PPT,Premises Related,C,Cleaning n Domestic Supps,CH,23/03/2018,PAY01047731,PROP,Property and Design,826.98,Revenue,Acorn Environmental
Brighton & Hove City Council,http://statistics.data.gov.uk/id/local-authority/00ML,Children`s & Education Serv,BVAEDU,Child Srvcs - Residential Svcs,FLR,Third Party Payments,F,Other Establishments,FH,07/03/2018,PAY01042815,AVFM,Agency Placements\VFM,22200.08,Revenue,Acorn Homes Uk Ltd
Brighton & Hove City Council,http://statistics.data.gov.uk/id/local-authority/00ML,Children`s & Education Serv,BVAEDU,Child Srvcs - Residential Svcs,FLR,Third Party Payments,F,Other Establishments,FH,23/03/2018,PAY01047968,AVFM,Agency Placements\VFM,21478.66,Revenue,Acorn Homes Uk Ltd
Brighton & Hove City Council,http://statistics.data.gov.uk/id/local-authority/00ML,Non I&E,BVANON,Cap - Housing Services - HRA,4HR,New Construction n Conversion,PB,New Construction n Conversion,PBL5,28/03/2018,PAY01048680,HPAI,Property & Investment,350,Capital,Acoustic Associates Sussex Ltd
Brighton & Hove City Council,http://statistics.data.gov.uk/id/local-authority/00ML,Children`s & Education Serv,BVAEDU,Ed EY PVI,ENP,Supplies and Services,E,Grants n Subscriptions,EK,07/03/2018,PAY01042392,EYRS,Early Years,51133.64,Revenue,ACPH Ltd T/a Hopscotch 
Brighton & Hove City Council,http://statistics.data.gov.uk/id/local-authority/00ML,Children`s & Education Serv,BVAEDU,Ed EY PVI,ENP,Supplies and Services,E,Grants n Subscriptions,EK,09/03/2018,PAY01043513,EYRS,Early Years,6836.7,Revenue,ACPH Ltd T/a Hopscotch 
Brighton & Hove City Council,http://statistics.data.gov.uk/id/local-authority/00ML,Children`s & Education Serv,BVAEDU,Child Srvcs - Fostering,FLF,Third Party Payments,F,Other Establishments,FH,14/03/2018,PAY01044583,CHIC,Fostering and Adoption,343.34,Revenue,ACPH Ltd T/a Hopscotch 
Brighton & Hove City Council,http://statistics.data.gov.uk/id/local-authority/00ML,Children`s & Education Serv,BVAEDU,Ed EY PVI,ENP,Supplies and Services,E,Grants n Subscriptions,EK,14/03/2018,PAY01044583,EYRS,Early Years,648.72,Revenue,ACPH Ltd T/a Hopscotch 
Brighton & Hove City Council,http://statistics.data.gov.uk/id/local-authority/00ML,Adult Social Care,BVASOC,Social Care Activities,ACM,Supplies and Services,E,Services,EF,21/03/2018,PAY01046871,ASIT,Assessment and SIT,6549,Revenue,Action First iPeople Ltd
Brighton & Hove City Council,http://statistics.data.gov.uk/id/local-authority/00ML,Adult Social Care,BVASOC,Social Care Activities,ACM,Supplies and Services,E,Services,EF,28/03/2018,PAY01048942,ASIT,Assessment and SIT,4265,Revenue,Action First iPeople Ltd
Brighton & Hove City Council,http://statistics.data.gov.uk/id/local-authority/00ML,Adult Social Care,BVASOC,ASC Mental Health Support,MHP,Third Party Payments,F,Other Establishments,FH,21/03/2018,PAY01046988,MENH,Mental Health Support,2646,Revenue,Active Prospects
Brighton & Hove City Council,http://statistics.data.gov.uk/id/local-authority/00ML,Children`s & Education Serv,BVAEDU,Ed EY PVI,ENP,Supplies and Services,E,Grants n Subscriptions,EK,07/03/2018,PAY01042741,EYRS,Early Years,6136.2,Revenue,ActiveKids Nursery
Brighton & Hove City Council,http://statistics.data.gov.uk/id/local-authority/00ML,Children`s & Education Serv,BVAEDU,Ed EY PVI,ENP,Supplies and Services,E,Grants n Subscriptions,EK,09/03/2018,PAY01043939,EYRS,Early Years,2333.5,Revenue,ActiveKids Nursery
Brighton & Hove City Council,http://statistics.data.gov.uk/id/local-authority/00ML,Adult Social Care,BVASOC,ASC Memory Cognition Support,MEM,Third Party Payments,F,Other Establishments,FH,09/03/2018,PAY01043653,COGN,Memory Cognition Support,7379.64,Revenue,Adelaide Healthcare Ltd
Brighton & Hove City Council,http://statistics.data.gov.uk/id/local-authority/00ML,Adult Social Care,BVASOC,ASC Physical Support,PHY,Third Party Payments,F,Other Establishments,FH,09/03/2018,PAY01043653,PHYS,Physical Support,2332.8,Revenue,Adelaide Healthcare Ltd
Brighton & Hove City Council,http://statistics.data.gov.uk/id/local-authority/00ML,Adult Social Care,BVASOC,ASC Physical Support,PHY,Customer n Client Receipts,M,Fees n Charges,MB,07/03/2018,PAY01042384,PHYS,Physical Support,46.25,Revenue,Adelaide Nursing Home
Brighton & Hove City Council,http://statistics.data.gov.uk/id/local-authority/00ML,Adult Social Care,BVASOC,ASC Physical Support,PHY,Third Party Payments,F,Other Establishments,FH,07/03/2018,PAY01042384,PHYS,Physical Support,205.13,Revenue,Adelaide Nursing Home
Brighton & Hove City Council,http://statistics.data.gov.uk/id/local-authority/00ML,Adult Social Care,BVASOC,ASC Physical Support,PHY,Customer n Client Receipts,M,Fees n Charges,MB,09/03/2018,PAY01043495,PHYS,Physical Support,-3880.92,Revenue,Adelaide Nursing Home
Brighton & Hove City Council,http://statistics.data.gov.uk/id/local-authority/00ML,Adult Social Care,BVASOC,ASC Physical Support,PHY,Third Party Payments,F,Other Establishments,FH,09/03/2018,PAY01043495,PHYS,Physical Support,20963.19,Revenue,Adelaide Nursing Home
Brighton & Hove City Council,http://statistics.data.gov.uk/id/local-authority/00ML,Adult Social Care,BVASOC,ASC Physical Support,PHY,Customer n Client Receipts,M,Fees n Charges,MB,23/03/2018,PAY01047549,PHYS,Physical Support,1266.27,Revenue,Adelaide Nursing Home
Brighton & Hove City Council,http://statistics.data.gov.uk/id/local-authority/00ML,Adult Social Care,BVASOC,ASC Physical Support,PHY,Third Party Payments,F,Other Establishments,FH,23/03/2018,PAY01047549,PHYS,Physical Support,-4307.69,Revenue,Adelaide Nursing Home
Brighton & Hove City Council,http://statistics.data.gov.uk/id/local-authority/00ML,Planning and Development,BVAPLA,Management Services (DEC),MGT,Supplies and Services,E,Grants n Subscriptions,EK,21/03/2018,PAY01046349,ADEC,Assistant Director - EEC,1200,Revenue,ADEPT
Brighton & Hove City Council,http://statistics.data.gov.uk/id/local-authority/00ML,Cultural and Related Serv,BVACUL,Culture and Heritage,CHG,Supplies and Services,E,Miscellaneous Expenses,EM,14/03/2018,PAY01044642,RPMU,Royal Pavilion and Museums,4091.05,Revenue,Adrian Robins Interiors
Brighton & Hove City Council,http://statistics.data.gov.uk/id/local-authority/00ML,Cultural and Related Serv,BVACUL,Culture and Heritage,CHG,Supplies and Services,E,Services,EF,23/03/2018,PAY01047572,RPMU,Royal Pavilion and Museums,342,Revenue,ADT Fire & Security Plc
Brighton & Hove City Council,http://statistics.data.gov.uk/id/local-authority/00ML,Cultural and Related Serv,BVACUL,Culture and Heritage,CHG,Premises Related,C,Repair Maint n Alterations,CA,29/03/2018,PAY01049720,RPMU,Royal Pavilion and Museums,4864.4,Revenue,ADT Fire & Security Plc
Brighton & Hove City Council,http://statistics.data.gov.uk/id/local-authority/00ML,Cultural and Related Serv,BVACUL,Culture and Heritage,CHG,Customer n Client Receipts,M,Fees n Charges,MB,29/03/2018,PAY01049564,VENU,Venues,-15516.8,Revenue,AEG Presents Ltd
Brighton & Hove City Council,http://statistics.data.gov.uk/id/local-authority/00ML,Cultural and Related Serv,BVACUL,Culture and Heritage,CHG,Customer n Client Receipts,M,Sales,MA,29/03/2018,PAY01049564,VENU,Venues,113092.3,Revenue,AEG Presents Ltd
Brighton & Hove City Council,http://statistics.data.gov.uk/id/local-authority/00ML,Cultural and Related Serv,BVACUL,Culture and Heritage,CHG,Supplies and Services,E,Communications n Computing,EH,29/03/2018,PAY01049564,VENU,Venues,-29.25,Revenue,AEG Presents Ltd
Brighton & Hove City Council,http://statistics.data.gov.uk/id/local-authority/00ML,Cultural and Related Serv,BVACUL,Culture and Heritage,CHG,Supplies and Services,E,Equip't Furniture n Materials,EA,29/03/2018,PAY01049564,VENU,Venues,-1771,Revenue,AEG Presents Ltd
Brighton & Hove City Council,http://statistics.data.gov.uk/id/local-authority/00ML,Cultural and Related Serv,BVACUL,Culture and Heritage,CHG,Supplies and Services,E,Miscellaneous Expenses,EM,29/03/2018,PAY01049564,VENU,Venues,-5012.93,Revenue,AEG Presents Ltd
Brighton & Hove City Council,http://statistics.data.gov.uk/id/local-authority/00ML,Adult Social Care,BVASOC,ASC Learning Disabilities,ALD,Premises Related,C,Rents Payable,CC,21/03/2018,PAY01046468,LDIS,Adults LD Community Care,1241.07,Revenue,Affinity Sutton Homes Ltd
Brighton & Hove City Council,http://statistics.data.gov.uk/id/local-authority/00ML,Adult Social Care,BVASOC,ASC Learning Disabilities,ALD,Premises Related,C,Rents Payable,CC,21/03/2018,PAY01046468,RESP,Adults Respite Services,22629.99,Revenue,Affinity Sutton Homes Ltd
Brighton & Hove City Council,http://statistics.data.gov.uk/id/local-authority/00ML,Central Services to the Public,BVACEN,Local Tax Collection,LTC,Supplies and Services,E,Services,EF,07/03/2018,PAY01042810,REVS,Revenues and Benefits,636.4,Revenue,Agilisys Contact Services Ltd
Brighton & Hove City Council,http://statistics.data.gov.uk/id/local-authority/00ML,Adult Social Care,BVASOC,ASC Learning Disabilities,ALD,Third Party Payments,F,Other Establishments,FH,02/03/2018,PAY01040861,LDIS,Adults LD Community Care,603.71,Revenue,Agincare UK Ltd
Brighton & Hove City Council,http://statistics.data.gov.uk/id/local-authority/00ML,Adult Social Care,BVASOC,ASC Memory Cognition Support,MEM,Third Party Payments,F,Other Establishments,FH,02/03/2018,PAY01040861,COGN,Memory Cognition Support,3069.43,Revenue,Agincare UK Ltd
Brighton & Hove City Council,http://statistics.data.gov.uk/id/local-authority/00ML,Adult Social Care,BVASOC,ASC Mental Health Support,MHP,Third Party Payments,F,Other Establishments,FH,02/03/2018,PAY01040861,MENH,Mental Health Support,3287.9,Revenue,Agincare UK Ltd
Brighton & Hove City Council,http://statistics.data.gov.uk/id/local-authority/00ML,Adult Social Care,BVASOC,ASC Physical Support,PHY,Third Party Payments,F,Other Establishments,FH,02/03/2018,PAY01040861,PHYS,Physical Support,52957.33,Revenue,Agincare UK Ltd
Brighton & Hove City Council,http://statistics.data.gov.uk/id/local-authority/00ML,Adult Social Care,BVASOC,ASC Sensory Support,AHV,Third Party Payments,F,Other Establishments,FH,02/03/2018,PAY01040861,SORY,Sensory Support,363.75,Revenue,Agincare UK Ltd
Brighton & Hove City Council,http://statistics.data.gov.uk/id/local-authority/00ML,Adult Social Care,BVASOC,ASC Substance Misuse,ADM,Third Party Payments,F,Other Establishments,FH,02/03/2018,PAY01040861,SUBM,Substance Misuse Support,833.83,Revenue,Agincare UK Ltd
Brighton & Hove City Council,http://statistics.data.gov.uk/id/local-authority/00ML,Adult Social Care,BVASOC,ASC Learning Disabilities,ALD,Third Party Payments,F,Other Establishments,FH,09/03/2018,PAY01043358,LDIS,Adults LD Community Care,245.36,Revenue,Agincare UK Ltd
Brighton & Hove City Council,http://statistics.data.gov.uk/id/local-authority/00ML,Adult Social Care,BVASOC,ASC Memory Cognition Support,MEM,Third Party Payments,F,Other Establishments,FH,09/03/2018,PAY01043358,COGN,Memory Cognition Support,317.9,Revenue,Agincare UK Ltd
Brighton & Hove City Council,http://statistics.data.gov.uk/id/local-authority/00ML,Adult Social Care,BVASOC,ASC Physical Support,PHY,Third Party Payments,F,Other Establishments,FH,09/03/2018,PAY01043358,PHYS,Physical Support,418.42,Revenue,Agincare UK Ltd
Brighton & Hove City Council,http://statistics.data.gov.uk/id/local-authority/00ML,Adult Social Care,BVASOC,ASC Sensory Support,AHV,Third Party Payments,F,Other Establishments,FH,09/03/2018,PAY01043358,SORY,Sensory Support,184.1,Revenue,Agincare UK Ltd
Brighton & Hove City Council,http://statistics.data.gov.uk/id/local-authority/00ML,Adult Social Care,BVASOC,ASC Learning Disabilities,ALD,Third Party Payments,F,Other Establishments,FH,16/03/2018,PAY01045517,LDIS,Adults LD Community Care,184.1,Revenue,Agincare UK Ltd
Brighton & Hove City Council,http://statistics.data.gov.uk/id/local-authority/00ML,Adult Social Care,BVASOC,ASC Memory Cognition Support,MEM,Third Party Payments,F,Other Establishments,FH,16/03/2018,PAY01045517,COGN,Memory Cognition Support,927.71,Revenue,Agincare UK Ltd
Brighton & Hove City Council,http://statistics.data.gov.uk/id/local-authority/00ML,Adult Social Care,BVASOC,ASC Mental Health Support,MHP,Third Party Payments,F,Other Establishments,FH,16/03/2018,PAY01045517,MENH,Mental Health Support,1175.31,Revenue,Agincare UK Ltd
Brighton & Hove City Council,http://statistics.data.gov.uk/id/local-authority/00ML,Adult Social Care,BVASOC,ASC Physical Support,PHY,Third Party Payments,F,Other Establishments,FH,16/03/2018,PAY01045517,PHYS,Physical Support,15807.23,Revenue,Agincare UK Ltd
Brighton & Hove City Council,http://statistics.data.gov.uk/id/local-authority/00ML,Adult Social Care,BVASOC,ASC Sensory Support,AHV,Third Party Payments,F,Other Establishments,FH,16/03/2018,PAY01045517,SORY,Sensory Support,122.71,Revenue,Agincare UK Ltd
Brighton & Hove City Council,http://statistics.data.gov.uk/id/local-authority/00ML,Adult Social Care,BVASOC,ASC Substance Misuse,ADM,Third Party Payments,F,Other Establishments,FH,16/03/2018,PAY01045517,SUBM,Substance Misuse Support,269.36,Revenue,Agincare UK Ltd
Brighton & Hove City Council,http://statistics.data.gov.uk/id/local-authority/00ML,Adult Social Care,BVASOC,ASC Learning Disabilities,ALD,Third Party Payments,F,Other Establishments,FH,21/03/2018,PAY01046463,LDIS,Adults LD Community Care,368.2,Revenue,Agincare UK Ltd
Brighton & Hove City Council,http://statistics.data.gov.uk/id/local-authority/00ML,Adult Social Care,BVASOC,ASC Memory Cognition Support,MEM,Third Party Payments,F,Other Establishments,FH,21/03/2018,PAY01046463,COGN,Memory Cognition Support,1855.11,Revenue,Agincare UK Ltd
Brighton & Hove City Council,http://statistics.data.gov.uk/id/local-authority/00ML,Adult Social Care,BVASOC,ASC Mental Health Support,MHP,Third Party Payments,F,Other Establishments,FH,21/03/2018,PAY01046463,MENH,Mental Health Support,2271.24,Revenue,Agincare UK Ltd
Brighton & Hove City Council,http://statistics.data.gov.uk/id/local-authority/00ML,Adult Social Care,BVASOC,ASC Physical Support,PHY,Third Party Payments,F,Other Establishments,FH,21/03/2018,PAY01046463,PHYS,Physical Support,35343.68,Revenue,Agincare UK Ltd
Brighton & Hove City Council,http://statistics.data.gov.uk/id/local-authority/00ML,Adult Social Care,BVASOC,ASC Sensory Support,AHV,Third Party Payments,F,Other Establishments,FH,21/03/2018,PAY01046463,SORY,Sensory Support,569.09,Revenue,Agincare UK Ltd
Brighton & Hove City Council,http://statistics.data.gov.uk/id/local-authority/00ML,Adult Social Care,BVASOC,ASC Substance Misuse,ADM,Third Party Payments,F,Other Establishments,FH,21/03/2018,PAY01046463,SUBM,Substance Misuse Support,472.68,Revenue,Agincare UK Ltd
Brighton & Hove City Council,http://statistics.data.gov.uk/id/local-authority/00ML,Adult Social Care,BVASOC,ASC Learning Disabilities,ALD,Third Party Payments,F,Other Establishments,FH,23/03/2018,PAY01047406,LDIS,Adults LD Community Care,368.2,Revenue,Agincare UK Ltd
Brighton & Hove City Council,http://statistics.data.gov.uk/id/local-authority/00ML,Adult Social Care,BVASOC,ASC Memory Cognition Support,MEM,Third Party Payments,F,Other Establishments,FH,23/03/2018,PAY01047406,COGN,Memory Cognition Support,1883.19,Revenue,Agincare UK Ltd
Brighton & Hove City Council,http://statistics.data.gov.uk/id/local-authority/00ML,Adult Social Care,BVASOC,ASC Mental Health Support,MHP,Third Party Payments,F,Other Establishments,FH,23/03/2018,PAY01047406,MENH,Mental Health Support,2166.46,Revenue,Agincare UK Ltd
Brighton & Hove City Council,http://statistics.data.gov.uk/id/local-authority/00ML,Adult Social Care,BVASOC,ASC Physical Support,PHY,Third Party Payments,F,Other Establishments,FH,23/03/2018,PAY01047406,PHYS,Physical Support,31903.71,Revenue,Agincare UK Ltd
Brighton & Hove City Council,http://statistics.data.gov.uk/id/local-authority/00ML,Adult Social Care,BVASOC,ASC Sensory Support,AHV,Third Party Payments,F,Other Establishments,FH,23/03/2018,PAY01047406,SORY,Sensory Support,245.42,Revenue,Agincare UK Ltd
Brighton & Hove City Council,http://statistics.data.gov.uk/id/local-authority/00ML,Adult Social Care,BVASOC,ASC Substance Misuse,ADM,Third Party Payments,F,Other Establishments,FH,23/03/2018,PAY01047406,SUBM,Substance Misuse Support,520.92,Revenue,Agincare UK Ltd
Brighton & Hove City Council,http://statistics.data.gov.uk/id/local-authority/00ML,Adult Social Care,BVASOC,ASC Learning Disabilities,ALD,Third Party Payments,F,Other Establishments,FH,28/03/2018,PAY01048489,LDIS,Adults LD Community Care,184.1,Revenue,Agincare UK Ltd
Brighton & Hove City Council,http://statistics.data.gov.uk/id/local-authority/00ML,Adult Social Care,BVASOC,ASC Memory Cognition Support,MEM,Third Party Payments,F,Other Establishments,FH,28/03/2018,PAY01048489,COGN,Memory Cognition Support,918.66,Revenue,Agincare UK Ltd
Brighton & Hove City Council,http://statistics.data.gov.uk/id/local-authority/00ML,Adult Social Care,BVASOC,ASC Mental Health Support,MHP,Third Party Payments,F,Other Establishments,FH,28/03/2018,PAY01048489,MENH,Mental Health Support,1246.61,Revenue,Agincare UK Ltd
Brighton & Hove City Council,http://statistics.data.gov.uk/id/local-authority/00ML,Adult Social Care,BVASOC,ASC Physical Support,PHY,Third Party Payments,F,Other Establishments,FH,28/03/2018,PAY01048489,PHYS,Physical Support,19774.23,Revenue,Agincare UK Ltd
Brighton & Hove City Council,http://statistics.data.gov.uk/id/local-authority/00ML,Adult Social Care,BVASOC,ASC Sensory Support,AHV,Third Party Payments,F,Other Establishments,FH,28/03/2018,PAY01048489,SORY,Sensory Support,109.56,Revenue,Agincare UK Ltd
Brighton & Hove City Council,http://statistics.data.gov.uk/id/local-authority/00ML,Adult Social Care,BVASOC,ASC Substance Misuse,ADM,Third Party Payments,F,Other Establishments,FH,28/03/2018,PAY01048489,SUBM,Substance Misuse Support,271.71,Revenue,Agincare UK Ltd
Brighton & Hove City Council,http://statistics.data.gov.uk/id/local-authority/00ML,Adult Social Care,BVASOC,ASC Physical Support,PHY,Third Party Payments,F,Other Establishments,FH,29/03/2018,PAY01049543,PHYS,Physical Support,1811.04,Revenue,Agincare UK Ltd
Brighton & Hove City Council,http://statistics.data.gov.uk/id/local-authority/00ML,Adult Social Care,BVASOC,ASC Sensory Support,AHV,Third Party Payments,F,Other Establishments,FH,29/03/2018,PAY01049543,SORY,Sensory Support,153.3,Revenue,Agincare UK Ltd
Brighton & Hove City Council,http://statistics.data.gov.uk/id/local-authority/00ML,Housing General Fund,BVAHOG,Homelessness,HML,Premises Related,C,Rents Payable,CC,14/03/2018,PAY01044957,TAAS,Temp Accom and Allocations,650,Revenue,AHJ Holdings Ltd
Brighton & Hove City Council,http://statistics.data.gov.uk/id/local-authority/00ML,Cultural and Related Serv,BVACUL,Culture and Heritage,CHG,Supplies and Services,E,Goods for Resale,EG,23/03/2018,PAY01047311,RPMU,Royal Pavilion and Museums,297.71,Revenue,Ahmad Tea Ltd
Brighton & Hove City Council,http://statistics.data.gov.uk/id/local-authority/00ML,Adult Social Care,BVASOC,ASC Learning Disabilities,ALD,Customer n Client Receipts,M,Fees n Charges,MB,09/03/2018,PAY01043361,LDIS,Adults LD Community Care,-3485.6,Revenue,Aitch Care Homes (London) Ltd
Brighton & Hove City Council,http://statistics.data.gov.uk/id/local-authority/00ML,Adult Social Care,BVASOC,ASC Learning Disabilities,ALD,Third Party Payments,F,Other Establishments,FH,09/03/2018,PAY01043361,LDIS,Adults LD Community Care,52212.4,Revenue,Aitch Care Homes (London) Ltd
Brighton & Hove City Council,http://statistics.data.gov.uk/id/local-authority/00ML,Adult Social Care,BVASOC,ASC Physical Support,PHY,Customer n Client Receipts,M,Fees n Charges,MB,09/03/2018,PAY01043997,PHYS,Physical Support,-611.56,Revenue,Akari Care Ltd t/a St Martha`s Care Centre
Brighton & Hove City Council,http://statistics.data.gov.uk/id/local-authority/00ML,Adult Social Care,BVASOC,ASC Physical Support,PHY,Third Party Payments,F,Other Establishments,FH,09/03/2018,PAY01043997,PHYS,Physical Support,1986.32,Revenue,Akari Care Ltd t/a St Martha`s Care Centre
Brighton & Hove City Council,http://statistics.data.gov.uk/id/local-authority/00ML,Non I&E,BVANON,CAP Sport and Recreation,4RC,New Construction n Conversion,PB,New Construction n Conversion,PBL5,07/03/2018,PAY01042486,SPLE,Sport and Leisure,10230,Capital,Alan Keef Ltd
Brighton & Hove City Council,http://statistics.data.gov.uk/id/local-authority/00ML,Cultural and Related Serv,BVACUL,Open Spaces,PEN,Third Party Payments,F,Private Contractors,FJ,16/03/2018,PAY01045481,CIPK,City Parks,1845.46,Revenue,Albourne Irrigation Services Ltd
Brighton & Hove City Council,http://statistics.data.gov.uk/id/local-authority/00ML,Children`s & Education Serv,BVAEDU,Management Services (DEC),MGT,Supplies and Services,E,Services,EF,16/03/2018,PAY01045514,SOCK,Social Work,302.11,Revenue,Alere Toxicology PLC
Brighton & Hove City Council,http://statistics.data.gov.uk/id/local-authority/00ML,Children`s & Education Serv,BVAEDU,Management Services (DEC),MGT,Supplies and Services,E,Services,EF,28/03/2018,PAY01048480,SOCK,Social Work,475,Revenue,Alere Toxicology PLC
Brighton & Hove City Council,http://statistics.data.gov.uk/id/local-authority/00ML,Children`s & Education Serv,BVAEDU,Child Srvcs - Other Fam Supp,FFX,Transfer Payments,G,Other Transfer Payments,GD,21/03/2018,PAY01046951,FAMP,Families\Prevention,255,Revenue,Alice Mallorie Therapy Services
Brighton & Hove City Council,http://statistics.data.gov.uk/id/local-authority/00ML,Adult Social Care,BVASOC,ASC Memory Cognition Support,MEM,Third Party Payments,F,Other Establishments,FH,07/03/2018,PAY01042761,COGN,Memory Cognition Support,2060.48,Revenue,Alina Homecare Ltd
Brighton & Hove City Council,http://statistics.data.gov.uk/id/local-authority/00ML,Adult Social Care,BVASOC,ASC Physical Support,PHY,Third Party Payments,F,Other Establishments,FH,07/03/2018,PAY01042761,PHYS,Physical Support,21523.91,Revenue,Alina Homecare Ltd
Brighton & Hove City Council,http://statistics.data.gov.uk/id/local-authority/00ML,Adult Social Care,BVASOC,ASC Mental Health Support,MHP,Customer n Client Receipts,M,Fees n Charges,MB,09/03/2018,PAY01044095,MENH,Mental Health Support,-402.6,Revenue,Alliance Home Care Ltd
Brighton & Hove City Council,http://statistics.data.gov.uk/id/local-authority/00ML,Adult Social Care,BVASOC,ASC Mental Health Support,MHP,Third Party Payments,F,Other Establishments,FH,09/03/2018,PAY01044095,MENH,Mental Health Support,3920,Revenue,Alliance Home Care Ltd
Brighton & Hove City Council,http://statistics.data.gov.uk/id/local-authority/00ML,Adult Social Care,BVASOC,ASC Learning Disabilities,ALD,Customer n Client Receipts,M,Fees n Charges,MB,07/03/2018,PAY01042273,LDIS,Adults LD Community Care,17.98,Revenue,Allied Healthcare
Brighton & Hove City Council,http://statistics.data.gov.uk/id/local-authority/00ML,Adult Social Care,BVASOC,ASC Learning Disabilities,ALD,Third Party Payments,F,Other Establishments,FH,07/03/2018,PAY01042273,LDIS,Adults LD Community Care,267.35,Revenue,Allied Healthcare
Brighton & Hove City Council,http://statistics.data.gov.uk/id/local-authority/00ML,Adult Social Care,BVASOC,ASC Memory Cognition Support,MEM,Third Party Payments,F,Other Establishments,FH,07/03/2018,PAY01042273,COGN,Memory Cognition Support,1275.3,Revenue,Allied Healthcare
Brighton & Hove City Council,http://statistics.data.gov.uk/id/local-authority/00ML,Adult Social Care,BVASOC,ASC Mental Health Support,MHP,Third Party Payments,F,Other Establishments,FH,07/03/2018,PAY01042273,MENH,Mental Health Support,1521.17,Revenue,Allied Healthcare
Brighton & Hove City Council,http://statistics.data.gov.uk/id/local-authority/00ML,Adult Social Care,BVASOC,ASC Physical Support,PHY,Third Party Payments,F,Other Establishments,FH,07/03/2018,PAY01042273,PHYS,Physical Support,11593.88,Revenue,Allied Healthcare
Brighton & Hove City Council,http://statistics.data.gov.uk/id/local-authority/00ML,Adult Social Care,BVASOC,ASC Sensory Support,AHV,Third Party Payments,F,Other Establishments,FH,07/03/2018,PAY01042273,SORY,Sensory Support,18.11,Revenue,Allied Healthcare
Brighton & Hove City Council,http://statistics.data.gov.uk/id/local-authority/00ML,Adult Social Care,BVASOC,ASC Mental Health Support,MHP,Third Party Payments,F,Other Establishments,FH,14/03/2018,PAY01044475,MENH,Mental Health Support,184.1,Revenue,Allied Healthcare
Brighton & Hove City Council,http://statistics.data.gov.uk/id/local-authority/00ML,Adult Social Care,BVASOC,ASC Physical Support,PHY,Third Party Payments,F,Other Establishments,FH,14/03/2018,PAY01044475,PHYS,Physical Support,269.74,Revenue,Allied Healthcare
Brighton & Hove City Council,http://statistics.data.gov.uk/id/local-authority/00ML,Adult Social Care,BVASOC,ASC Physical Support,PHY,Third Party Payments,F,Other Establishments,FH,21/03/2018,PAY01046417,PHYS,Physical Support,355.6,Revenue,Allied Healthcare
Brighton & Hove City Council,http://statistics.data.gov.uk/id/local-authority/00ML,Adult Social Care,BVASOC,ASC Learning Disabilities,ALD,Customer n Client Receipts,M,Fees n Charges,MB,28/03/2018,PAY01048443,LDIS,Adults LD Community Care,-0.01,Revenue,Allied Healthcare
Brighton & Hove City Council,http://statistics.data.gov.uk/id/local-authority/00ML,Adult Social Care,BVASOC,ASC Learning Disabilities,ALD,Third Party Payments,F,Other Establishments,FH,28/03/2018,PAY01048443,LDIS,Adults LD Community Care,138.2,Revenue,Allied Healthcare
Brighton & Hove City Council,http://statistics.data.gov.uk/id/local-authority/00ML,Adult Social Care,BVASOC,ASC Memory Cognition Support,MEM,Third Party Payments,F,Other Establishments,FH,28/03/2018,PAY01048443,COGN,Memory Cognition Support,647.74,Revenue,Allied Healthcare
Brighton & Hove City Council,http://statistics.data.gov.uk/id/local-authority/00ML,Adult Social Care,BVASOC,ASC Mental Health Support,MHP,Third Party Payments,F,Other Establishments,FH,28/03/2018,PAY01048443,MENH,Mental Health Support,463.41,Revenue,Allied Healthcare
Brighton & Hove City Council,http://statistics.data.gov.uk/id/local-authority/00ML,Adult Social Care,BVASOC,ASC Physical Support,PHY,Third Party Payments,F,Other Establishments,FH,28/03/2018,PAY01048443,PHYS,Physical Support,5143.69,Revenue,Allied Healthcare
Brighton & Hove City Council,http://statistics.data.gov.uk/id/local-authority/00ML,Adult Social Care,BVASOC,ASC Sensory Support,AHV,Third Party Payments,F,Other Establishments,FH,28/03/2018,PAY01048443,SORY,Sensory Support,8.76,Revenue,Allied Healthcare
Brighton & Hove City Council,http://statistics.data.gov.uk/id/local-authority/00ML,Adult Social Care,BVASOC,ASC Learning Disabilities,ALD,Customer n Client Receipts,M,Fees n Charges,MB,29/03/2018,PAY01049502,LDIS,Adults LD Community Care,-0.01,Revenue,Allied Healthcare
Brighton & Hove City Council,http://statistics.data.gov.uk/id/local-authority/00ML,Adult Social Care,BVASOC,ASC Learning Disabilities,ALD,Third Party Payments,F,Other Establishments,FH,29/03/2018,PAY01049502,LDIS,Adults LD Community Care,139.66,Revenue,Allied Healthcare
Brighton & Hove City Council,http://statistics.data.gov.uk/id/local-authority/00ML,Adult Social Care,BVASOC,ASC Memory Cognition Support,MEM,Third Party Payments,F,Other Establishments,FH,29/03/2018,PAY01049502,COGN,Memory Cognition Support,399.42,Revenue,Allied Healthcare
Brighton & Hove City Council,http://statistics.data.gov.uk/id/local-authority/00ML,Adult Social Care,BVASOC,ASC Mental Health Support,MHP,Third Party Payments,F,Other Establishments,FH,29/03/2018,PAY01049502,MENH,Mental Health Support,464.58,Revenue,Allied Healthcare
Brighton & Hove City Council,http://statistics.data.gov.uk/id/local-authority/00ML,Adult Social Care,BVASOC,ASC Physical Support,PHY,Third Party Payments,F,Other Establishments,FH,29/03/2018,PAY01049502,PHYS,Physical Support,5194.03,Revenue,Allied Healthcare
Brighton & Hove City Council,http://statistics.data.gov.uk/id/local-authority/00ML,Adult Social Care,BVASOC,ASC Sensory Support,AHV,Third Party Payments,F,Other Establishments,FH,29/03/2018,PAY01049502,SORY,Sensory Support,9.35,Revenue,Allied Healthcare
Brighton & Hove City Council,http://statistics.data.gov.uk/id/local-authority/00ML,Housing Revenue Account,BVAHOU,Hsing Management - HRA,HGM,Premises Related,C,Repair Maint n Alterations,CA,14/03/2018,PAY01044660,HPAI,Property & Investment,12109.42,Revenue,Allied Protection Ltd
Brighton & Hove City Council,http://statistics.data.gov.uk/id/local-authority/00ML,Housing Revenue Account,BVAHOU,Hsing Management - HRA,HGM,Premises Related,C,Repair Maint n Alterations,CA,29/03/2018,PAY01049794,HPAI,Property & Investment,4438.1,Revenue,Allied Protection Ltd
Brighton & Hove City Council,http://statistics.data.gov.uk/id/local-authority/00ML,Central Support and Overheads,BVACEN,Support Services (SSC),PPT,Premises Related,C,Repair Maint n Alterations,CA,02/03/2018,PAY01040822,PROP,Property and Design,431.62,Revenue,Allsop & Francis Ltd
Brighton & Hove City Council,http://statistics.data.gov.uk/id/local-authority/00ML,Central Support and Overheads,BVACEN,Support Services (SSC),PPT,Premises Related,C,Repair Maint n Alterations,CA,28/03/2018,PAY01048431,PROP,Property and Design,276.8,Revenue,Allsop & Francis Ltd
Brighton & Hove City Council,http://statistics.data.gov.uk/id/local-authority/00ML,Central Support and Overheads,BVACEN,Holding Accounts,PPH,Transport Related,D,Direct Transport Costs,DA,14/03/2018,PAY01044808,CICL,City Clean,4568.63,Revenue,Allstar Business Solutions Ltd
Brighton & Hove City Council,http://statistics.data.gov.uk/id/local-authority/00ML,Central Support and Overheads,BVACEN,Holding Accounts,PPH,Transport Related,D,Direct Transport Costs,DA,28/03/2018,PAY01048814,CICL,City Clean,3589.53,Revenue,Allstar Business Solutions Ltd
Brighton & Hove City Council,http://statistics.data.gov.uk/id/local-authority/00ML,Central Support and Overheads,BVACEN,Holding Accounts,PPH,Transport Related,D,Direct Transport Costs,DA,29/03/2018,PAY01050125,CICL,City Clean,6284.74,Revenue,Allstar Business Solutions Ltd
Brighton & Hove City Council,http://statistics.data.gov.uk/id/local-authority/00ML,Non I&E,BVANON,CAP Education Services,4ED,New Construction n Conversion,PB,New Construction n Conversion,PBL5,21/03/2018,PAY01046549,OEDS,Other Education Support,9460,Capital,Allweather Roofing & Construction Ltd.
Brighton & Hove City Council,http://statistics.data.gov.uk/id/local-authority/00ML,Environment & Regulatory Serv,BVAERS,Environmental Health,EVH,Supplies and Services,E,Services,EF,14/03/2018,PAY01044709,PUPO,Public Protection,5685,Revenue,Alphaguard K9 Ltd
Brighton & Hove City Council,http://statistics.data.gov.uk/id/local-authority/00ML,Library Services,BVACUL,Library Service,LBR,Supplies and Services,E,Communications n Computing,EH,07/03/2018,PAY01042493,LIBS,Libraries,726.25,Revenue,Altodigital Networks Ltd
Brighton & Hove City Council,http://statistics.data.gov.uk/id/local-authority/00ML,Central Support and Overheads,BVACEN,Support Services (SSC),PPT,Supplies and Services,E,Equip't Furniture n Materials,EA,28/03/2018,PAY01048689,PROP,Property and Design,3472.62,Revenue,Altodigital Networks Ltd
Brighton & Hove City Council,http://statistics.data.gov.uk/id/local-authority/00ML,Central Support and Overheads,BVACEN,Support Services (SSC),PPT,Supplies and Services,E,Print Stat & Gen Office Exps,ED,29/03/2018,PAY01050024,PROP,Property and Design,300.97,Revenue,Altodigital Networks Ltd
Brighton & Hove City Council,http://statistics.data.gov.uk/id/local-authority/00ML,Central Support and Overheads,BVACEN,Support Services (SSC),PPT,Premises Related,C,Repair Maint n Alterations,CA,02/03/2018,PAY01040882,PROP,Property and Design,572.88,Revenue,AM Security Ltd t/a AM Fire & Security Group
Brighton & Hove City Council,http://statistics.data.gov.uk/id/local-authority/00ML,Highways and Transportation,BVAHRT,Parking Services,PRK,Premises Related,C,Repair Maint n Alterations,CA,07/03/2018,PAY01042337,PARK,Parking Services,1479.84,Revenue,AM Security Ltd t/a AM Fire & Security Group
Brighton & Hove City Council,http://statistics.data.gov.uk/id/local-authority/00ML,Central Support and Overheads,BVACEN,Support Services (SSC),PPT,Premises Related,C,Repair Maint n Alterations,CA,09/03/2018,PAY01043383,PROP,Property and Design,251.18,Revenue,AM Security Ltd t/a AM Fire & Security Group
Brighton & Hove City Council,http://statistics.data.gov.uk/id/local-authority/00ML,Environment & Regulatory Serv,BVAERS,Management Services (DEC),MGT,Third Party Payments,F,Private Contractors,FJ,09/03/2018,PAY01043383,CICL,City Clean,4.68,Revenue,AM Security Ltd t/a AM Fire & Security Group
Brighton & Hove City Council,http://statistics.data.gov.uk/id/local-authority/00ML,Housing General Fund,BVAHOG,Homelessness,HML,Premises Related,C,Repair Maint n Alterations,CA,14/03/2018,PAY01044534,TRAV,Travellers,100.9,Revenue,AM Security Ltd t/a AM Fire & Security Group
Brighton & Hove City Council,http://statistics.data.gov.uk/id/local-authority/00ML,Housing Revenue Account,BVAHOU,Hsing Management - HRA,HGM,Supplies and Services,E,Services,EF,14/03/2018,PAY01044534,HPAI,Property & Investment,261,Revenue,AM Security Ltd t/a AM Fire & Security Group
Brighton & Hove City Council,http://statistics.data.gov.uk/id/local-authority/00ML,Central Support and Overheads,BVACEN,Support Services (SSC),PPT,Premises Related,C,Repair Maint n Alterations,CA,16/03/2018,PAY01045532,PROP,Property and Design,403.6,Revenue,AM Security Ltd t/a AM Fire & Security Group
Brighton & Hove City Council,http://statistics.data.gov.uk/id/local-authority/00ML,Housing Revenue Account,BVAHOU,Hsing Management - HRA,HGM,Supplies and Services,E,Services,EF,16/03/2018,PAY01045532,HPAI,Property & Investment,264.64,Revenue,AM Security Ltd t/a AM Fire & Security Group
Brighton & Hove City Council,http://statistics.data.gov.uk/id/local-authority/00ML,Library Services,BVACUL,Library Service,LBR,Supplies and Services,E,Services,EF,21/03/2018,PAY01046493,LIBS,Libraries,425.88,Revenue,AM Security Ltd t/a AM Fire & Security Group
Brighton & Hove City Council,http://statistics.data.gov.uk/id/local-authority/00ML,Non I&E,BVANON,CAP Libs Culture and Hertage,4LH,New Construction n Conversion,PB,New Construction n Conversion,PBL5,21/03/2018,PAY01046493,LIBS,Libraries,9293.86,Capital,AM Security Ltd t/a AM Fire & Security Group
Brighton & Hove City Council,http://statistics.data.gov.uk/id/local-authority/00ML,Central Support and Overheads,BVACEN,Support Services (SSC),PPT,Premises Related,C,Repair Maint n Alterations,CA,28/03/2018,PAY01048513,PROP,Property and Design,327.39,Revenue,AM Security Ltd t/a AM Fire & Security Group
Brighton & Hove City Council,http://statistics.data.gov.uk/id/local-authority/00ML,Cultural and Related Serv,BVACUL,Recreation and Sport,REC,Supplies and Services,E,Services,EF,28/03/2018,PAY01048513,SPLE,Sport and Leisure,433.32,Revenue,AM Security Ltd t/a AM Fire & Security Group
Brighton & Hove City Council,http://statistics.data.gov.uk/id/local-authority/00ML,Library Services,BVACUL,Library Service,LBR,Premises Related,C,Fixtures and Fittings,CF,28/03/2018,PAY01048513,LIBS,Libraries,1868.07,Revenue,AM Security Ltd t/a AM Fire & Security Group
Brighton & Hove City Council,http://statistics.data.gov.uk/id/local-authority/00ML,Children`s & Education Serv,BVAEDU,Child Srvcs Other,FAX,Premises Related,C,Cleaning n Domestic Supps,CH,29/03/2018,PAY01049575,YOTS,Youth Service,1278.01,Revenue,AM Security Ltd t/a AM Fire & Security Group
Brighton & Hove City Council,http://statistics.data.gov.uk/id/local-authority/00ML,Public Health,BVAPHE,Public Health,PHE,Supplies and Services,E,Miscellaneous Expenses,EM,21/03/2018,PAY01046593,PHCM,PH Commissioning,919,Revenue,Amateur Swimming Association
Brighton & Hove City Council,http://statistics.data.gov.uk/id/local-authority/00ML,Adult Social Care,BVASOC,ASC Learning Disabilities,ALD,Supplies and Services,E,Equip't Furniture n Materials,EA,29/03/2018,PAY01050607,LDSU,Supported Employment,466.4,Revenue,Amaya Sales UK
Brighton & Hove City Council,http://statistics.data.gov.uk/id/local-authority/00ML,Children`s & Education Serv,BVAEDU,Child Srvcs - Other Fam Supp,FFX,Third Party Payments,F,Other Establishments,FH,07/03/2018,PAY01042215,DISS,Childrens Disability Services,35000,Revenue,Amaze Brighton & Hove
Brighton & Hove City Council,http://statistics.data.gov.uk/id/local-authority/00ML,Children`s & Education Serv,BVAEDU,Child Srvcs - Other Fam Supp,FFX,Third Party Payments,F,Other Establishments,FH,14/03/2018,PAY01044416,DISS,Childrens Disability Services,35000,Revenue,Amaze Brighton & Hove
Brighton & Hove City Council,http://statistics.data.gov.uk/id/local-authority/00ML,Adult Social Care,BVASOC,S Svcs Other Adult Services,ADT,Indirect Employees,B,Training,BM,23/03/2018,PAY01048008,ORGD,Organisational Development,493,Revenue,Amber & Greene
Brighton & Hove City Council,http://statistics.data.gov.uk/id/local-authority/00ML,Adult Social Care,BVASOC,ASC Memory Cognition Support,MEM,Third Party Payments,F,Other Establishments,FH,09/03/2018,PAY01043299,COGN,Memory Cognition Support,4161.2,Revenue,Amberley Lodge Care Home Ltd
Brighton & Hove City Council,http://statistics.data.gov.uk/id/local-authority/00ML,Cultural and Related Serv,BVACUL,Management Services (DEC),MGT,Supplies and Services,E,Equip't Furniture n Materials,EA,16/03/2018,PAY01045688,CIPK,City Parks,335,Revenue,Amethyst Horticulture Ltd
Brighton & Hove City Council,http://statistics.data.gov.uk/id/local-authority/00ML,Children`s & Education Serv,BVAEDU,Ed EY PVI,ENP,Supplies and Services,E,Grants n Subscriptions,EK,07/03/2018,PAY01042393,EYRS,Early Years,3699,Revenue,Amigos Pre-School Playgroup
Brighton & Hove City Council,http://statistics.data.gov.uk/id/local-authority/00ML,Children`s & Education Serv,BVAEDU,Ed EY PVI,ENP,Supplies and Services,E,Grants n Subscriptions,EK,09/03/2018,PAY01043514,EYRS,Early Years,421.2,Revenue,Amigos Pre-School Playgroup
Brighton & Hove City Council,http://statistics.data.gov.uk/id/local-authority/00ML,Planning and Development,BVAPLA,Economic Development,ECD,Supplies and Services,E,Miscellaneous Expenses,EM,28/03/2018,PAY01049035,SUAI,Sustainability & International,360,Revenue,Amillionmonkeys Ltd
Brighton & Hove City Council,http://statistics.data.gov.uk/id/local-authority/00ML,Cultural and Related Serv,BVACUL,Open Spaces,PEN,Supplies and Services,E,Equip't Furniture n Materials,EA,14/03/2018,PAY01044533,CIPK,City Parks,1984.89,Revenue,AMP Groundcare Machinery Services Ltd
Brighton & Hove City Council,http://statistics.data.gov.uk/id/local-authority/00ML,Environment & Regulatory Serv,BVAERS,Management Services (DEC),MGT,Transport Related,D,Direct Transport Costs,DA,14/03/2018,PAY01044533,CICL,City Clean,1335.4,Revenue,AMP Groundcare Machinery Services Ltd
Brighton & Hove City Council,http://statistics.data.gov.uk/id/local-authority/00ML,Non I&E,BVANON,CAP Transport,4TR,Vehicles,PE1,Vehicles,PE1L5,14/03/2018,PAY01044533,CICL,City Clean,6585,Capital,AMP Groundcare Machinery Services Ltd
Brighton & Hove City Council,http://statistics.data.gov.uk/id/local-authority/00ML,Cultural and Related Serv,BVACUL,Management Services (DEC),MGT,Supplies and Services,E,Equip't Furniture n Materials,EA,21/03/2018,PAY01046492,CIPK,City Parks,2737.75,Revenue,AMP Groundcare Machinery Services Ltd
Brighton & Hove City Council,http://statistics.data.gov.uk/id/local-authority/00ML,Central Support and Overheads,BVACEN,Support Services (SSC),PPT,Premises Related,C,Rents Payable,CC,21/03/2018,PAY01046815,SCOR,School Organisation,10000,Revenue,Amplicon Group Ltd
Brighton & Hove City Council,http://statistics.data.gov.uk/id/local-authority/00ML,Adult Social Care,BVASOC,ASC Substance Misuse,ADM,Third Party Payments,F,Other Establishments,FH,16/03/2018,PAY01045715,SUBM,Substance Misuse Support,9508.58,Revenue,ANA Treatment Centres Ltd
Brighton & Hove City Council,http://statistics.data.gov.uk/id/local-authority/00ML,Adult Social Care,BVASOC,ASC Substance Misuse,ADM,Customer n Client Receipts,M,Fees n Charges,MB,21/03/2018,PAY01046617,SUBM,Substance Misuse Support,-185,Revenue,ANA Treatment Centres Ltd
Brighton & Hove City Council,http://statistics.data.gov.uk/id/local-authority/00ML,Adult Social Care,BVASOC,ASC Substance Misuse,ADM,Third Party Payments,F,Other Establishments,FH,21/03/2018,PAY01046617,SUBM,Substance Misuse Support,2527.96,Revenue,ANA Treatment Centres Ltd
Brighton & Hove City Council,http://statistics.data.gov.uk/id/local-authority/00ML,Environment & Regulatory Serv,BVAERS,Court Services,CRT,Supplies and Services,E,Equip't Furniture n Materials,EA,16/03/2018,PAY01045829,CORO,Coroner,230,Revenue,Analytical Services International Ltd
Brighton & Hove City Council,http://statistics.data.gov.uk/id/local-authority/00ML,Children`s & Education Serv,BVAEDU,Child Srvcs - Residential Svcs,FLR,Third Party Payments,F,Other Establishments,FH,28/03/2018,PAY01048757,AVFM,Agency Placements\VFM,18181.56,Revenue,Anderida Adolescent Care Ltd
Brighton & Hove City Council,http://statistics.data.gov.uk/id/local-authority/00ML,Adult Social Care,BVASOC,ASC Learning Disabilities,ALD,Supplies and Services,E,Equip't Furniture n Materials,EA,23/03/2018,PAY01048024,LDSE,Adults LD Day Services,44,Revenue,Angel Springs Ltd t/a Waterlogic
Brighton & Hove City Council,http://statistics.data.gov.uk/id/local-authority/00ML,Children`s & Education Serv,BVAEDU,Child Srvcs Com and Scl Work,FCW,Supplies and Services,E,Equip't Furniture n Materials,EA,23/03/2018,PAY01048024,SPEA,Specialist Assessment,22,Revenue,Angel Springs Ltd t/a Waterlogic
Brighton & Hove City Council,http://statistics.data.gov.uk/id/local-authority/00ML,Library Services,BVACUL,Library Service,LBR,Supplies and Services,E,Catering,EB,23/03/2018,PAY01048024,LIBS,Libraries,358.51,Revenue,Angel Springs Ltd t/a Waterlogic
Brighton & Hove City Council,http://statistics.data.gov.uk/id/local-authority/00ML,Cultural and Related Serv,BVACUL,Culture and Heritage,CHG,Supplies and Services,E,Services,EF,29/03/2018,PAY01050038,RPMU,Royal Pavilion and Museums,1970.3,Revenue,Annabel Westman Ltd
Brighton & Hove City Council,http://statistics.data.gov.uk/id/local-authority/00ML,Central Support and Overheads,BVACEN,Support Services (SSC),PPT,Supplies and Services,E,Equip't Furniture n Materials,EA,23/03/2018,PAY01047797,SCOR,School Organisation,220.8,Revenue,Antalis Limted
Brighton & Hove City Council,http://statistics.data.gov.uk/id/local-authority/00ML,Central Support and Overheads,BVACEN,Support Services (SSC),PPT,Supplies and Services,E,Equip't Furniture n Materials,EA,29/03/2018,PAY01050144,SCOR,School Organisation,238.32,Revenue,Antalis Limted
Brighton & Hove City Council,http://statistics.data.gov.uk/id/local-authority/00ML,Library Services,BVACUL,Library Service,LBR,Supplies and Services,E,Services,EF,02/03/2018,PAY01041480,LIBS,Libraries,4706.63,Revenue,AP Security (APS) Ltd
Brighton & Hove City Council,http://statistics.data.gov.uk/id/local-authority/00ML,Central Support and Overheads,BVACEN,Support Services (SSC),PPT,Premises Related,C,Repair Maint n Alterations,CA,21/03/2018,PAY01046785,PROP,Property and Design,481.5,Revenue,AP Security (APS) Ltd
Brighton & Hove City Council,http://statistics.data.gov.uk/id/local-authority/00ML,Library Services,BVACUL,Library Service,LBR,Supplies and Services,E,Services,EF,21/03/2018,PAY01046785,LIBS,Libraries,4757.97,Revenue,AP Security (APS) Ltd
Brighton & Hove City Council,http://statistics.data.gov.uk/id/local-authority/00ML,Central Support and Overheads,BVACEN,Support Services (SSC),PPT,Supplies and Services,E,Services,EF,29/03/2018,PAY01050233,PROP,Property and Design,50419.87,Revenue,AP Security (APS) Ltd
Brighton & Hove City Council,http://statistics.data.gov.uk/id/local-authority/00ML,Children`s & Education Serv,BVAEDU,Child Srvcs Leaving Care,FAL,Transfer Payments,G,Other Transfer Payments,GD,23/03/2018,PAY01047691,CARL,Care Leavers,743.38,Revenue,Apple Retail UK LTD
Brighton & Hove City Council,http://statistics.data.gov.uk/id/local-authority/00ML,Housing General Fund,BVAHOG,Homelessness,HML,Premises Related,C,Rents Payable,CC,09/03/2018,PAY01043667,TAAS,Temp Accom and Allocations,1350,Revenue,Applegate Properties Ltd
Brighton & Hove City Council,http://statistics.data.gov.uk/id/local-authority/00ML,Adult Social Care,BVASOC,ASC Physical Support,PHY,Customer n Client Receipts,M,Fees n Charges,MB,09/03/2018,PAY01043381,PHYS,Physical Support,-1107.88,Revenue,Appletree House Care Home
Brighton & Hove City Council,http://statistics.data.gov.uk/id/local-authority/00ML,Adult Social Care,BVASOC,ASC Physical Support,PHY,Third Party Payments,F,Other Establishments,FH,09/03/2018,PAY01043381,PHYS,Physical Support,3900.16,Revenue,Appletree House Care Home
Brighton & Hove City Council,http://statistics.data.gov.uk/id/local-authority/00ML,Highways and Transportation,BVAHRT,Parking Services,PRK,Premises Related,C,Repair Maint n Alterations,CA,07/03/2018,PAY01042596,PARK,Parking Services,4300.4,Revenue,APS Aegis Limited
Brighton & Hove City Council,http://statistics.data.gov.uk/id/local-authority/00ML,Highways and Transportation,BVAHRT,Parking Services,PRK,Supplies and Services,E,Equip't Furniture n Materials,EA,07/03/2018,PAY01042596,PARK,Parking Services,612,Revenue,APS Aegis Limited
Brighton & Hove City Council,http://statistics.data.gov.uk/id/local-authority/00ML,Highways and Transportation,BVAHRT,Parking Services,PRK,Premises Related,C,Repair Maint n Alterations,CA,14/03/2018,PAY01044764,PARK,Parking Services,601.2,Revenue,APS Aegis Limited
Brighton & Hove City Council,http://statistics.data.gov.uk/id/local-authority/00ML,Highways and Transportation,BVAHRT,Parking Services,PRK,Supplies and Services,E,Equip't Furniture n Materials,EA,14/03/2018,PAY01044764,PARK,Parking Services,7059.86,Revenue,APS Aegis Limited
Brighton & Hove City Council,http://statistics.data.gov.uk/id/local-authority/00ML,Highways and Transportation,BVAHRT,Parking Services,PRK,Supplies and Services,E,Equip't Furniture n Materials,EA,28/03/2018,PAY01048479,PARK,Parking Services,259,Revenue,APT Skidata Ltd
Brighton & Hove City Council,http://statistics.data.gov.uk/id/local-authority/00ML,Cultural and Related Serv,BVACUL,Recreation and Sport,REC,Supplies and Services,E,Equip't Furniture n Materials,EA,29/03/2018,PAY01050838,SPLE,Sport and Leisure,2300,Revenue,Aquasport International Ltd
Brighton & Hove City Council,http://statistics.data.gov.uk/id/local-authority/00ML,Adult Social Care,BVASOC,ASC Learning Disabilities,ALD,Customer n Client Receipts,M,Fees n Charges,MB,09/03/2018,PAY01044033,LDIS,Adults LD Community Care,-262.2,Revenue,Aran Hall School Ltd
Brighton & Hove City Council,http://statistics.data.gov.uk/id/local-authority/00ML,Adult Social Care,BVASOC,ASC Learning Disabilities,ALD,Third Party Payments,F,Other Establishments,FH,09/03/2018,PAY01044033,LDIS,Adults LD Community Care,19883.92,Revenue,Aran Hall School Ltd
Brighton & Hove City Council,http://statistics.data.gov.uk/id/local-authority/00ML,Planning and Development,BVAPLA,Management Services (DEC),MGT,Supplies and Services,E,Services,EF,14/03/2018,PAY01045092,DEVP,Development Planning,702,Revenue,Arborweald Environmental Planning Consultancy
Brighton & Hove City Council,http://statistics.data.gov.uk/id/local-authority/00ML,Planning and Development,BVAPLA,Management Services (DEC),MGT,Supplies and Services,E,Services,EF,28/03/2018,PAY01049132,DEVP,Development Planning,1740,Revenue,Arborweald Environmental Planning Consultancy
Brighton & Hove City Council,http://statistics.data.gov.uk/id/local-authority/00ML,Adult Social Care,BVASOC,ASC Memory Cognition Support,MEM,Customer n Client Receipts,M,Fees n Charges,MB,09/03/2018,PAY01044074,COGN,Memory Cognition Support,-537.8,Revenue,Archmore Care Services
Brighton & Hove City Council,http://statistics.data.gov.uk/id/local-authority/00ML,Adult Social Care,BVASOC,ASC Memory Cognition Support,MEM,Third Party Payments,F,Other Establishments,FH,09/03/2018,PAY01044074,COGN,Memory Cognition Support,2080.6,Revenue,Archmore Care Services
Brighton & Hove City Council,http://statistics.data.gov.uk/id/local-authority/00ML,Adult Social Care,BVASOC,ASC Physical Support,PHY,Customer n Client Receipts,M,Fees n Charges,MB,09/03/2018,PAY01044074,PHYS,Physical Support,-537.8,Revenue,Archmore Care Services
Brighton & Hove City Council,http://statistics.data.gov.uk/id/local-authority/00ML,Adult Social Care,BVASOC,ASC Physical Support,PHY,Third Party Payments,F,Other Establishments,FH,09/03/2018,PAY01044074,PHYS,Physical Support,4161.2,Revenue,Archmore Care Services
Brighton & Hove City Council,http://statistics.data.gov.uk/id/local-authority/00ML,Adult Social Care,BVASOC,ASC Memory Cognition Support,MEM,Customer n Client Receipts,M,Fees n Charges,MB,09/03/2018,PAY01043268,COGN,Memory Cognition Support,-1535.36,Revenue,Archmore Care Services Ltd T/A Birchwood Grove NH
Brighton & Hove City Council,http://statistics.data.gov.uk/id/local-authority/00ML,Adult Social Care,BVASOC,ASC Memory Cognition Support,MEM,Third Party Payments,F,Other Establishments,FH,09/03/2018,PAY01043268,COGN,Memory Cognition Support,6998.4,Revenue,Archmore Care Services Ltd T/A Birchwood Grove NH
Brighton & Hove City Council,http://statistics.data.gov.uk/id/local-authority/00ML,Adult Social Care,BVASOC,ASC Physical Support,PHY,Customer n Client Receipts,M,Fees n Charges,MB,09/03/2018,PAY01043268,PHYS,Physical Support,-537.8,Revenue,Archmore Care Services Ltd T/A Birchwood Grove NH
Brighton & Hove City Council,http://statistics.data.gov.uk/id/local-authority/00ML,Adult Social Care,BVASOC,ASC Physical Support,PHY,Third Party Payments,F,Other Establishments,FH,09/03/2018,PAY01043268,PHYS,Physical Support,4665.6,Revenue,Archmore Care Services Ltd T/A Birchwood Grove NH
Brighton & Hove City Council,http://statistics.data.gov.uk/id/local-authority/00ML,Children`s & Education Serv,BVAEDU,Child Srvcs Leaving Care,FAL,Transfer Payments,G,Other Transfer Payments,GD,09/03/2018,PAY01043371,CARL,Care Leavers,455.86,Revenue,Argos Business Solutions Ltd
Brighton & Hove City Council,http://statistics.data.gov.uk/id/local-authority/00ML,Children`s & Education Serv,BVAEDU,Child Srvcs - Other Fam Supp,FFX,Transfer Payments,G,Other Transfer Payments,GD,09/03/2018,PAY01043371,FAMP,Families\Prevention,348.68,Revenue,Argos Business Solutions Ltd
Brighton & Hove City Council,http://statistics.data.gov.uk/id/local-authority/00ML,Children`s & Education Serv,BVAEDU,Ed EY Central,EAE,Supplies and Services,E,Equip't Furniture n Materials,EA,09/03/2018,PAY01043371,EYRS,Early Years,44.45,Revenue,Argos Business Solutions Ltd
Brighton & Hove City Council,http://statistics.data.gov.uk/id/local-authority/00ML,Children`s & Education Serv,BVAEDU,Child Srvcs Leaving Care,FAL,Transfer Payments,G,Other Transfer Payments,GD,16/03/2018,PAY01045525,CARL,Care Leavers,526.32,Revenue,Argos Business Solutions Ltd
Brighton & Hove City Council,http://statistics.data.gov.uk/id/local-authority/00ML,Children`s & Education Serv,BVAEDU,Child Srvcs - Other Fam Supp,FFX,Transfer Payments,G,Other Transfer Payments,GD,16/03/2018,PAY01045525,ASER,Adolescent Service,519.82,Revenue,Argos Business Solutions Ltd
Brighton & Hove City Council,http://statistics.data.gov.uk/id/local-authority/00ML,Children`s & Education Serv,BVAEDU,Child Srvcs Leaving Care,FAL,Transfer Payments,G,Other Transfer Payments,GD,21/03/2018,PAY01046479,CARL,Care Leavers,391.93,Revenue,Argos Business Solutions Ltd
Brighton & Hove City Council,http://statistics.data.gov.uk/id/local-authority/00ML,Children`s & Education Serv,BVAEDU,Child Srvcs - Other Fam Supp,FFX,Transfer Payments,G,Other Transfer Payments,GD,21/03/2018,PAY01046479,FAMP,Families\Prevention,131.28,Revenue,Argos Business Solutions Ltd
Brighton & Hove City Council,http://statistics.data.gov.uk/id/local-authority/00ML,Adult Social Care,BVASOC,Commission & Service Delivery,CMM,Supplies and Services,E,Equip't Furniture n Materials,EA,23/03/2018,PAY01047419,LDMA,Adults LD Management,274.11,Revenue,Argos Business Solutions Ltd
Brighton & Hove City Council,http://statistics.data.gov.uk/id/local-authority/00ML,Children`s & Education Serv,BVAEDU,Child Srvcs Leaving Care,FAL,Transfer Payments,G,Other Transfer Payments,GD,23/03/2018,PAY01047419,CARL,Care Leavers,555.55,Revenue,Argos Business Solutions Ltd
Brighton & Hove City Council,http://statistics.data.gov.uk/id/local-authority/00ML,Children`s & Education Serv,BVAEDU,Child Srvcs - Other Fam Supp,FFX,Transfer Payments,G,Other Transfer Payments,GD,23/03/2018,PAY01047419,ASER,Adolescent Service,46.54,Revenue,Argos Business Solutions Ltd
Brighton & Hove City Council,http://statistics.data.gov.uk/id/local-authority/00ML,Children`s & Education Serv,BVAEDU,Child Srvcs Leaving Care,FAL,Transfer Payments,G,Other Transfer Payments,GD,29/03/2018,PAY01049563,CARL,Care Leavers,115.99,Revenue,Argos Business Solutions Ltd
Brighton & Hove City Council,http://statistics.data.gov.uk/id/local-authority/00ML,Children`s & Education Serv,BVAEDU,Ed EY Central,EAE,Supplies and Services,E,Equip't Furniture n Materials,EA,29/03/2018,PAY01049563,EYRS,Early Years,128.51,Revenue,Argos Business Solutions Ltd
Brighton & Hove City Council,http://statistics.data.gov.uk/id/local-authority/00ML,Housing General Fund,BVAHOG,Hsing Benefits,HGB,Transfer Payments,G,Other Transfer Payments,GD,29/03/2018,PAY01049563,REVS,Revenues and Benefits,4062.62,Revenue,Argos Business Solutions Ltd
Brighton & Hove City Council,http://statistics.data.gov.uk/id/local-authority/00ML,Non I&E,BVANON,CAP Social Services,4RV,Plant Machinery n Equipment,PE2,Plant Machinery n Equipment,PE2L5,29/03/2018,PAY01049563,ASIT,Assessment and SIT,71.94,Capital,Argos Business Solutions Ltd
Brighton & Hove City Council,http://statistics.data.gov.uk/id/local-authority/00ML,Non-BHC Organisations,BVANON,Trusts,TRT,Supplies and Services,E,Grants n Subscriptions,EK,15/03/2018,PAY517232,NBHC,Non Council,416.94,Revenue,Argos Distributors Ltd
Brighton & Hove City Council,http://statistics.data.gov.uk/id/local-authority/00ML,Non-BHC Organisations,BVANON,Trusts,TRT,Supplies and Services,E,Grants n Subscriptions,EK,15/03/2018,PAY517234,NBHC,Non Council,359.98,Revenue,Argos Distributors Ltd
Brighton & Hove City Council,http://statistics.data.gov.uk/id/local-authority/00ML,Non-BHC Organisations,BVANON,Trusts,TRT,Supplies and Services,E,Grants n Subscriptions,EK,22/03/2018,PAY517294,NBHC,Non Council,306.94,Revenue,Argos Distributors Ltd
Brighton & Hove City Council,http://statistics.data.gov.uk/id/local-authority/00ML,Adult Social Care,BVASOC,ASC Physical Support,PHY,Supplies and Services,E,Equip't Furniture n Materials,EA,16/03/2018,PAY01045442,RCOP,Resource Centres Older People,5889,Revenue,Arjo UK Ltd
Brighton & Hove City Council,http://statistics.data.gov.uk/id/local-authority/00ML,Adult Social Care,BVASOC,ASC Physical Support,PHY,Supplies and Services,E,Equip't Furniture n Materials,EA,21/03/2018,PAY01046360,RCOP,Resource Centres Older People,304,Revenue,Arjo UK Ltd
Brighton & Hove City Council,http://statistics.data.gov.uk/id/local-authority/00ML,Cultural and Related Serv,BVACUL,Culture and Heritage,CHG,Supplies and Services,E,Goods for Resale,EG,28/03/2018,PAY01049175,RPMU,Royal Pavilion and Museums,1102.5,Revenue,Ark wholesale Ltd
Brighton & Hove City Council,http://statistics.data.gov.uk/id/local-authority/00ML,Adult Social Care,BVASOC,ASC Memory Cognition Support,MEM,Customer n Client Receipts,M,Fees n Charges,MB,09/03/2018,PAY01043496,COGN,Memory Cognition Support,-4544.52,Revenue,Arlington House
Brighton & Hove City Council,http://statistics.data.gov.uk/id/local-authority/00ML,Adult Social Care,BVASOC,ASC Memory Cognition Support,MEM,Third Party Payments,F,Other Establishments,FH,09/03/2018,PAY01043496,COGN,Memory Cognition Support,23976,Revenue,Arlington House
Brighton & Hove City Council,http://statistics.data.gov.uk/id/local-authority/00ML,Adult Social Care,BVASOC,ASC Physical Support,PHY,Customer n Client Receipts,M,Fees n Charges,MB,09/03/2018,PAY01043496,PHYS,Physical Support,-3738.2,Revenue,Arlington House
Brighton & Hove City Council,http://statistics.data.gov.uk/id/local-authority/00ML,Adult Social Care,BVASOC,ASC Physical Support,PHY,Third Party Payments,F,Other Establishments,FH,09/03/2018,PAY01043496,PHYS,Physical Support,18347.99,Revenue,Arlington House
Brighton & Hove City Council,http://statistics.data.gov.uk/id/local-authority/00ML,Adult Social Care,BVASOC,S Svcs Other Adult Services,ADT,Indirect Employees,B,Training,BM,07/03/2018,PAY01042287,ORGD,Organisational Development,594,Revenue,Artagent Ltd t/a David Taylor Training
Brighton & Hove City Council,http://statistics.data.gov.uk/id/local-authority/00ML,Central Support and Overheads,BVACEN,Support Services (SSC),PPT,Indirect Employees,B,Training,BM,07/03/2018,PAY01042287,ORGD,Organisational Development,506,Revenue,Artagent Ltd t/a David Taylor Training
Brighton & Hove City Council,http://statistics.data.gov.uk/id/local-authority/00ML,Central Support and Overheads,BVACEN,Support Services (SSC),PPT,Indirect Employees,B,Training,BM,14/03/2018,PAY01044487,ORGD,Organisational Development,500,Revenue,Artagent Ltd t/a David Taylor Training
Brighton & Hove City Council,http://statistics.data.gov.uk/id/local-authority/00ML,Adult Social Care,BVASOC,S Svcs Other Adult Services,ADT,Indirect Employees,B,Training,BM,16/03/2018,PAY01045494,ORGD,Organisational Development,189,Revenue,Artagent Ltd t/a David Taylor Training
Brighton & Hove City Council,http://statistics.data.gov.uk/id/local-authority/00ML,Central Support and Overheads,BVACEN,Support Services (SSC),PPT,Indirect Employees,B,Training,BM,16/03/2018,PAY01045494,ORGD,Organisational Development,161,Revenue,Artagent Ltd t/a David Taylor Training
Brighton & Hove City Council,http://statistics.data.gov.uk/id/local-authority/00ML,Central Support and Overheads,BVACEN,Support Services (SSC),PPT,Indirect Employees,B,Training,BM,21/03/2018,PAY01046432,OHAS,Occupational Health and Safety,750,Revenue,Artagent Ltd t/a David Taylor Training
Brighton & Hove City Council,http://statistics.data.gov.uk/id/local-authority/00ML,Adult Social Care,BVASOC,S Svcs Other Adult Services,ADT,Indirect Employees,B,Training,BM,23/03/2018,PAY01047387,ORGD,Organisational Development,189,Revenue,Artagent Ltd t/a David Taylor Training
Brighton & Hove City Council,http://statistics.data.gov.uk/id/local-authority/00ML,Central Support and Overheads,BVACEN,Support Services (SSC),PPT,Indirect Employees,B,Training,BM,23/03/2018,PAY01047387,OHAS,Occupational Health and Safety,200,Revenue,Artagent Ltd t/a David Taylor Training
Brighton & Hove City Council,http://statistics.data.gov.uk/id/local-authority/00ML,Central Support and Overheads,BVACEN,Support Services (SSC),PPT,Indirect Employees,B,Training,BM,23/03/2018,PAY01047387,ORGD,Organisational Development,161,Revenue,Artagent Ltd t/a David Taylor Training
Brighton & Hove City Council,http://statistics.data.gov.uk/id/local-authority/00ML,Cultural and Related Serv,BVACUL,Culture and Heritage,CHG,Supplies and Services,E,Miscellaneous Expenses,EM,14/03/2018,PAY01044420,VENU,Venues,4809.45,Revenue,Artifax Software Ltd
Brighton & Hove City Council,http://statistics.data.gov.uk/id/local-authority/00ML,Non I&E,BVANON,CAP Mgmnt and Suppt Services,4PT,Intangible Fixed Assets,PI,Intangible Fixed Assets,PIL5,14/03/2018,PAY01044420,DIGF,Digital First,150,Capital,Artifax Software Ltd
Brighton & Hove City Council,http://statistics.data.gov.uk/id/local-authority/00ML,Library Services,BVACUL,Library Service,LBR,Supplies and Services,E,Communications n Computing,EH,21/03/2018,PAY01046356,LIBS,Libraries,3186.19,Revenue,Artifax Software Ltd
Brighton & Hove City Council,http://statistics.data.gov.uk/id/local-authority/00ML,Cultural and Related Serv,BVACUL,Tourism,TRM,Supplies and Services,E,Miscellaneous Expenses,EM,29/03/2018,PAY01049573,TOMA,Tourism and Marketing,1263.34,Revenue,Artist Residence Brighton Ltd
Brighton & Hove City Council,http://statistics.data.gov.uk/id/local-authority/00ML,Adult Social Care,BVASOC,ASC Learning Disabilities,ALD,Customer n Client Receipts,M,Fees n Charges,MB,07/03/2018,PAY01042529,LDIS,Adults LD Community Care,-3128,Revenue,Arundel Domiciliary Care Services
Brighton & Hove City Council,http://statistics.data.gov.uk/id/local-authority/00ML,Adult Social Care,BVASOC,ASC Learning Disabilities,ALD,Third Party Payments,F,Other Establishments,FH,07/03/2018,PAY01042529,LDIS,Adults LD Community Care,130206.08,Revenue,Arundel Domiciliary Care Services
Brighton & Hove City Council,http://statistics.data.gov.uk/id/local-authority/00ML,Adult Social Care,BVASOC,ASC Learning Disabilities,ALD,Customer n Client Receipts,M,Fees n Charges,MB,09/03/2018,PAY01043242,LDIS,Adults LD Community Care,-402.6,Revenue,ASD Unique Services LLP
Brighton & Hove City Council,http://statistics.data.gov.uk/id/local-authority/00ML,Adult Social Care,BVASOC,ASC Learning Disabilities,ALD,Third Party Payments,F,Other Establishments,FH,09/03/2018,PAY01043242,LDIS,Adults LD Community Care,4591.44,Revenue,ASD Unique Services LLP
Brighton & Hove City Council,http://statistics.data.gov.uk/id/local-authority/00ML,Adult Social Care,BVASOC,ASC Memory Cognition Support,MEM,Customer n Client Receipts,M,Fees n Charges,MB,09/03/2018,PAY01044112,COGN,Memory Cognition Support,-537.8,Revenue,Ash House (Yorkshire) Ltd
Brighton & Hove City Council,http://statistics.data.gov.uk/id/local-authority/00ML,Adult Social Care,BVASOC,ASC Memory Cognition Support,MEM,Third Party Payments,F,Other Establishments,FH,09/03/2018,PAY01044112,COGN,Memory Cognition Support,1736,Revenue,Ash House (Yorkshire) Ltd
Brighton & Hove City Council,http://statistics.data.gov.uk/id/local-authority/00ML,Non I&E,BVANON,CAP Other Env Services,4EV,New Construction n Conversion,PB,New Construction n Conversion,PBL5,28/03/2018,PAY01048400,PROP,Property and Design,350,Capital,Ashacre Scaffolding Ltd
Brighton & Hove City Council,http://statistics.data.gov.uk/id/local-authority/00ML,Adult Social Care,BVASOC,ASC Mental Health Support,MHP,Third Party Payments,F,Other Establishments,FH,09/03/2018,PAY01043225,MENH,Mental Health Support,3064.72,Revenue,Ashford House Ltd
Brighton & Hove City Council,http://statistics.data.gov.uk/id/local-authority/00ML,Adult Social Care,BVASOC,ASC Memory Cognition Support,MEM,Customer n Client Receipts,M,Fees n Charges,MB,09/03/2018,PAY01043774,COGN,Memory Cognition Support,-537.8,Revenue,Ashleigh Manor
Brighton & Hove City Council,http://statistics.data.gov.uk/id/local-authority/00ML,Adult Social Care,BVASOC,ASC Memory Cognition Support,MEM,Third Party Payments,F,Other Establishments,FH,09/03/2018,PAY01043774,COGN,Memory Cognition Support,1847.72,Revenue,Ashleigh Manor
Brighton & Hove City Council,http://statistics.data.gov.uk/id/local-authority/00ML,Adult Social Care,BVASOC,ASC Memory Cognition Support,MEM,Customer n Client Receipts,M,Fees n Charges,MB,09/03/2018,PAY01044192,COGN,Memory Cognition Support,-537.8,Revenue,Ashley Gardens (UK) Ltd
Brighton & Hove City Council,http://statistics.data.gov.uk/id/local-authority/00ML,Adult Social Care,BVASOC,ASC Memory Cognition Support,MEM,Third Party Payments,F,Other Establishments,FH,09/03/2018,PAY01044192,COGN,Memory Cognition Support,2007.04,Revenue,Ashley Gardens (UK) Ltd
Brighton & Hove City Council,http://statistics.data.gov.uk/id/local-authority/00ML,Adult Social Care,BVASOC,ASC Learning Disabilities,ALD,Customer n Client Receipts,M,Fees n Charges,MB,21/03/2018,PAY01046693,LDIS,Adults LD Community Care,-728,Revenue,Ashmeadows House Ltd
Brighton & Hove City Council,http://statistics.data.gov.uk/id/local-authority/00ML,Adult Social Care,BVASOC,ASC Learning Disabilities,ALD,Third Party Payments,F,Other Establishments,FH,21/03/2018,PAY01046693,LDIS,Adults LD Community Care,4304.96,Revenue,Ashmeadows House Ltd
Brighton & Hove City Council,http://statistics.data.gov.uk/id/local-authority/00ML,Adult Social Care,BVASOC,ASC Mental Health Support,MHP,Third Party Payments,F,Other Establishments,FH,21/03/2018,PAY01046693,MENH,Mental Health Support,2092.5,Revenue,Ashmeadows House Ltd
Brighton & Hove City Council,http://statistics.data.gov.uk/id/local-authority/00ML,Adult Social Care,BVASOC,ASC Memory Cognition Support,MEM,Customer n Client Receipts,M,Fees n Charges,MB,09/03/2018,PAY01043311,COGN,Memory Cognition Support,-537.8,Revenue,Ashton Care
Brighton & Hove City Council,http://statistics.data.gov.uk/id/local-authority/00ML,Adult Social Care,BVASOC,ASC Memory Cognition Support,MEM,Third Party Payments,F,Other Establishments,FH,09/03/2018,PAY01043311,COGN,Memory Cognition Support,2184.44,Revenue,Ashton Care
Brighton & Hove City Council,http://statistics.data.gov.uk/id/local-authority/00ML,Adult Social Care,BVASOC,ASC Memory Cognition Support,MEM,Third Party Payments,F,Other Establishments,FH,09/03/2018,PAY01043990,COGN,Memory Cognition Support,3500,Revenue,Ashton House
Brighton & Hove City Council,http://statistics.data.gov.uk/id/local-authority/00ML,Adult Social Care,BVASOC,ASC Physical Support,PHY,Customer n Client Receipts,M,Fees n Charges,MB,09/03/2018,PAY01043990,PHYS,Physical Support,-576.48,Revenue,Ashton House
Brighton & Hove City Council,http://statistics.data.gov.uk/id/local-authority/00ML,Adult Social Care,BVASOC,ASC Physical Support,PHY,Third Party Payments,F,Other Establishments,FH,09/03/2018,PAY01043990,PHYS,Physical Support,7459.6,Revenue,Ashton House
Brighton & Hove City Council,http://statistics.data.gov.uk/id/local-authority/00ML,Non-BHC Organisations,BVANON,Trusts,TRT,Supplies and Services,E,Miscellaneous Expenses,EM,21/03/2018,PAY01046855,NBHC,Non Council,320,Revenue,Ashton House
Brighton & Hove City Council,http://statistics.data.gov.uk/id/local-authority/00ML,Adult Social Care,BVASOC,ASC Memory Cognition Support,MEM,Third Party Payments,F,Other Establishments,FH,09/03/2018,PAY01044195,COGN,Memory Cognition Support,3400,Revenue,Ashtonleigh Homes Ltd T/A Ashton Grange NH
Brighton & Hove City Council,http://statistics.data.gov.uk/id/local-authority/00ML,Adult Social Care,BVASOC,ASC Physical Support,PHY,Customer n Client Receipts,M,Fees n Charges,MB,09/03/2018,PAY01044200,PHYS,Physical Support,-402.6,Revenue,Askham Village Community Ltd
Brighton & Hove City Council,http://statistics.data.gov.uk/id/local-authority/00ML,Adult Social Care,BVASOC,ASC Physical Support,PHY,Third Party Payments,F,Other Establishments,FH,09/03/2018,PAY01044200,PHYS,Physical Support,5297.12,Revenue,Askham Village Community Ltd
Brighton & Hove City Council,http://statistics.data.gov.uk/id/local-authority/00ML,Adult Social Care,BVASOC,ASC Memory Cognition Support,MEM,Customer n Client Receipts,M,Fees n Charges,MB,09/03/2018,PAY01043219,COGN,Memory Cognition Support,-7480.23,Revenue,Aspen House
Brighton & Hove City Council,http://statistics.data.gov.uk/id/local-authority/00ML,Adult Social Care,BVASOC,ASC Memory Cognition Support,MEM,Third Party Payments,F,Other Establishments,FH,09/03/2018,PAY01043219,COGN,Memory Cognition Support,21420,Revenue,Aspen House
Brighton & Hove City Council,http://statistics.data.gov.uk/id/local-authority/00ML,Central Support and Overheads,BVACEN,Support Services (SSC),PPT,Premises Related,C,Repair Maint n Alterations,CA,28/03/2018,PAY01048399,PROP,Property and Design,288,Revenue,Aspen Service Ltd
Brighton & Hove City Council,http://statistics.data.gov.uk/id/local-authority/00ML,Children`s & Education Serv,BVAEDU,Child Srvcs Leaving Care,FAL,Transfer Payments,G,Other Transfer Payments,GD,21/03/2018,PAY01046370,CARL,Care Leavers,1645.68,Revenue,Asphaleia Ltd
Brighton & Hove City Council,http://statistics.data.gov.uk/id/local-authority/00ML,Adult Social Care,BVASOC,ASC Learning Disabilities,ALD,Third Party Payments,F,Other Establishments,FH,28/03/2018,PAY01048611,LDAS,Adults LD Accomodation Service,3217.5,Revenue,Aspirations Active
Brighton & Hove City Council,http://statistics.data.gov.uk/id/local-authority/00ML,Adult Social Care,BVASOC,ASC Learning Disabilities,ALD,Third Party Payments,F,Other Establishments,FH,28/03/2018,PAY01048611,LDIS,Adults LD Community Care,49034.41,Revenue,Aspirations Active
Brighton & Hove City Council,http://statistics.data.gov.uk/id/local-authority/00ML,Children`s & Education Serv,BVAEDU,Child Srvcs - Residential Svcs,FLR,Third Party Payments,F,Other Establishments,FH,07/03/2018,PAY01042907,DISS,Childrens Disability Services,15820,Revenue,Aspire Care & Education Services Ltd
Brighton & Hove City Council,http://statistics.data.gov.uk/id/local-authority/00ML,Highways and Transportation,BVAHRT,Public Transport,PTR,Transport Related,D,Public Transport,DD,21/03/2018,PAY01046378,PARK,Parking Services,400,Revenue,Associated Taxis Southwick T/A Taxilink
Brighton & Hove City Council,http://statistics.data.gov.uk/id/local-authority/00ML,Central Support and Overheads,BVACEN,Support Services (SSC),PPT,Indirect Employees,B,Recruitment Expenses,BG,29/03/2018,PAY01050047,DEMO,Democratic Services,350,Revenue,Association of Democratic Services Officers
Brighton & Hove City Council,http://statistics.data.gov.uk/id/local-authority/00ML,Central Support and Overheads,BVACEN,Support Services (SSC),PPT,Transport Related,D,Direct Transport Costs,DA,29/03/2018,PAY01049577,PROP,Property and Design,186.71,Revenue,ATS Euromaster Ltd
Brighton & Hove City Council,http://statistics.data.gov.uk/id/local-authority/00ML,Children`s & Education Serv,BVAEDU,Child Srvcs - Other Fam Supp,FFX,Transport Related,D,Direct Transport Costs,DA,29/03/2018,PAY01049577,DISS,Childrens Disability Services,123.97,Revenue,ATS Euromaster Ltd
Brighton & Hove City Council,http://statistics.data.gov.uk/id/local-authority/00ML,Children`s & Education Serv,BVAEDU,Ed Special Schools,EKK,Transport Related,D,Public Transport,DD,29/03/2018,PAY01049577,SCHL,Schools,14.27,Revenue,ATS Euromaster Ltd
Brighton & Hove City Council,http://statistics.data.gov.uk/id/local-authority/00ML,Cultural and Related Serv,BVACUL,Open Spaces,PEN,Transport Related,D,Direct Transport Costs,DA,29/03/2018,PAY01049577,CIPK,City Parks,686.75,Revenue,ATS Euromaster Ltd
Brighton & Hove City Council,http://statistics.data.gov.uk/id/local-authority/00ML,Environment & Regulatory Serv,BVAERS,Management Services (DEC),MGT,Transport Related,D,Direct Transport Costs,DA,29/03/2018,PAY01049577,CICL,City Clean,406.95,Revenue,ATS Euromaster Ltd
Brighton & Hove City Council,http://statistics.data.gov.uk/id/local-authority/00ML,Environment & Regulatory Serv,BVAERS,Street Cleansing,CLE,Transport Related,D,Direct Transport Costs,DA,29/03/2018,PAY01049577,CICL,City Clean,2822.79,Revenue,ATS Euromaster Ltd
Brighton & Hove City Council,http://statistics.data.gov.uk/id/local-authority/00ML,Environment & Regulatory Serv,BVAERS,Waste Management,WMT,Transport Related,D,Direct Transport Costs,DA,29/03/2018,PAY01049577,CICL,City Clean,10169.74,Revenue,ATS Euromaster Ltd
Brighton & Hove City Council,http://statistics.data.gov.uk/id/local-authority/00ML,Highways and Transportation,BVAHRT,Highways and Roads - Mntnce,HRM,Transport Related,D,Direct Transport Costs,DA,29/03/2018,PAY01049577,TPRS,Transport Projects and Eng,243.66,Revenue,ATS Euromaster Ltd
Brighton & Hove City Council,http://statistics.data.gov.uk/id/local-authority/00ML,Highways and Transportation,BVAHRT,Parking Services,PRK,Transport Related,D,Direct Transport Costs,DA,29/03/2018,PAY01049577,PARK,Parking Services,65.63,Revenue,ATS Euromaster Ltd
Brighton & Hove City Council,http://statistics.data.gov.uk/id/local-authority/00ML,Adult Social Care,BVASOC,ASC Learning Disabilities,ALD,Customer n Client Receipts,M,Fees n Charges,MB,09/03/2018,PAY01044240,LDIS,Adults LD Community Care,-402.6,Revenue,Auckland Care Ltd
Brighton & Hove City Council,http://statistics.data.gov.uk/id/local-authority/00ML,Adult Social Care,BVASOC,ASC Learning Disabilities,ALD,Third Party Payments,F,Other Establishments,FH,09/03/2018,PAY01044240,LDIS,Adults LD Community Care,4316.64,Revenue,Auckland Care Ltd
Brighton & Hove City Council,http://statistics.data.gov.uk/id/local-authority/00ML,Planning and Development,BVAPLA,Economic Development,ECD,Supplies and Services,E,Grants n Subscriptions,EK,02/03/2018,PAY01042078,CMNY,Communities and Equalities,2000,Revenue,Autism Support & Awareness Promotion (ASAP)
Brighton & Hove City Council,http://statistics.data.gov.uk/id/local-authority/00ML,Adult Social Care,BVASOC,ASC Learning Disabilities,ALD,Customer n Client Receipts,M,Fees n Charges,MB,09/03/2018,PAY01043571,LDIS,Adults LD Community Care,-1514.6,Revenue,Autism Sussex Ltd
Brighton & Hove City Council,http://statistics.data.gov.uk/id/local-authority/00ML,Adult Social Care,BVASOC,ASC Learning Disabilities,ALD,Third Party Payments,F,Other Establishments,FH,09/03/2018,PAY01043571,LDIS,Adults LD Community Care,24697.6,Revenue,Autism Sussex Ltd
Brighton & Hove City Council,http://statistics.data.gov.uk/id/local-authority/00ML,Adult Social Care,BVASOC,ASC Learning Disabilities,ALD,Customer n Client Receipts,M,Fees n Charges,MB,14/03/2018,PAY01044610,LDIS,Adults LD Community Care,-208,Revenue,Autism Sussex Ltd
Brighton & Hove City Council,http://statistics.data.gov.uk/id/local-authority/00ML,Adult Social Care,BVASOC,ASC Learning Disabilities,ALD,Third Party Payments,F,Other Establishments,FH,14/03/2018,PAY01044610,LDIS,Adults LD Community Care,1090.5,Revenue,Autism Sussex Ltd
Brighton & Hove City Council,http://statistics.data.gov.uk/id/local-authority/00ML,Adult Social Care,BVASOC,ASC Mental Health Support,MHP,Customer n Client Receipts,M,Fees n Charges,MB,14/03/2018,PAY01044610,MENH,Mental Health Support,-270,Revenue,Autism Sussex Ltd
Brighton & Hove City Council,http://statistics.data.gov.uk/id/local-authority/00ML,Adult Social Care,BVASOC,ASC Mental Health Support,MHP,Third Party Payments,F,Other Establishments,FH,14/03/2018,PAY01044610,MENH,Mental Health Support,1401.75,Revenue,Autism Sussex Ltd
Brighton & Hove City Council,http://statistics.data.gov.uk/id/local-authority/00ML,Adult Social Care,BVASOC,ASC Physical Support,PHY,Third Party Payments,F,Other Establishments,FH,14/03/2018,PAY01044610,PHYS,Physical Support,123.75,Revenue,Autism Sussex Ltd
Brighton & Hove City Council,http://statistics.data.gov.uk/id/local-authority/00ML,Adult Social Care,BVASOC,ASC Learning Disabilities,ALD,Third Party Payments,F,Other Establishments,FH,21/03/2018,PAY01046571,LDIS,Adults LD Community Care,1420,Revenue,Autism Sussex Ltd
Brighton & Hove City Council,http://statistics.data.gov.uk/id/local-authority/00ML,Adult Social Care,BVASOC,ASC Learning Disabilities,ALD,Customer n Client Receipts,M,Fees n Charges,MB,23/03/2018,PAY01047566,LDIS,Adults LD Community Care,-195,Revenue,Autism Sussex Ltd
Brighton & Hove City Council,http://statistics.data.gov.uk/id/local-authority/00ML,Adult Social Care,BVASOC,ASC Learning Disabilities,ALD,Third Party Payments,F,Other Establishments,FH,23/03/2018,PAY01047566,LDIS,Adults LD Community Care,6844.35,Revenue,Autism Sussex Ltd
Brighton & Hove City Council,http://statistics.data.gov.uk/id/local-authority/00ML,Adult Social Care,BVASOC,ASC Mental Health Support,MHP,Third Party Payments,F,Other Establishments,FH,23/03/2018,PAY01047566,MENH,Mental Health Support,264,Revenue,Autism Sussex Ltd
Brighton & Hove City Council,http://statistics.data.gov.uk/id/local-authority/00ML,Adult Social Care,BVASOC,ASC Physical Support,PHY,Third Party Payments,F,Other Establishments,FH,23/03/2018,PAY01047566,PHYS,Physical Support,214.5,Revenue,Autism Sussex Ltd
Brighton & Hove City Council,http://statistics.data.gov.uk/id/local-authority/00ML,Adult Social Care,BVASOC,ASC Learning Disabilities,ALD,Third Party Payments,F,Other Establishments,FH,28/03/2018,PAY01048616,LDIS,Adults LD Community Care,264,Revenue,Autism Sussex Ltd
Brighton & Hove City Council,http://statistics.data.gov.uk/id/local-authority/00ML,Adult Social Care,BVASOC,ASC Mental Health Support,MHP,Customer n Client Receipts,M,Fees n Charges,MB,28/03/2018,PAY01048616,MENH,Mental Health Support,-134,Revenue,Autism Sussex Ltd
Brighton & Hove City Council,http://statistics.data.gov.uk/id/local-authority/00ML,Adult Social Care,BVASOC,ASC Mental Health Support,MHP,Third Party Payments,F,Other Establishments,FH,28/03/2018,PAY01048616,MENH,Mental Health Support,1045.25,Revenue,Autism Sussex Ltd
Brighton & Hove City Council,http://statistics.data.gov.uk/id/local-authority/00ML,Adult Social Care,BVASOC,ASC Physical Support,PHY,Third Party Payments,F,Other Establishments,FH,28/03/2018,PAY01048616,PHYS,Physical Support,643.5,Revenue,Autism Sussex Ltd
Brighton & Hove City Council,http://statistics.data.gov.uk/id/local-authority/00ML,Cultural and Related Serv,BVACUL,Culture and Heritage,CHG,Supplies and Services,E,Services,EF,14/03/2018,PAY01045113,RPMU,Royal Pavilion and Museums,22825,Revenue,Autograph ABP
Brighton & Hove City Council,http://statistics.data.gov.uk/id/local-authority/00ML,Environment & Regulatory Serv,BVAERS,Environmental Health,EVH,Premises Related,C,Repair Maint n Alterations,CA,09/03/2018,PAY01044023,HIGH,Traffic Management,2660,Revenue,Automobile Association Developments Ltd
Brighton & Hove City Council,http://statistics.data.gov.uk/id/local-authority/00ML,Cultural and Related Serv,BVACUL,Culture and Heritage,CHG,Supplies and Services,E,Equip't Furniture n Materials,EA,16/03/2018,PAY01046016,RPMU,Royal Pavilion and Museums,251,Revenue,Automobile Association Developments Ltd
Brighton & Hove City Council,http://statistics.data.gov.uk/id/local-authority/00ML,Public Health,BVAPHE,Community Safety,CMY,Third Party Payments,F,Other Establishments,FH,28/03/2018,PAY01048641,CSTP,Comm Safety Team & Partnership,10000,Revenue,AVA - Against Violence & Abuse
Brighton & Hove City Council,http://statistics.data.gov.uk/id/local-authority/00ML,Adult Social Care,BVASOC,ASC Memory Cognition Support,MEM,Customer n Client Receipts,M,Fees n Charges,MB,09/03/2018,PAY01044106,COGN,Memory Cognition Support,-525.8,Revenue,Avery Healthcare Ltd (Birchwood Grange Care Home)
Brighton & Hove City Council,http://statistics.data.gov.uk/id/local-authority/00ML,Adult Social Care,BVASOC,ASC Memory Cognition Support,MEM,Third Party Payments,F,Other Establishments,FH,09/03/2018,PAY01044106,COGN,Memory Cognition Support,3577,Revenue,Avery Healthcare Ltd (Birchwood Grange Care Home)
Brighton & Hove City Council,http://statistics.data.gov.uk/id/local-authority/00ML,Adult Social Care,BVASOC,ASC Physical Support,PHY,Customer n Client Receipts,M,Fees n Charges,MB,09/03/2018,PAY01044106,PHYS,Physical Support,-402.6,Revenue,Avery Healthcare Ltd (Birchwood Grange Care Home)
Brighton & Hove City Council,http://statistics.data.gov.uk/id/local-authority/00ML,Adult Social Care,BVASOC,ASC Physical Support,PHY,Third Party Payments,F,Other Establishments,FH,09/03/2018,PAY01044106,PHYS,Physical Support,2172,Revenue,Avery Healthcare Ltd (Birchwood Grange Care Home)
Brighton & Hove City Council,http://statistics.data.gov.uk/id/local-authority/00ML,Central Support and Overheads,BVACEN,Support Services (SSC),PPT,Supplies and Services,E,Miscellaneous Expenses,EM,21/03/2018,PAY01046421,ICTA,ICT,1062.5,Revenue,Aviation Projects Ltd
Brighton & Hove City Council,http://statistics.data.gov.uk/id/local-authority/00ML,Housing Revenue Account,BVAHOU,Hsing Management - HRA,HGM,Premises Related,C,Rents Payable,CC,29/03/2018,PAY01050018,HPAI,Property & Investment,45000,Revenue,Aviva Investors Global Services Ltd
Brighton & Hove City Council,http://statistics.data.gov.uk/id/local-authority/00ML,Housing Revenue Account,BVAHOU,Hsing Management - HRA,HGM,Premises Related,C,Repair Maint n Alterations,CA,29/03/2018,PAY01050018,HPAI,Property & Investment,2945.54,Revenue,Aviva Investors Global Services Ltd
Brighton & Hove City Council,http://statistics.data.gov.uk/id/local-authority/00ML,Housing General Fund,BVAHOG,Homelessness,HML,Premises Related,C,Rents Payable,CC,07/03/2018,PAY01042301,TAAS,Temp Accom and Allocations,1100,Revenue,Avon Estates (London) Ltd
Brighton & Hove City Council,http://statistics.data.gov.uk/id/local-authority/00ML,Children`s & Education Serv,BVAEDU,Child Srvcs Leaving Care,FAL,Transfer Payments,G,Other Transfer Payments,GD,16/03/2018,PAY01046111,CARL,Care Leavers,1199.55,Revenue,Avtar Properties
Brighton & Hove City Council,http://statistics.data.gov.uk/id/local-authority/00ML,Children`s & Education Serv,BVAEDU,Child Srvcs Leaving Care,FAL,Transfer Payments,G,Other Transfer Payments,GD,23/03/2018,PAY01048046,CARL,Care Leavers,400,Revenue,Avtar Properties
Brighton & Hove City Council,http://statistics.data.gov.uk/id/local-authority/00ML,Central Support and Overheads,BVACEN,Support Services (SSC),PPT,Supplies and Services,E,Services,EF,21/03/2018,PAY01046452,ICTA,ICT,4200,Revenue,AWCFA Limited
Brighton & Hove City Council,http://statistics.data.gov.uk/id/local-authority/00ML,Adult Social Care,BVASOC,ASC Physical Support,PHY,Customer n Client Receipts,M,Fees n Charges,MB,09/03/2018,PAY01043565,PHYS,Physical Support,-343.8,Revenue,B & J G Richardson Business Account
Brighton & Hove City Council,http://statistics.data.gov.uk/id/local-authority/00ML,Adult Social Care,BVASOC,ASC Physical Support,PHY,Third Party Payments,F,Other Establishments,FH,09/03/2018,PAY01043565,PHYS,Physical Support,5459.64,Revenue,B & J G Richardson Business Account
Brighton & Hove City Council,http://statistics.data.gov.uk/id/local-authority/00ML,Housing General Fund,BVAHOG,Homelessness,HML,Premises Related,C,Repair Maint n Alterations,CA,29/03/2018,PAY01049492,TAAS,Temp Accom and Allocations,193.79,Revenue,B & Q Plc
Brighton & Hove City Council,http://statistics.data.gov.uk/id/local-authority/00ML,Non I&E,BVANON,CAP Social Services,4RV,Plant Machinery n Equipment,PE2,Plant Machinery n Equipment,PE2L5,29/03/2018,PAY01049492,ASIT,Assessment and SIT,91.65,Capital,B & Q Plc
Brighton & Hove City Council,http://statistics.data.gov.uk/id/local-authority/00ML,Planning and Development,BVAPLA,Community Development,CDV,Premises Related,C,Rents Payable,CC,02/03/2018,PAY01042058,CMNY,Communities and Equalities,450,Revenue,B Right on LGBT Community Festival
Brighton & Hove City Council,http://statistics.data.gov.uk/id/local-authority/00ML,Children`s & Education Serv,BVAEDU,Ed Mgmt and Support Services,EMG,Supplies and Services,E,Services,EF,02/03/2018,PAY01041580,SACH,Standards and Achievement,778,Revenue,Babcock Learning Development Partnership LLP
Brighton & Hove City Council,http://statistics.data.gov.uk/id/local-authority/00ML,Children`s & Education Serv,BVAEDU,Ed EY PVI,ENP,Supplies and Services,E,Grants n Subscriptions,EK,07/03/2018,PAY01042334,EYRS,Early Years,5701,Revenue,Baby Ducks Playgroup
Brighton & Hove City Council,http://statistics.data.gov.uk/id/local-authority/00ML,Non I&E,BVANON,Cap - Housing Services - HRA,4HR,New Construction n Conversion,PB,New Construction n Conversion,PBL5,28/03/2018,PAY01048486,HPAI,Property & Investment,987,Capital,Bailey Partnership
Brighton & Hove City Council,http://statistics.data.gov.uk/id/local-authority/00ML,Adult Social Care,BVASOC,ASC Learning Disabilities,ALD,Customer n Client Receipts,M,Fees n Charges,MB,09/03/2018,PAY01043701,LDIS,Adults LD Community Care,-323,Revenue,Ballater House
Brighton & Hove City Council,http://statistics.data.gov.uk/id/local-authority/00ML,Adult Social Care,BVASOC,ASC Learning Disabilities,ALD,Third Party Payments,F,Other Establishments,FH,09/03/2018,PAY01043701,LDIS,Adults LD Community Care,8157,Revenue,Ballater House
Brighton & Hove City Council,http://statistics.data.gov.uk/id/local-authority/00ML,Adult Social Care,BVASOC,ASC Mental Health Support,MHP,Third Party Payments,F,Other Establishments,FH,16/03/2018,PAY01045746,MENH,Mental Health Support,27648,Revenue,Ballater House
Brighton & Hove City Council,http://statistics.data.gov.uk/id/local-authority/00ML,Central Support and Overheads,BVACEN,Support Services (SSC),PPT,Supplies and Services,E,Equip't Furniture n Materials,EA,29/03/2018,PAY01049481,LEGS,Legal Services,391.92,Revenue,Ballpoint Office Supplies Ltd
Brighton & Hove City Council,http://statistics.data.gov.uk/id/local-authority/00ML,Central Support and Overheads,BVACEN,Support Services (SSC),PPT,Premises Related,C,Repair Maint n Alterations,CA,16/03/2018,PAY01045956,PROP,Property and Design,10717,Revenue,Banyard Maintenance Ltd
Brighton & Hove City Council,http://statistics.data.gov.uk/id/local-authority/00ML,Children`s & Education Serv,BVAEDU,Ed Ed Other Other,ENF,Premises Related,C,Repair Maint n Alterations,CA,21/03/2018,PAY01046835,PROP,Property and Design,11000,Revenue,Banyard Maintenance Ltd
Brighton & Hove City Council,http://statistics.data.gov.uk/id/local-authority/00ML,Children`s & Education Serv,BVAEDU,Ed Ed Other Other,ENF,Premises Related,C,Repair Maint n Alterations,CA,21/03/2018,PAY01046835,SCOR,School Organisation,350,Revenue,Banyard Maintenance Ltd
Brighton & Hove City Council,http://statistics.data.gov.uk/id/local-authority/00ML,Non I&E,BVANON,CAP Education Services,4ED,New Construction n Conversion,PB,New Construction n Conversion,PBL5,21/03/2018,PAY01046835,OEDS,Other Education Support,235,Capital,Banyard Maintenance Ltd
Brighton & Hove City Council,http://statistics.data.gov.uk/id/local-authority/00ML,Non I&E,BVANON,CAP Education Services,4ED,New Construction n Conversion,PB,New Construction n Conversion,PBL5,23/03/2018,PAY01047899,OEDS,Other Education Support,12700,Capital,Banyard Maintenance Ltd
Brighton & Hove City Council,http://statistics.data.gov.uk/id/local-authority/00ML,Central Support and Overheads,BVACEN,Holding Accounts,PPH,Premises Related,C,Repair Maint n Alterations,CA,28/03/2018,PAY01048913,PROP,Property and Design,2579,Revenue,Banyard Maintenance Ltd
Brighton & Hove City Council,http://statistics.data.gov.uk/id/local-authority/00ML,Children`s & Education Serv,BVAEDU,Ed Ed Other Other,ENF,Premises Related,C,Repair Maint n Alterations,CA,29/03/2018,PAY01050358,PROP,Property and Design,771.5,Revenue,Banyard Maintenance Ltd
Brighton & Hove City Council,http://statistics.data.gov.uk/id/local-authority/00ML,Cultural and Related Serv,BVACUL,Culture and Heritage,CHG,Supplies and Services,E,Services,EF,28/03/2018,PAY01048391,RPMU,Royal Pavilion and Museums,4100,Revenue,Baqus Group Plc t/a Baqus Boxall Sayer 
Brighton & Hove City Council,http://statistics.data.gov.uk/id/local-authority/00ML,Adult Social Care,BVASOC,ASC Memory Cognition Support,MEM,Third Party Payments,F,Other Establishments,FH,09/03/2018,PAY01043373,COGN,Memory Cognition Support,3532,Revenue,Barchester Healthcare Ltd (Kingsland House)
Brighton & Hove City Council,http://statistics.data.gov.uk/id/local-authority/00ML,Adult Social Care,BVASOC,ASC Physical Support,PHY,Customer n Client Receipts,M,Fees n Charges,MB,09/03/2018,PAY01043373,PHYS,Physical Support,-1113.8,Revenue,Barchester Healthcare Ltd (Kingsland House)
Brighton & Hove City Council,http://statistics.data.gov.uk/id/local-authority/00ML,Adult Social Care,BVASOC,ASC Physical Support,PHY,Third Party Payments,F,Other Establishments,FH,09/03/2018,PAY01043373,PHYS,Physical Support,2800,Revenue,Barchester Healthcare Ltd (Kingsland House)
Brighton & Hove City Council,http://statistics.data.gov.uk/id/local-authority/00ML,Adult Social Care,BVASOC,ASC Memory Cognition Support,MEM,Third Party Payments,F,Other Establishments,FH,09/03/2018,PAY01043346,COGN,Memory Cognition Support,5179.8,Revenue,Barchester Healthcare Ltd (Red Oaks Care Home)
Brighton & Hove City Council,http://statistics.data.gov.uk/id/local-authority/00ML,Adult Social Care,BVASOC,ASC Physical Support,PHY,Customer n Client Receipts,M,Fees n Charges,MB,09/03/2018,PAY01043346,PHYS,Physical Support,-5500,Revenue,Barchester Healthcare Ltd (Red Oaks Care Home)
Brighton & Hove City Council,http://statistics.data.gov.uk/id/local-authority/00ML,Adult Social Care,BVASOC,ASC Physical Support,PHY,Third Party Payments,F,Other Establishments,FH,09/03/2018,PAY01043346,PHYS,Physical Support,5500,Revenue,Barchester Healthcare Ltd (Red Oaks Care Home)
Brighton & Hove City Council,http://statistics.data.gov.uk/id/local-authority/00ML,Environment & Regulatory Serv,BVAERS,Cem Crem and Mortuary Services,CCM,Supplies and Services,E,Goods for Resale,EG,21/03/2018,PAY01046933,BERE,Bereavement,365.64,Revenue,Barleylands Glassworks Ltd t/a Ashes Into Glass
Brighton & Hove City Council,http://statistics.data.gov.uk/id/local-authority/00ML,Children`s & Education Serv,BVAEDU,Child Srvcs Leaving Care,FAL,Transfer Payments,G,Other Transfer Payments,GD,16/03/2018,PAY01045464,CARL,Care Leavers,2516.82,Revenue,Barnardo`s
Brighton & Hove City Council,http://statistics.data.gov.uk/id/local-authority/00ML,Children`s & Education Serv,BVAEDU,Child Srvcs - Othr LAC Svcs,FLX,Transfer Payments,G,Other Transfer Payments,GD,16/03/2018,PAY01045464,AVFM,Agency Placements\VFM,1386,Revenue,Barnardo`s
Brighton & Hove City Council,http://statistics.data.gov.uk/id/local-authority/00ML,Children`s & Education Serv,BVAEDU,Child Srvcs Asylum Seekers,FAY,Transfer Payments,G,Other Transfer Payments,GD,21/03/2018,PAY01046386,AVFM,Agency Placements\VFM,171.43,Revenue,Barnardo`s
Brighton & Hove City Council,http://statistics.data.gov.uk/id/local-authority/00ML,Children`s & Education Serv,BVAEDU,Child Srvcs - Othr LAC Svcs,FLX,Transfer Payments,G,Other Transfer Payments,GD,21/03/2018,PAY01046386,AVFM,Agency Placements\VFM,600,Revenue,Barnardo`s
Brighton & Hove City Council,http://statistics.data.gov.uk/id/local-authority/00ML,Children`s & Education Serv,BVAEDU,Child Srvcs Leaving Care,FAL,Transfer Payments,G,Other Transfer Payments,GD,23/03/2018,PAY01047355,CARL,Care Leavers,2607.67,Revenue,Barnardo`s
Brighton & Hove City Council,http://statistics.data.gov.uk/id/local-authority/00ML,Children`s & Education Serv,BVAEDU,Child Srvcs - Other Fam Supp,FFX,Transfer Payments,G,Other Transfer Payments,GD,23/03/2018,PAY01047355,DISS,Childrens Disability Services,837.5,Revenue,Barnardo`s
Brighton & Hove City Council,http://statistics.data.gov.uk/id/local-authority/00ML,Children`s & Education Serv,BVAEDU,Child Srvcs - Othr LAC Svcs,FLX,Transfer Payments,G,Other Transfer Payments,GD,23/03/2018,PAY01047355,AVFM,Agency Placements\VFM,1018.29,Revenue,Barnardo`s
Brighton & Hove City Council,http://statistics.data.gov.uk/id/local-authority/00ML,Children`s & Education Serv,BVAEDU,Child Srvcs - Fostering,FLF,Third Party Payments,F,Other Establishments,FH,28/03/2018,PAY01048408,AVFM,Agency Placements\VFM,7824.4,Revenue,Barnardo`s
Brighton & Hove City Council,http://statistics.data.gov.uk/id/local-authority/00ML,Children`s & Education Serv,BVAEDU,Child Srvcs - Othr LAC Svcs,FLX,Transfer Payments,G,Other Transfer Payments,GD,29/03/2018,PAY01049470,AVFM,Agency Placements\VFM,664.28,Revenue,Barnardo`s
Brighton & Hove City Council,http://statistics.data.gov.uk/id/local-authority/00ML,Central Support and Overheads,BVACEN,Holding Accounts,PPH,Transport Related,D,Direct Transport Costs,DA,23/03/2018,PAY01047368,CICL,City Clean,198,Revenue,Barnes DAF
Brighton & Hove City Council,http://statistics.data.gov.uk/id/local-authority/00ML,Environment & Regulatory Serv,BVAERS,Management Services (DEC),MGT,Transport Related,D,Direct Transport Costs,DA,23/03/2018,PAY01047368,CICL,City Clean,182,Revenue,Barnes DAF
Brighton & Hove City Council,http://statistics.data.gov.uk/id/local-authority/00ML,Environment & Regulatory Serv,BVAERS,Management Services (DEC),MGT,Transport Related,D,Direct Transport Costs,DA,28/03/2018,PAY01048427,CICL,City Clean,430.95,Revenue,Barnes DAF
Brighton & Hove City Council,http://statistics.data.gov.uk/id/local-authority/00ML,Housing General Fund,BVAHOG,Homelessness,HML,Premises Related,C,Rents Payable,CC,02/03/2018,PAY01041418,TAAS,Temp Accom and Allocations,847.32,Revenue,Baron Developments Ltd
Brighton & Hove City Council,http://statistics.data.gov.uk/id/local-authority/00ML,Housing General Fund,BVAHOG,Homelessness,HML,Premises Related,C,Rents Payable,CC,07/03/2018,PAY01042659,TAAS,Temp Accom and Allocations,3569.78,Revenue,Baron Developments Ltd
Brighton & Hove City Council,http://statistics.data.gov.uk/id/local-authority/00ML,Housing General Fund,BVAHOG,Homelessness,HML,Premises Related,C,Rents Payable,CC,14/03/2018,PAY01044817,TAAS,Temp Accom and Allocations,2541.96,Revenue,Baron Developments Ltd
Brighton & Hove City Council,http://statistics.data.gov.uk/id/local-authority/00ML,Housing General Fund,BVAHOG,Homelessness,HML,Premises Related,C,Rents Payable,CC,16/03/2018,PAY01045871,TAAS,Temp Accom and Allocations,1875.14,Revenue,Baron Developments Ltd
Brighton & Hove City Council,http://statistics.data.gov.uk/id/local-authority/00ML,Housing General Fund,BVAHOG,Homelessness,HML,Premises Related,C,Rents Payable,CC,21/03/2018,PAY01046754,TAAS,Temp Accom and Allocations,847.32,Revenue,Baron Developments Ltd
Brighton & Hove City Council,http://statistics.data.gov.uk/id/local-authority/00ML,Housing General Fund,BVAHOG,Homelessness,HML,Premises Related,C,Rents Payable,CC,23/03/2018,PAY01047807,TAAS,Temp Accom and Allocations,847.32,Revenue,Baron Developments Ltd
Brighton & Hove City Council,http://statistics.data.gov.uk/id/local-authority/00ML,Housing General Fund,BVAHOG,Homelessness,HML,Premises Related,C,Rents Payable,CC,28/03/2018,PAY01048820,TAAS,Temp Accom and Allocations,2541.96,Revenue,Baron Developments Ltd
Brighton & Hove City Council,http://statistics.data.gov.uk/id/local-authority/00ML,Housing General Fund,BVAHOG,Homelessness,HML,Premises Related,C,Rents Payable,CC,29/03/2018,PAY01050163,TAAS,Temp Accom and Allocations,847.32,Revenue,Baron Developments Ltd
Brighton & Hove City Council,http://statistics.data.gov.uk/id/local-authority/00ML,Housing General Fund,BVAHOG,Homelessness,HML,Premises Related,C,Rents Payable,CC,02/03/2018,PAY01041052,TAAS,Temp Accom and Allocations,847.32,Revenue,Baron Management Ltd
Brighton & Hove City Council,http://statistics.data.gov.uk/id/local-authority/00ML,Housing General Fund,BVAHOG,Homelessness,HML,Premises Related,C,Rents Payable,CC,07/03/2018,PAY01042463,TAAS,Temp Accom and Allocations,847.32,Revenue,Baron Management Ltd
Brighton & Hove City Council,http://statistics.data.gov.uk/id/local-authority/00ML,Housing General Fund,BVAHOG,Homelessness,HML,Premises Related,C,Rents Payable,CC,09/03/2018,PAY01043622,TAAS,Temp Accom and Allocations,2817.67,Revenue,Baron Management Ltd
Brighton & Hove City Council,http://statistics.data.gov.uk/id/local-authority/00ML,Housing General Fund,BVAHOG,Homelessness,HML,Premises Related,C,Rents Payable,CC,14/03/2018,PAY01044649,TAAS,Temp Accom and Allocations,12403.98,Revenue,Baron Management Ltd
Brighton & Hove City Council,http://statistics.data.gov.uk/id/local-authority/00ML,Housing General Fund,BVAHOG,Homelessness,HML,Premises Related,C,Repair Maint n Alterations,CA,14/03/2018,PAY01044649,TAAS,Temp Accom and Allocations,90,Revenue,Baron Management Ltd
Brighton & Hove City Council,http://statistics.data.gov.uk/id/local-authority/00ML,Housing General Fund,BVAHOG,Homelessness,HML,Premises Related,C,Rents Payable,CC,16/03/2018,PAY01045697,TAAS,Temp Accom and Allocations,1027.82,Revenue,Baron Management Ltd
Brighton & Hove City Council,http://statistics.data.gov.uk/id/local-authority/00ML,Housing General Fund,BVAHOG,Homelessness,HML,Premises Related,C,Rents Payable,CC,23/03/2018,PAY01047604,TAAS,Temp Accom and Allocations,847.32,Revenue,Baron Management Ltd
Brighton & Hove City Council,http://statistics.data.gov.uk/id/local-authority/00ML,Housing General Fund,BVAHOG,Homelessness,HML,Premises Related,C,Rents Payable,CC,29/03/2018,PAY01049775,TAAS,Temp Accom and Allocations,847.32,Revenue,Baron Management Ltd
Brighton & Hove City Council,http://statistics.data.gov.uk/id/local-authority/00ML,Housing General Fund,BVAHOG,Homelessness,HML,Premises Related,C,Rents Payable,CC,09/03/2018,PAY01044120,TAAS,Temp Accom and Allocations,3128.4,Revenue,Barons Bay Limited
Brighton & Hove City Council,http://statistics.data.gov.uk/id/local-authority/00ML,Adult Social Care,BVASOC,ASC Physical Support,PHY,Customer n Client Receipts,M,Fees n Charges,MB,09/03/2018,PAY01043192,PHYS,Physical Support,-888.8,Revenue,Barons Down Nursing Home
Brighton & Hove City Council,http://statistics.data.gov.uk/id/local-authority/00ML,Adult Social Care,BVASOC,ASC Physical Support,PHY,Third Party Payments,F,Other Establishments,FH,09/03/2018,PAY01043192,PHYS,Physical Support,5959.6,Revenue,Barons Down Nursing Home
Brighton & Hove City Council,http://statistics.data.gov.uk/id/local-authority/00ML,Adult Social Care,BVASOC,ASC Learning Disabilities,ALD,Customer n Client Receipts,M,Fees n Charges,MB,09/03/2018,PAY01043498,LDIS,Adults LD Community Care,-537.8,Revenue,Barrington House Ltd
Brighton & Hove City Council,http://statistics.data.gov.uk/id/local-authority/00ML,Adult Social Care,BVASOC,ASC Learning Disabilities,ALD,Third Party Payments,F,Other Establishments,FH,09/03/2018,PAY01043498,LDIS,Adults LD Community Care,1656,Revenue,Barrington House Ltd
Brighton & Hove City Council,http://statistics.data.gov.uk/id/local-authority/00ML,Highways and Transportation,BVAHRT,Highways and Roads - Mntnce,HRM,Supplies and Services,E,Communications n Computing,EH,21/03/2018,PAY01046635,HIGH,Traffic Management,4250,Revenue,Basemap Limited
Brighton & Hove City Council,http://statistics.data.gov.uk/id/local-authority/00ML,Central Support and Overheads,BVACEN,Support Services (SSC),PPT,Supplies and Services,E,Services,EF,21/03/2018,PAY01046624,LEGS,Legal Services,4380,Revenue,Bates Wells & Braithwaite London LLP
Brighton & Hove City Council,http://statistics.data.gov.uk/id/local-authority/00ML,Non I&E,BVANON,CAP Mgmnt and Suppt Services,4PT,Plant Machinery n Equipment,PE2,Plant Machinery n Equipment,PE2L5,29/03/2018,PAY01049529,DIGF,Digital First,11000,Capital,Bay Media Ltd
Brighton & Hove City Council,http://statistics.data.gov.uk/id/local-authority/00ML,Central Support and Overheads,BVACEN,Support Services (SSC),PPT,Supplies and Services,E,Miscellaneous Expenses,EM,02/03/2018,PAY01041621,FINS,Financial Services,3450,Revenue,BDI Securities UK Ltd
Brighton & Hove City Council,http://statistics.data.gov.uk/id/local-authority/00ML,Cultural and Related Serv,BVACUL,Culture and Heritage,CHG,Supplies and Services,E,Miscellaneous Expenses,EM,02/03/2018,PAY01041621,RPMU,Royal Pavilion and Museums,640,Revenue,BDI Securities UK Ltd
Brighton & Hove City Council,http://statistics.data.gov.uk/id/local-authority/00ML,Highways and Transportation,BVAHRT,Parking Services,PRK,Customer n Client Receipts,M,Fees n Charges,MB,02/03/2018,PAY01041621,PARK,Parking Services,350,Revenue,BDI Securities UK Ltd
Brighton & Hove City Council,http://statistics.data.gov.uk/id/local-authority/00ML,Central Support and Overheads,BVACEN,Support Services (SSC),PPT,Supplies and Services,E,Miscellaneous Expenses,EM,09/03/2018,PAY01043972,FINS,Financial Services,3700,Revenue,BDI Securities UK Ltd
Brighton & Hove City Council,http://statistics.data.gov.uk/id/local-authority/00ML,Cultural and Related Serv,BVACUL,Culture and Heritage,CHG,Supplies and Services,E,Miscellaneous Expenses,EM,09/03/2018,PAY01043972,RPMU,Royal Pavilion and Museums,640,Revenue,BDI Securities UK Ltd
Brighton & Hove City Council,http://statistics.data.gov.uk/id/local-authority/00ML,Highways and Transportation,BVAHRT,Parking Services,PRK,Customer n Client Receipts,M,Fees n Charges,MB,09/03/2018,PAY01043972,PARK,Parking Services,350,Revenue,BDI Securities UK Ltd
Brighton & Hove City Council,http://statistics.data.gov.uk/id/local-authority/00ML,Non-BHC Organisations,BVANON,Trusts,TRT,Supplies and Services,E,Miscellaneous Expenses,EM,09/03/2018,PAY01043972,NBHC,Non Council,750,Revenue,BDI Securities UK Ltd
Brighton & Hove City Council,http://statistics.data.gov.uk/id/local-authority/00ML,Central Support and Overheads,BVACEN,Support Services (SSC),PPT,Supplies and Services,E,Services,EF,14/03/2018,PAY01044908,FINS,Financial Services,12597.62,Revenue,BDI Securities UK Ltd
Brighton & Hove City Council,http://statistics.data.gov.uk/id/local-authority/00ML,Central Support and Overheads,BVACEN,Support Services (SSC),PPT,Supplies and Services,E,Miscellaneous Expenses,EM,16/03/2018,PAY01045972,FINS,Financial Services,4000,Revenue,BDI Securities UK Ltd
Brighton & Hove City Council,http://statistics.data.gov.uk/id/local-authority/00ML,Cultural and Related Serv,BVACUL,Culture and Heritage,CHG,Supplies and Services,E,Miscellaneous Expenses,EM,16/03/2018,PAY01045972,RPMU,Royal Pavilion and Museums,640,Revenue,BDI Securities UK Ltd
Brighton & Hove City Council,http://statistics.data.gov.uk/id/local-authority/00ML,Highways and Transportation,BVAHRT,Parking Services,PRK,Customer n Client Receipts,M,Fees n Charges,MB,16/03/2018,PAY01045972,PARK,Parking Services,350,Revenue,BDI Securities UK Ltd
Brighton & Hove City Council,http://statistics.data.gov.uk/id/local-authority/00ML,Central Support and Overheads,BVACEN,Support Services (SSC),PPT,Supplies and Services,E,Miscellaneous Expenses,EM,23/03/2018,PAY01047910,FINS,Financial Services,3900,Revenue,BDI Securities UK Ltd
Brighton & Hove City Council,http://statistics.data.gov.uk/id/local-authority/00ML,Cultural and Related Serv,BVACUL,Culture and Heritage,CHG,Supplies and Services,E,Miscellaneous Expenses,EM,23/03/2018,PAY01047910,RPMU,Royal Pavilion and Museums,640,Revenue,BDI Securities UK Ltd
Brighton & Hove City Council,http://statistics.data.gov.uk/id/local-authority/00ML,Highways and Transportation,BVAHRT,Parking Services,PRK,Customer n Client Receipts,M,Fees n Charges,MB,23/03/2018,PAY01047910,PARK,Parking Services,350,Revenue,BDI Securities UK Ltd
Brighton & Hove City Council,http://statistics.data.gov.uk/id/local-authority/00ML,Non-BHC Organisations,BVANON,Trusts,TRT,Supplies and Services,E,Miscellaneous Expenses,EM,23/03/2018,PAY01047910,NBHC,Non Council,1500,Revenue,BDI Securities UK Ltd
Brighton & Hove City Council,http://statistics.data.gov.uk/id/local-authority/00ML,Central Support and Overheads,BVACEN,Support Services (SSC),PPT,Supplies and Services,E,Miscellaneous Expenses,EM,29/03/2018,PAY01050387,FINS,Financial Services,1950,Revenue,BDI Securities UK Ltd
Brighton & Hove City Council,http://statistics.data.gov.uk/id/local-authority/00ML,Cultural and Related Serv,BVACUL,Culture and Heritage,CHG,Supplies and Services,E,Miscellaneous Expenses,EM,29/03/2018,PAY01050387,RPMU,Royal Pavilion and Museums,640,Revenue,BDI Securities UK Ltd
Brighton & Hove City Council,http://statistics.data.gov.uk/id/local-authority/00ML,Cultural and Related Serv,BVACUL,Recreation and Sport,REC,Customer n Client Receipts,M,Fees n Charges,MB,29/03/2018,PAY01050387,SPLE,Sport and Leisure,400,Revenue,BDI Securities UK Ltd
Brighton & Hove City Council,http://statistics.data.gov.uk/id/local-authority/00ML,Highways and Transportation,BVAHRT,Parking Services,PRK,Customer n Client Receipts,M,Fees n Charges,MB,29/03/2018,PAY01050387,PARK,Parking Services,350,Revenue,BDI Securities UK Ltd
Brighton & Hove City Council,http://statistics.data.gov.uk/id/local-authority/00ML,Non-BHC Organisations,BVANON,Trusts,TRT,Supplies and Services,E,Miscellaneous Expenses,EM,29/03/2018,PAY01050387,NBHC,Non Council,440,Revenue,BDI Securities UK Ltd
Brighton & Hove City Council,http://statistics.data.gov.uk/id/local-authority/00ML,Central Support and Overheads,BVACEN,Support Services (SSC),PPT,Indirect Employees,B,Training,BM,09/03/2018,PAY01043974,PROP,Property and Design,420,Revenue,Beacon Facilities Management Limited
Brighton & Hove City Council,http://statistics.data.gov.uk/id/local-authority/00ML,Cultural and Related Serv,BVACUL,Open Spaces,PEN,Supplies and Services,E,Equip't Furniture n Materials,EA,23/03/2018,PAY01047399,CIPK,City Parks,310,Revenue,Beacon Fencing Ltd
Brighton & Hove City Council,http://statistics.data.gov.uk/id/local-authority/00ML,Children`s & Education Serv,BVAEDU,Child Srvcs Adoption,FAA,Supplies and Services,E,Services,EF,02/03/2018,PAY01041836,CHIC,Fostering and Adoption,384,Revenue,Beacon House Psychological Services
Brighton & Hove City Council,http://statistics.data.gov.uk/id/local-authority/00ML,Children`s & Education Serv,BVAEDU,Child Srvcs Adoption,FAA,Supplies and Services,E,Services,EF,16/03/2018,PAY01046099,CHIC,Fostering and Adoption,4909.25,Revenue,Beacon House Psychological Services
Brighton & Hove City Council,http://statistics.data.gov.uk/id/local-authority/00ML,Children`s & Education Serv,BVAEDU,Child Srvcs Adoption,FAA,Supplies and Services,E,Services,EF,21/03/2018,PAY01046929,CHIC,Fostering and Adoption,2112,Revenue,Beacon House Psychological Services
Brighton & Hove City Council,http://statistics.data.gov.uk/id/local-authority/00ML,Children`s & Education Serv,BVAEDU,Child Srvcs - Other Yth Jstce,FYX,Indirect Employees,B,Training,BM,29/03/2018,PAY01050614,ASER,Adolescent Service,1000,Revenue,Beacon House Psychological Services
Brighton & Hove City Council,http://statistics.data.gov.uk/id/local-authority/00ML,Cultural and Related Serv,BVACUL,Culture and Heritage,CHG,Supplies and Services,E,Goods for Resale,EG,23/03/2018,PAY01048173,RPMU,Royal Pavilion and Museums,768,Revenue,Beardsalls Co. T/A The Arty Card Company
Brighton & Hove City Council,http://statistics.data.gov.uk/id/local-authority/00ML,Adult Social Care,BVASOC,ASC Physical Support,PHY,Customer n Client Receipts,M,Fees n Charges,MB,07/03/2018,PAY01042799,PHYS,Physical Support,1383.38,Revenue,Beaumont NH Ltd
Brighton & Hove City Council,http://statistics.data.gov.uk/id/local-authority/00ML,Adult Social Care,BVASOC,ASC Physical Support,PHY,Customer n Client Receipts,M,Fees n Charges,MB,09/03/2018,PAY01044020,PHYS,Physical Support,-4268.96,Revenue,Beaumont NH Ltd
Brighton & Hove City Council,http://statistics.data.gov.uk/id/local-authority/00ML,Adult Social Care,BVASOC,ASC Physical Support,PHY,Third Party Payments,F,Other Establishments,FH,09/03/2018,PAY01044020,PHYS,Physical Support,22570,Revenue,Beaumont NH Ltd
Brighton & Hove City Council,http://statistics.data.gov.uk/id/local-authority/00ML,Adult Social Care,BVASOC,ASC Physical Support,PHY,Customer n Client Receipts,M,Fees n Charges,MB,23/03/2018,PAY01047951,PHYS,Physical Support,897.99,Revenue,Beaumont NH Ltd
Brighton & Hove City Council,http://statistics.data.gov.uk/id/local-authority/00ML,Adult Social Care,BVASOC,ASC Physical Support,PHY,Third Party Payments,F,Other Establishments,FH,23/03/2018,PAY01047951,PHYS,Physical Support,-4512.83,Revenue,Beaumont NH Ltd
Brighton & Hove City Council,http://statistics.data.gov.uk/id/local-authority/00ML,Non-BHC Organisations,BVANON,Trusts,TRT,Supplies and Services,E,Grants n Subscriptions,EK,15/03/2018,PAY517230,NBHC,Non Council,500,Revenue,Bedcare Limited
Brighton & Hove City Council,http://statistics.data.gov.uk/id/local-authority/00ML,Adult Social Care,BVASOC,ASC Learning Disabilities,ALD,Customer n Client Receipts,M,Fees n Charges,MB,09/03/2018,PAY01043343,LDIS,Adults LD Community Care,-751.2,Revenue,Beech Lodge
Brighton & Hove City Council,http://statistics.data.gov.uk/id/local-authority/00ML,Adult Social Care,BVASOC,ASC Learning Disabilities,ALD,Third Party Payments,F,Other Establishments,FH,09/03/2018,PAY01043343,LDIS,Adults LD Community Care,10916.72,Revenue,Beech Lodge
Brighton & Hove City Council,http://statistics.data.gov.uk/id/local-authority/00ML,Adult Social Care,BVASOC,ASC Memory Cognition Support,MEM,Customer n Client Receipts,M,Fees n Charges,MB,09/03/2018,PAY01043343,COGN,Memory Cognition Support,491.72,Revenue,Beech Lodge
Brighton & Hove City Council,http://statistics.data.gov.uk/id/local-authority/00ML,Adult Social Care,BVASOC,ASC Memory Cognition Support,MEM,Third Party Payments,F,Other Establishments,FH,09/03/2018,PAY01043343,COGN,Memory Cognition Support,-2416.11,Revenue,Beech Lodge
Brighton & Hove City Council,http://statistics.data.gov.uk/id/local-authority/00ML,Adult Social Care,BVASOC,ASC Physical Support,PHY,Customer n Client Receipts,M,Fees n Charges,MB,09/03/2018,PAY01043343,PHYS,Physical Support,-1396.56,Revenue,Beech Lodge
Brighton & Hove City Council,http://statistics.data.gov.uk/id/local-authority/00ML,Adult Social Care,BVASOC,ASC Physical Support,PHY,Third Party Payments,F,Other Establishments,FH,09/03/2018,PAY01043343,PHYS,Physical Support,10622,Revenue,Beech Lodge
Brighton & Hove City Council,http://statistics.data.gov.uk/id/local-authority/00ML,Adult Social Care,BVASOC,ASC Memory Cognition Support,MEM,Customer n Client Receipts,M,Fees n Charges,MB,23/03/2018,PAY01047397,COGN,Memory Cognition Support,-356.07,Revenue,Beech Lodge
Brighton & Hove City Council,http://statistics.data.gov.uk/id/local-authority/00ML,Adult Social Care,BVASOC,ASC Memory Cognition Support,MEM,Third Party Payments,F,Other Establishments,FH,23/03/2018,PAY01047397,COGN,Memory Cognition Support,2082.86,Revenue,Beech Lodge
Brighton & Hove City Council,http://statistics.data.gov.uk/id/local-authority/00ML,Adult Social Care,BVASOC,ASC Learning Disabilities,ALD,Supplies and Services,E,Equip't Furniture n Materials,EA,29/03/2018,PAY01050361,LDSU,Supported Employment,300.8,Revenue,Beeswift Ltd
Brighton & Hove City Council,http://statistics.data.gov.uk/id/local-authority/00ML,Housing General Fund,BVAHOG,Homelessness,HML,Third Party Payments,F,Other Establishments,FH,16/03/2018,PAY01045729,HOPT,Housing Options,700,Revenue,Belvoir Lettings
Brighton & Hove City Council,http://statistics.data.gov.uk/id/local-authority/00ML,Children`s & Education Serv,BVAEDU,Ed Ed Other Other,ENF,Third Party Payments,F,Other Establishments,FH,23/03/2018,PAY01048018,VSCH,Virtual School,500,Revenue,Bembridge CE Primary School
Brighton & Hove City Council,http://statistics.data.gov.uk/id/local-authority/00ML,Housing General Fund,BVAHOG,Homelessness,HML,Third Party Payments,F,Other Establishments,FH,07/03/2018,PAY01042865,TAAS,Temp Accom and Allocations,500,Revenue,Berege Lettings
Brighton & Hove City Council,http://statistics.data.gov.uk/id/local-authority/00ML,Housing General Fund,BVAHOG,Homelessness,HML,Third Party Payments,F,Other Establishments,FH,28/03/2018,PAY01049004,TAAS,Temp Accom and Allocations,700,Revenue,Berege Lettings
Brighton & Hove City Council,http://statistics.data.gov.uk/id/local-authority/00ML,Environment & Regulatory Serv,BVAERS,Management Services (DEC),MGT,Supplies and Services,E,Equip't Furniture n Materials,EA,23/03/2018,PAY01047540,CICL,City Clean,913.64,Revenue,Berendsen UK Ltd
Brighton & Hove City Council,http://statistics.data.gov.uk/id/local-authority/00ML,Cultural and Related Serv,BVACUL,Recreation and Sport,REC,Third Party Payments,F,Independent Units of Council,FA,14/03/2018,PAY01044871,SPLE,Sport and Leisure,18240,Revenue,Best Demolition Limited
Brighton & Hove City Council,http://statistics.data.gov.uk/id/local-authority/00ML,Cultural and Related Serv,BVACUL,Recreation and Sport,REC,Premises Related,C,Repair Maint n Alterations,CA,28/03/2018,PAY01048515,SPLE,Sport and Leisure,580,Revenue,Betapest
Brighton & Hove City Council,http://statistics.data.gov.uk/id/local-authority/00ML,Children`s & Education Serv,BVAEDU,Child Srvcs - Residential Svcs,FLR,Third Party Payments,F,Other Establishments,FH,07/03/2018,PAY01042902,AVFM,Agency Placements\VFM,14200,Revenue,Bettercare Keys Ltd
Brighton & Hove City Council,http://statistics.data.gov.uk/id/local-authority/00ML,Children`s & Education Serv,BVAEDU,Child Srvcs - Residential Svcs,FLR,Third Party Payments,F,Other Establishments,FH,23/03/2018,PAY01048099,AVFM,Agency Placements\VFM,15721.43,Revenue,Bettercare Keys Ltd
Brighton & Hove City Council,http://statistics.data.gov.uk/id/local-authority/00ML,Central Support and Overheads,BVACEN,Support Services (SSC),PPT,Supplies and Services,E,Miscellaneous Expenses,EM,09/03/2018,PAY01044294,DEMO,Democratic Services,750,Revenue,Bevendean Chomp
Brighton & Hove City Council,http://statistics.data.gov.uk/id/local-authority/00ML,Housing General Fund,BVAHOG,Homelessness,HML,Supplies and Services,E,Catering,EB,02/03/2018,PAY01040884,ASSA,Hostel Accommodation,289.77,Revenue,BFS Group Ltd t/a Bidvest Foodservice
Brighton & Hove City Council,http://statistics.data.gov.uk/id/local-authority/00ML,Adult Social Care,BVASOC,ASC Memory Cognition Support,MEM,Supplies and Services,E,Catering,EB,07/03/2018,PAY01042339,RCOP,Resource Centres Older People,631.98,Revenue,BFS Group Ltd t/a Bidvest Foodservice
Brighton & Hove City Council,http://statistics.data.gov.uk/id/local-authority/00ML,Adult Social Care,BVASOC,ASC Physical Support,PHY,Supplies and Services,E,Catering,EB,07/03/2018,PAY01042339,RCOP,Resource Centres Older People,409.72,Revenue,BFS Group Ltd t/a Bidvest Foodservice
Brighton & Hove City Council,http://statistics.data.gov.uk/id/local-authority/00ML,Adult Social Care,BVASOC,ASC Physical Support,PHY,Supplies and Services,E,Catering,EB,09/03/2018,PAY01043385,RCOP,Resource Centres Older People,151.46,Revenue,BFS Group Ltd t/a Bidvest Foodservice
Brighton & Hove City Council,http://statistics.data.gov.uk/id/local-authority/00ML,Housing General Fund,BVAHOG,Homelessness,HML,Supplies and Services,E,Catering,EB,09/03/2018,PAY01043385,ASSA,Hostel Accommodation,175.15,Revenue,BFS Group Ltd t/a Bidvest Foodservice
Brighton & Hove City Council,http://statistics.data.gov.uk/id/local-authority/00ML,Adult Social Care,BVASOC,ASC Memory Cognition Support,MEM,Supplies and Services,E,Catering,EB,14/03/2018,PAY01044538,RCOP,Resource Centres Older People,516.06,Revenue,BFS Group Ltd t/a Bidvest Foodservice
Brighton & Hove City Council,http://statistics.data.gov.uk/id/local-authority/00ML,Adult Social Care,BVASOC,ASC Physical Support,PHY,Supplies and Services,E,Catering,EB,14/03/2018,PAY01044538,RCOP,Resource Centres Older People,348.76,Revenue,BFS Group Ltd t/a Bidvest Foodservice
Brighton & Hove City Council,http://statistics.data.gov.uk/id/local-authority/00ML,Housing General Fund,BVAHOG,Homelessness,HML,Supplies and Services,E,Catering,EB,14/03/2018,PAY01044538,ASSA,Hostel Accommodation,159.46,Revenue,BFS Group Ltd t/a Bidvest Foodservice
Brighton & Hove City Council,http://statistics.data.gov.uk/id/local-authority/00ML,Adult Social Care,BVASOC,ASC Physical Support,PHY,Supplies and Services,E,Catering,EB,16/03/2018,PAY01045535,RCOP,Resource Centres Older People,297.73,Revenue,BFS Group Ltd t/a Bidvest Foodservice
Brighton & Hove City Council,http://statistics.data.gov.uk/id/local-authority/00ML,Adult Social Care,BVASOC,ASC Memory Cognition Support,MEM,Supplies and Services,E,Catering,EB,21/03/2018,PAY01046496,RCOP,Resource Centres Older People,481.32,Revenue,BFS Group Ltd t/a Bidvest Foodservice
Brighton & Hove City Council,http://statistics.data.gov.uk/id/local-authority/00ML,Adult Social Care,BVASOC,ASC Physical Support,PHY,Supplies and Services,E,Catering,EB,21/03/2018,PAY01046496,RCOP,Resource Centres Older People,355.74,Revenue,BFS Group Ltd t/a Bidvest Foodservice
Brighton & Hove City Council,http://statistics.data.gov.uk/id/local-authority/00ML,Adult Social Care,BVASOC,ASC Memory Cognition Support,MEM,Supplies and Services,E,Catering,EB,23/03/2018,PAY01047432,RCOP,Resource Centres Older People,242.99,Revenue,BFS Group Ltd t/a Bidvest Foodservice
Brighton & Hove City Council,http://statistics.data.gov.uk/id/local-authority/00ML,Adult Social Care,BVASOC,ASC Physical Support,PHY,Supplies and Services,E,Catering,EB,23/03/2018,PAY01047432,RCOP,Resource Centres Older People,410.9,Revenue,BFS Group Ltd t/a Bidvest Foodservice
Brighton & Hove City Council,http://statistics.data.gov.uk/id/local-authority/00ML,Housing General Fund,BVAHOG,Homelessness,HML,Supplies and Services,E,Catering,EB,23/03/2018,PAY01047432,ASSA,Hostel Accommodation,464.07,Revenue,BFS Group Ltd t/a Bidvest Foodservice
Brighton & Hove City Council,http://statistics.data.gov.uk/id/local-authority/00ML,Adult Social Care,BVASOC,ASC Memory Cognition Support,MEM,Supplies and Services,E,Catering,EB,28/03/2018,PAY01048517,RCOP,Resource Centres Older People,471.51,Revenue,BFS Group Ltd t/a Bidvest Foodservice
Brighton & Hove City Council,http://statistics.data.gov.uk/id/local-authority/00ML,Adult Social Care,BVASOC,ASC Physical Support,PHY,Supplies and Services,E,Catering,EB,28/03/2018,PAY01048517,RCOP,Resource Centres Older People,666.85,Revenue,BFS Group Ltd t/a Bidvest Foodservice
Brighton & Hove City Council,http://statistics.data.gov.uk/id/local-authority/00ML,Adult Social Care,BVASOC,ASC Physical Support,PHY,Supplies and Services,E,Catering,EB,29/03/2018,PAY01049581,RCOP,Resource Centres Older People,186.56,Revenue,BFS Group Ltd t/a Bidvest Foodservice
Brighton & Hove City Council,http://statistics.data.gov.uk/id/local-authority/00ML,Adult Social Care,BVASOC,ASC Physical Support,PHY,Supplies and Services,E,Equip't Furniture n Materials,EA,29/03/2018,PAY01049581,RCOP,Resource Centres Older People,485.57,Revenue,BFS Group Ltd t/a Bidvest Foodservice
Brighton & Hove City Council,http://statistics.data.gov.uk/id/local-authority/00ML,Housing General Fund,BVAHOG,Homelessness,HML,Supplies and Services,E,Catering,EB,29/03/2018,PAY01049581,ASSA,Hostel Accommodation,443.68,Revenue,BFS Group Ltd t/a Bidvest Foodservice
Brighton & Hove City Council,http://statistics.data.gov.uk/id/local-authority/00ML,Public Health,BVAPHE,Public Health,PHE,Third Party Payments,F,Other Establishments,FH,21/03/2018,PAY01046499,PHCM,PH Commissioning,50000,Revenue,BHAFC Albion in the Community
Brighton & Hove City Council,http://statistics.data.gov.uk/id/local-authority/00ML,Central Support and Overheads,BVACEN,Support Services (SSC),PPT,Supplies and Services,E,Equip't Furniture n Materials,EA,07/03/2018,PAY01042677,DEMO,Democratic Services,690,Revenue,Big Picture AV Ltd
Brighton & Hove City Council,http://statistics.data.gov.uk/id/local-authority/00ML,Highways and Transportation,BVAHRT,Transport Plan Policy Strategy,TPP,Supplies and Services,E,Services,EF,09/03/2018,PAY01043872,TPRS,Transport Projects and Eng,1575,Revenue,Bike for Life (South) CIC
Brighton & Hove City Council,http://statistics.data.gov.uk/id/local-authority/00ML,Adult Social Care,BVASOC,ASC Physical Support,PHY,Customer n Client Receipts,M,Fees n Charges,MB,02/03/2018,PAY01040845,PHYS,Physical Support,3409.63,Revenue,Birchgrove Healthcare (Sussex) Ltd
Brighton & Hove City Council,http://statistics.data.gov.uk/id/local-authority/00ML,Adult Social Care,BVASOC,ASC Memory Cognition Support,MEM,Customer n Client Receipts,M,Fees n Charges,MB,09/03/2018,PAY01043340,COGN,Memory Cognition Support,-3419.64,Revenue,Birchgrove Healthcare (Sussex) Ltd
Brighton & Hove City Council,http://statistics.data.gov.uk/id/local-authority/00ML,Adult Social Care,BVASOC,ASC Memory Cognition Support,MEM,Third Party Payments,F,Other Establishments,FH,09/03/2018,PAY01043340,COGN,Memory Cognition Support,25966.4,Revenue,Birchgrove Healthcare (Sussex) Ltd
Brighton & Hove City Council,http://statistics.data.gov.uk/id/local-authority/00ML,Adult Social Care,BVASOC,ASC Physical Support,PHY,Customer n Client Receipts,M,Fees n Charges,MB,09/03/2018,PAY01043340,PHYS,Physical Support,-11572.6,Revenue,Birchgrove Healthcare (Sussex) Ltd
Brighton & Hove City Council,http://statistics.data.gov.uk/id/local-authority/00ML,Adult Social Care,BVASOC,ASC Physical Support,PHY,Third Party Payments,F,Other Establishments,FH,09/03/2018,PAY01043340,PHYS,Physical Support,45212.4,Revenue,Birchgrove Healthcare (Sussex) Ltd
Brighton & Hove City Council,http://statistics.data.gov.uk/id/local-authority/00ML,Environment & Regulatory Serv,BVAERS,Management Services (DEC),MGT,Premises Related,C,Repair Maint n Alterations,CA,09/03/2018,PAY01043278,CICL,City Clean,450,Revenue,Bird Control Sussex
Brighton & Hove City Council,http://statistics.data.gov.uk/id/local-authority/00ML,Central Support and Overheads,BVACEN,Support Services (SSC),PPT,Premises Related,C,Repair Maint n Alterations,CA,29/03/2018,PAY01049462,PROP,Property and Design,7818,Revenue,Bird Control Sussex
Brighton & Hove City Council,http://statistics.data.gov.uk/id/local-authority/00ML,Housing General Fund,BVAHOG,Homelessness,HML,Supplies and Services,E,Miscellaneous Expenses,EM,14/03/2018,PAY01044686,TAAS,Temp Accom and Allocations,973.8,Revenue,Bishop`s Move
Brighton & Hove City Council,http://statistics.data.gov.uk/id/local-authority/00ML,Adult Social Care,BVASOC,ASC Learning Disabilities,ALD,Premises Related,C,Energy Costs,CB,21/03/2018,PAY01046420,LDSU,Supported Employment,1692.62,Revenue,Bizspace Ltd
Brighton & Hove City Council,http://statistics.data.gov.uk/id/local-authority/00ML,Adult Social Care,BVASOC,ASC Physical Support,PHY,Customer n Client Receipts,M,Fees n Charges,MB,09/03/2018,PAY01044144,PHYS,Physical Support,-402.6,Revenue,Black Swan International
Brighton & Hove City Council,http://statistics.data.gov.uk/id/local-authority/00ML,Adult Social Care,BVASOC,ASC Physical Support,PHY,Third Party Payments,F,Other Establishments,FH,09/03/2018,PAY01044144,PHYS,Physical Support,5853.6,Revenue,Black Swan International
Brighton & Hove City Council,http://statistics.data.gov.uk/id/local-authority/00ML,Central Support and Overheads,BVACEN,Support Services (SSC),PPT,Supplies and Services,E,Equip't Furniture n Materials,EA,21/03/2018,PAY01046438,SCOR,School Organisation,993.02,Revenue,Blackburns Metals Ltd
Brighton & Hove City Council,http://statistics.data.gov.uk/id/local-authority/00ML,Central Support and Overheads,BVACEN,Support Services (SSC),PPT,Supplies and Services,E,Equip't Furniture n Materials,EA,28/03/2018,PAY01048466,SCOR,School Organisation,210,Revenue,Blackburns Metals Ltd
Brighton & Hove City Council,http://statistics.data.gov.uk/id/local-authority/00ML,Adult Social Care,BVASOC,ASC Memory Cognition Support,MEM,Customer n Client Receipts,M,Fees n Charges,MB,09/03/2018,PAY01043821,COGN,Memory Cognition Support,-644.4,Revenue,Blatchington Court
Brighton & Hove City Council,http://statistics.data.gov.uk/id/local-authority/00ML,Adult Social Care,BVASOC,ASC Memory Cognition Support,MEM,Third Party Payments,F,Other Establishments,FH,09/03/2018,PAY01043821,COGN,Memory Cognition Support,2027.2,Revenue,Blatchington Court
Brighton & Hove City Council,http://statistics.data.gov.uk/id/local-authority/00ML,Non I&E,BVANON,Cap - Housing Services - HRA,4HR,New Construction n Conversion,PB,New Construction n Conversion,PBL5,14/03/2018,PAY01044537,HPAI,Property & Investment,1930,Capital,BLB Surveyors Ltd
Brighton & Hove City Council,http://statistics.data.gov.uk/id/local-authority/00ML,Library Services,BVACUL,Library Service,LBR,Supplies and Services,E,Communications n Computing,EH,21/03/2018,PAY01046495,LIBS,Libraries,690,Revenue,Bleep (UK) Plc
Brighton & Hove City Council,http://statistics.data.gov.uk/id/local-authority/00ML,Adult Social Care,BVASOC,ASC Physical Support,PHY,Customer n Client Receipts,M,Fees n Charges,MB,09/03/2018,PAY01043283,PHYS,Physical Support,-621.8,Revenue,Blind Veterans UK
Brighton & Hove City Council,http://statistics.data.gov.uk/id/local-authority/00ML,Adult Social Care,BVASOC,ASC Physical Support,PHY,Third Party Payments,F,Other Establishments,FH,09/03/2018,PAY01043283,PHYS,Physical Support,2955.8,Revenue,Blind Veterans UK
Brighton & Hove City Council,http://statistics.data.gov.uk/id/local-authority/00ML,Central Support and Overheads,BVACEN,Support Services (SSC),PPT,Premises Related,C,Repair Maint n Alterations,CA,02/03/2018,PAY01040806,PROP,Property and Design,2415,Revenue,Blockbusters Contracts Ltd
Brighton & Hove City Council,http://statistics.data.gov.uk/id/local-authority/00ML,Children`s & Education Serv,BVAEDU,Ed Ed Other Other,ENF,Premises Related,C,Repair Maint n Alterations,CA,21/03/2018,PAY01046390,PROP,Property and Design,1400,Revenue,Blockbusters Contracts Ltd
Brighton & Hove City Council,http://statistics.data.gov.uk/id/local-authority/00ML,Central Support and Overheads,BVACEN,Holding Accounts,PPH,Premises Related,C,Repair Maint n Alterations,CA,23/03/2018,PAY01047356,PROP,Property and Design,397,Revenue,Blockbusters Contracts Ltd
Brighton & Hove City Council,http://statistics.data.gov.uk/id/local-authority/00ML,Central Support and Overheads,BVACEN,Holding Accounts,PPH,Premises Related,C,Repair Maint n Alterations,CA,28/03/2018,PAY01048411,PROP,Property and Design,1114,Revenue,Blockbusters Contracts Ltd
Brighton & Hove City Council,http://statistics.data.gov.uk/id/local-authority/00ML,Central Support and Overheads,BVACEN,Support Services (SSC),PPT,Premises Related,C,Repair Maint n Alterations,CA,28/03/2018,PAY01048411,PROP,Property and Design,68,Revenue,Blockbusters Contracts Ltd
Brighton & Hove City Council,http://statistics.data.gov.uk/id/local-authority/00ML,Cultural and Related Serv,BVACUL,Recreation and Sport,REC,Premises Related,C,Repair Maint n Alterations,CA,29/03/2018,PAY01049472,SPLE,Sport and Leisure,1160,Revenue,Blockbusters Contracts Ltd
Brighton & Hove City Council,http://statistics.data.gov.uk/id/local-authority/00ML,Children`s & Education Serv,BVAEDU,Child Srvcs - Fostering,FLF,Third Party Payments,F,Other Establishments,FH,28/03/2018,PAY01048715,AVFM,Agency Placements\VFM,48338,Revenue,Blue Sky Fostering Limited
Brighton & Hove City Council,http://statistics.data.gov.uk/id/local-authority/00ML,Children`s & Education Serv,BVAEDU,Child Srvcs - Fostering,FLF,Third Party Payments,F,Other Establishments,FH,28/03/2018,PAY01048715,DISS,Childrens Disability Services,17208.2,Revenue,Blue Sky Fostering Limited
Brighton & Hove City Council,http://statistics.data.gov.uk/id/local-authority/00ML,Children`s & Education Serv,BVAEDU,Ed EY PVI,ENP,Supplies and Services,E,Grants n Subscriptions,EK,07/03/2018,PAY01042413,EYRS,Early Years,19589.47,Revenue,Blueberry Nursery & Early Learning Organisation Ld
Brighton & Hove City Council,http://statistics.data.gov.uk/id/local-authority/00ML,Children`s & Education Serv,BVAEDU,Ed EY PVI,ENP,Supplies and Services,E,Grants n Subscriptions,EK,09/03/2018,PAY01043559,EYRS,Early Years,889.2,Revenue,Blueberry Nursery & Early Learning Organisation Ld
Brighton & Hove City Council,http://statistics.data.gov.uk/id/local-authority/00ML,Children`s & Education Serv,BVAEDU,Ed EY PVI,ENP,Supplies and Services,E,Grants n Subscriptions,EK,14/03/2018,PAY01044602,EYRS,Early Years,397.5,Revenue,Blueberry Nursery & Early Learning Organisation Ld
Brighton & Hove City Council,http://statistics.data.gov.uk/id/local-authority/00ML,Housing General Fund,BVAHOG,Homelessness,HML,Premises Related,C,Rents Payable,CC,14/03/2018,PAY01044975,TAAS,Temp Accom and Allocations,750,Revenue,BN Property Services Limited
Brighton & Hove City Council,http://statistics.data.gov.uk/id/local-authority/00ML,Housing General Fund,BVAHOG,Homelessness,HML,Premises Related,C,Rents Payable,CC,16/03/2018,PAY01046096,TAAS,Temp Accom and Allocations,950,Revenue,BN Property Services Limited
Brighton & Hove City Council,http://statistics.data.gov.uk/id/local-authority/00ML,Housing General Fund,BVAHOG,Homelessness,HML,Premises Related,C,Rents Payable,CC,21/03/2018,PAY01046928,TAAS,Temp Accom and Allocations,950,Revenue,BN Property Services Limited
Brighton & Hove City Council,http://statistics.data.gov.uk/id/local-authority/00ML,Housing General Fund,BVAHOG,Homelessness,HML,Premises Related,C,Rents Payable,CC,28/03/2018,PAY01048995,TAAS,Temp Accom and Allocations,1400,Revenue,BN Property Services Limited
Brighton & Hove City Council,http://statistics.data.gov.uk/id/local-authority/00ML,Cultural and Related Serv,BVACUL,Culture and Heritage,CHG,Premises Related,C,Repair Maint n Alterations,CA,16/03/2018,PAY01045534,VENU,Venues,151.35,Revenue,BOC Ltd
Brighton & Hove City Council,http://statistics.data.gov.uk/id/local-authority/00ML,Cultural and Related Serv,BVACUL,Recreation and Sport,REC,Supplies and Services,E,Equip't Furniture n Materials,EA,16/03/2018,PAY01045534,SPLE,Sport and Leisure,98.8,Revenue,BOC Ltd
Brighton & Hove City Council,http://statistics.data.gov.uk/id/local-authority/00ML,Environment & Regulatory Serv,BVAERS,Management Services (DEC),MGT,Supplies and Services,E,Equip't Furniture n Materials,EA,29/03/2018,PAY01049580,CICL,City Clean,242.35,Revenue,BOC Ltd
Brighton & Hove City Council,http://statistics.data.gov.uk/id/local-authority/00ML,Children`s & Education Serv,BVAEDU,Ed EY PVI,ENP,Supplies and Services,E,Grants n Subscriptions,EK,07/03/2018,PAY01042251,EYRS,Early Years,13234.6,Revenue,Boomerang Kids
Brighton & Hove City Council,http://statistics.data.gov.uk/id/local-authority/00ML,Children`s & Education Serv,BVAEDU,Ed EY PVI,ENP,Supplies and Services,E,Grants n Subscriptions,EK,09/03/2018,PAY01043294,EYRS,Early Years,702,Revenue,Boomerang Kids
Brighton & Hove City Council,http://statistics.data.gov.uk/id/local-authority/00ML,Adult Social Care,BVASOC,ASC Learning Disabilities,ALD,Third Party Payments,F,Other Establishments,FH,09/03/2018,PAY01043677,LDIS,Adults LD Community Care,6900,Revenue,Bradfield House
Brighton & Hove City Council,http://statistics.data.gov.uk/id/local-authority/00ML,Adult Social Care,BVASOC,ASC Physical Support,PHY,Third Party Payments,F,Other Establishments,FH,09/03/2018,PAY01043202,PHYS,Physical Support,9338,Revenue,Brain Injury Rehabilitation Trust
Brighton & Hove City Council,http://statistics.data.gov.uk/id/local-authority/00ML,Adult Social Care,BVASOC,ASC Learning Disabilities,ALD,Supplies and Services,E,Catering,EB,09/03/2018,PAY01043251,RESP,Adults Respite Services,385.88,Revenue,Brake Bros Ltd t/a Brakes Catering Equip
Brighton & Hove City Council,http://statistics.data.gov.uk/id/local-authority/00ML,Adult Social Care,BVASOC,ASC Memory Cognition Support,MEM,Customer n Client Receipts,M,Fees n Charges,MB,09/03/2018,PAY01043546,COGN,Memory Cognition Support,-4418.72,Revenue,Bravery Care
Brighton & Hove City Council,http://statistics.data.gov.uk/id/local-authority/00ML,Adult Social Care,BVASOC,ASC Memory Cognition Support,MEM,Third Party Payments,F,Other Establishments,FH,09/03/2018,PAY01043546,COGN,Memory Cognition Support,18338.56,Revenue,Bravery Care
Brighton & Hove City Council,http://statistics.data.gov.uk/id/local-authority/00ML,Adult Social Care,BVASOC,ASC Memory Cognition Support,MEM,Customer n Client Receipts,M,Fees n Charges,MB,16/03/2018,PAY01045657,COGN,Memory Cognition Support,-1403.71,Revenue,Bravery Care
Brighton & Hove City Council,http://statistics.data.gov.uk/id/local-authority/00ML,Adult Social Care,BVASOC,ASC Physical Support,PHY,Customer n Client Receipts,M,Fees n Charges,MB,16/03/2018,PAY01045657,PHYS,Physical Support,-3924.24,Revenue,Bravery Care
Brighton & Hove City Council,http://statistics.data.gov.uk/id/local-authority/00ML,Adult Social Care,BVASOC,ASC Physical Support,PHY,Third Party Payments,F,Other Establishments,FH,16/03/2018,PAY01045657,PHYS,Physical Support,24235.71,Revenue,Bravery Care
Brighton & Hove City Council,http://statistics.data.gov.uk/id/local-authority/00ML,Adult Social Care,BVASOC,S Svcs Other Adult Services,ADT,Indirect Employees,B,Training,BM,21/03/2018,PAY01046637,ORGD,Organisational Development,297,Revenue,Breaking Down Barriers CIC
Brighton & Hove City Council,http://statistics.data.gov.uk/id/local-authority/00ML,Central Support and Overheads,BVACEN,Support Services (SSC),PPT,Indirect Employees,B,Training,BM,21/03/2018,PAY01046637,ORGD,Organisational Development,253,Revenue,Breaking Down Barriers CIC
Brighton & Hove City Council,http://statistics.data.gov.uk/id/local-authority/00ML,Central Support and Overheads,BVACEN,Support Services (SSC),PPT,Indirect Employees,B,Training,BM,23/03/2018,PAY01048162,ORGD,Organisational Development,1500,Revenue,Breckland Training Services
Brighton & Hove City Council,http://statistics.data.gov.uk/id/local-authority/00ML,Children`s & Education Serv,BVAEDU,Ed Mgmt and Support Services,EMG,Indirect Employees,B,Training,BM,14/03/2018,PAY01045121,GOVS,Governor Support,595.3,Revenue,Breslin Public Policy Limited
Brighton & Hove City Council,http://statistics.data.gov.uk/id/local-authority/00ML,Cultural and Related Serv,BVACUL,Recreation and Sport,REC,Premises Related,C,Repair Maint n Alterations,CA,21/03/2018,PAY01046867,SPLE,Sport and Leisure,3610,Revenue,Bricks 2 Mortar Ltd
Brighton & Hove City Council,http://statistics.data.gov.uk/id/local-authority/00ML,Cultural and Related Serv,BVACUL,Recreation and Sport,REC,Premises Related,C,Repair Maint n Alterations,CA,29/03/2018,PAY01050434,SPLE,Sport and Leisure,4750,Revenue,Bricks 2 Mortar Ltd
Brighton & Hove City Council,http://statistics.data.gov.uk/id/local-authority/00ML,Children`s & Education Serv,BVAEDU,Child Srvcs - Fostering,FLF,Premises Related,C,Rents Payable,CC,14/03/2018,PAY01044505,CHIC,Fostering and Adoption,351,Revenue,Bridge Community Education Centre
Brighton & Hove City Council,http://statistics.data.gov.uk/id/local-authority/00ML,Children`s & Education Serv,BVAEDU,Child Srvcs Other,FAX,Supplies and Services,E,Miscellaneous Expenses,EM,28/03/2018,PAY01048482,SAFE,Safeguarding,340,Revenue,Bridge Community Education Centre
Brighton & Hove City Council,http://statistics.data.gov.uk/id/local-authority/00ML,Children`s & Education Serv,BVAEDU,Child Srvcs - Other Fam Supp,FFX,Transfer Payments,G,Other Transfer Payments,GD,28/03/2018,PAY01048482,FAMP,Families\Prevention,54,Revenue,Bridge Community Education Centre
Brighton & Hove City Council,http://statistics.data.gov.uk/id/local-authority/00ML,Planning and Development,BVAPLA,Economic Development,ECD,Supplies and Services,E,Grants n Subscriptions,EK,29/03/2018,PAY01049534,CMNY,Communities and Equalities,12000,Revenue,Bridge Community Education Centre
Brighton & Hove City Council,http://statistics.data.gov.uk/id/local-authority/00ML,Children`s & Education Serv,BVAEDU,Child Srvcs - Fostering,FLF,Third Party Payments,F,Other Establishments,FH,28/03/2018,PAY01048708,AVFM,Agency Placements\VFM,8688.23,Revenue,Brighter Futures Foster Care Ltd
Brighton & Hove City Council,http://statistics.data.gov.uk/id/local-authority/00ML,Children`s & Education Serv,BVAEDU,Ed EY Central,EAE,Supplies and Services,E,Miscellaneous Expenses,EM,14/03/2018,PAY01044542,EYRS,Early Years,1403,Revenue,Brighthelm Trading Ltd
Brighton & Hove City Council,http://statistics.data.gov.uk/id/local-authority/00ML,Children`s & Education Serv,BVAEDU,Ed Mgmt and Support Services,EMG,Premises Related,C,Rents Payable,CC,14/03/2018,PAY01044542,GOVS,Governor Support,563.3,Revenue,Brighthelm Trading Ltd
Brighton & Hove City Council,http://statistics.data.gov.uk/id/local-authority/00ML,Public Health,BVAPHE,Community Safety,CMY,Premises Related,C,Rents Payable,CC,14/03/2018,PAY01044542,CSTP,Comm Safety Team & Partnership,515,Revenue,Brighthelm Trading Ltd
Brighton & Hove City Council,http://statistics.data.gov.uk/id/local-authority/00ML,Public Health,BVAPHE,Public Health,PHE,Premises Related,C,Rents Payable,CC,14/03/2018,PAY01044542,PHCM,PH Commissioning,104,Revenue,Brighthelm Trading Ltd
Brighton & Hove City Council,http://statistics.data.gov.uk/id/local-authority/00ML,Children`s & Education Serv,BVAEDU,Ed Mgmt and Support Services,EMG,Premises Related,C,Rents Payable,CC,16/03/2018,PAY01045538,PPSD,Poverty Proof the School Day,792,Revenue,Brighthelm Trading Ltd
Brighton & Hove City Council,http://statistics.data.gov.uk/id/local-authority/00ML,Children`s & Education Serv,BVAEDU,Ed Mgmt and Support Services,EMG,Premises Related,C,Rents Payable,CC,16/03/2018,PAY01045538,SACH,Standards and Achievement,199,Revenue,Brighthelm Trading Ltd
Brighton & Hove City Council,http://statistics.data.gov.uk/id/local-authority/00ML,Planning and Development,BVAPLA,Community Development,CDV,Premises Related,C,Rents Payable,CC,21/03/2018,PAY01046501,CMNY,Communities and Equalities,90,Revenue,Brighthelm Trading Ltd
Brighton & Hove City Council,http://statistics.data.gov.uk/id/local-authority/00ML,Planning and Development,BVAPLA,Community Development,CDV,Supplies and Services,E,Miscellaneous Expenses,EM,21/03/2018,PAY01046501,CMNY,Communities and Equalities,58.5,Revenue,Brighthelm Trading Ltd
Brighton & Hove City Council,http://statistics.data.gov.uk/id/local-authority/00ML,Public Health,BVAPHE,Community Safety,CMY,Premises Related,C,Rents Payable,CC,21/03/2018,PAY01046501,CSTP,Comm Safety Team & Partnership,227,Revenue,Brighthelm Trading Ltd
Brighton & Hove City Council,http://statistics.data.gov.uk/id/local-authority/00ML,Cultural and Related Serv,BVACUL,Open Spaces,PEN,Supplies and Services,E,Grants n Subscriptions,EK,21/03/2018,PAY01046462,CIPK,City Parks,3059,Revenue,Brighton & Hove Allotment Federation
Brighton & Hove City Council,http://statistics.data.gov.uk/id/local-authority/00ML,Adult Social Care,BVASOC,ASC Physical Support,PHY,Customer n Client Receipts,M,Fees n Charges,MB,09/03/2018,PAY01043216,PHYS,Physical Support,-2681.6,Revenue,Brighton & Hove Bethesda Home
Brighton & Hove City Council,http://statistics.data.gov.uk/id/local-authority/00ML,Adult Social Care,BVASOC,ASC Physical Support,PHY,Third Party Payments,F,Other Establishments,FH,09/03/2018,PAY01043216,PHYS,Physical Support,7531.88,Revenue,Brighton & Hove Bethesda Home
Brighton & Hove City Council,http://statistics.data.gov.uk/id/local-authority/00ML,Children`s & Education Serv,BVAEDU,Child Srvcs - Other Fam Supp,FFX,Transfer Payments,G,Other Transfer Payments,GD,07/03/2018,PAY01042434,FAMP,Families\Prevention,485.9,Revenue,Brighton & Hove Bus and Coach Co Ltd
Brighton & Hove City Council,http://statistics.data.gov.uk/id/local-authority/00ML,Highways and Transportation,BVAHRT,Public Transport,PTR,Third Party Payments,F,Private Contractors,FJ,07/03/2018,PAY01042434,TPRS,Transport Projects and Eng,6233.33,Revenue,Brighton & Hove Bus and Coach Co Ltd
Brighton & Hove City Council,http://statistics.data.gov.uk/id/local-authority/00ML,Highways and Transportation,BVAHRT,Transport Plan Policy Strategy,TPP,Transport Related,D,Public Transport,DD,07/03/2018,PAY01042434,TPRS,Transport Projects and Eng,2901.5,Revenue,Brighton & Hove Bus and Coach Co Ltd
Brighton & Hove City Council,http://statistics.data.gov.uk/id/local-authority/00ML,Adult Social Care,BVASOC,Social Care Activities,ACM,Transport Related,D,Public Transport,DD,09/03/2018,PAY01043582,ASIT,Assessment and SIT,191,Revenue,Brighton & Hove Bus and Coach Co Ltd
Brighton & Hove City Council,http://statistics.data.gov.uk/id/local-authority/00ML,Children`s & Education Serv,BVAEDU,Child Srvcs Leaving Care,FAL,Transfer Payments,G,Other Transfer Payments,GD,09/03/2018,PAY01043582,CARL,Care Leavers,1645.4,Revenue,Brighton & Hove Bus and Coach Co Ltd
Brighton & Hove City Council,http://statistics.data.gov.uk/id/local-authority/00ML,Children`s & Education Serv,BVAEDU,Child Srvcs - Othr LAC Svcs,FLX,Transfer Payments,G,Other Transfer Payments,GD,09/03/2018,PAY01043582,AVFM,Agency Placements\VFM,1645.4,Revenue,Brighton & Hove Bus and Coach Co Ltd
Brighton & Hove City Council,http://statistics.data.gov.uk/id/local-authority/00ML,Children`s & Education Serv,BVAEDU,Ed Ed Other LA Attrib Sch,ELA,Transport Related,D,Public Transport,DD,09/03/2018,PAY01043582,SCOR,School Organisation,1345.5,Revenue,Brighton & Hove Bus and Coach Co Ltd
Brighton & Hove City Council,http://statistics.data.gov.uk/id/local-authority/00ML,Housing Revenue Account,BVAHOU,Hsing Management - HRA,HGM,Transport Related,D,Public Transport,DD,09/03/2018,PAY01043582,HPAI,Property & Investment,188.8,Revenue,Brighton & Hove Bus and Coach Co Ltd
Brighton & Hove City Council,http://statistics.data.gov.uk/id/local-authority/00ML,Adult Social Care,BVASOC,ASC Learning Disabilities,ALD,Transport Related,D,Public Transport,DD,14/03/2018,PAY01044620,LDHC,Adults LD Home Care,236,Revenue,Brighton & Hove Bus and Coach Co Ltd
Brighton & Hove City Council,http://statistics.data.gov.uk/id/local-authority/00ML,Environment & Regulatory Serv,BVAERS,Environmental Health,EVH,Transport Related,D,Other Transport Costs,DG,14/03/2018,PAY01044620,HIGH,Traffic Management,196,Revenue,Brighton & Hove Bus and Coach Co Ltd
Brighton & Hove City Council,http://statistics.data.gov.uk/id/local-authority/00ML,Housing General Fund,BVAHOG,Homelessness,HML,Transport Related,D,Contract Hire n Operating Leas,DB,14/03/2018,PAY01044620,TRAV,Travellers,253.71,Revenue,Brighton & Hove Bus and Coach Co Ltd
Brighton & Hove City Council,http://statistics.data.gov.uk/id/local-authority/00ML,Housing Revenue Account,BVAHOU,Hsing Management - HRA,HGM,Transport Related,D,Public Transport,DD,14/03/2018,PAY01044620,HIII,Income Involvement Improvement,-781.92,Revenue,Brighton & Hove Bus and Coach Co Ltd
Brighton & Hove City Council,http://statistics.data.gov.uk/id/local-authority/00ML,Non I&E,BVANON,CAP Transport,4TR,Vehicles,PE1,Vehicles,PE1L5,14/03/2018,PAY01044620,CICL,City Clean,2000,Capital,Brighton & Hove Bus and Coach Co Ltd
Brighton & Hove City Council,http://statistics.data.gov.uk/id/local-authority/00ML,Adult Social Care,BVASOC,ASC Learning Disabilities,ALD,Transport Related,D,Public Transport,DD,16/03/2018,PAY01045669,LDHC,Adults LD Home Care,236,Revenue,Brighton & Hove Bus and Coach Co Ltd
Brighton & Hove City Council,http://statistics.data.gov.uk/id/local-authority/00ML,Central Support and Overheads,BVACEN,Support Services (SSC),PPT,Transport Related,D,Public Transport,DD,16/03/2018,PAY01045669,MEMB,Members Services,599,Revenue,Brighton & Hove Bus and Coach Co Ltd
Brighton & Hove City Council,http://statistics.data.gov.uk/id/local-authority/00ML,Environment & Regulatory Serv,BVAERS,Environmental Health,EVH,Transport Related,D,Contract Hire n Operating Leas,DB,16/03/2018,PAY01045669,PUPO,Public Protection,1142.84,Revenue,Brighton & Hove Bus and Coach Co Ltd
Brighton & Hove City Council,http://statistics.data.gov.uk/id/local-authority/00ML,Environment & Regulatory Serv,BVAERS,Environmental Health,EVH,Transport Related,D,Other Transport Costs,DG,16/03/2018,PAY01045669,HIGH,Traffic Management,79,Revenue,Brighton & Hove Bus and Coach Co Ltd
Brighton & Hove City Council,http://statistics.data.gov.uk/id/local-authority/00ML,Adult Social Care,BVASOC,Social Care Activities,ACM,Transport Related,D,Public Transport,DD,21/03/2018,PAY01046584,ASIT,Assessment and SIT,573,Revenue,Brighton & Hove Bus and Coach Co Ltd
Brighton & Hove City Council,http://statistics.data.gov.uk/id/local-authority/00ML,Highways and Transportation,BVAHRT,Public Transport,PTR,Third Party Payments,F,Private Contractors,FJ,23/03/2018,PAY01047580,TPRS,Transport Projects and Eng,19743.71,Revenue,Brighton & Hove Bus and Coach Co Ltd
Brighton & Hove City Council,http://statistics.data.gov.uk/id/local-authority/00ML,Adult Social Care,BVASOC,ASC Learning Disabilities,ALD,Transport Related,D,Public Transport,DD,28/03/2018,PAY01048637,LDHC,Adults LD Home Care,234.9,Revenue,Brighton & Hove Bus and Coach Co Ltd
Brighton & Hove City Council,http://statistics.data.gov.uk/id/local-authority/00ML,Children`s & Education Serv,BVAEDU,Child Srvcs - Other Fam Supp,FFX,Transfer Payments,G,Other Transfer Payments,GD,28/03/2018,PAY01048637,FAMP,Families\Prevention,485.9,Revenue,Brighton & Hove Bus and Coach Co Ltd
Brighton & Hove City Council,http://statistics.data.gov.uk/id/local-authority/00ML,Environment & Regulatory Serv,BVAERS,Management Services (DEC),MGT,Third Party Payments,F,Private Contractors,FJ,28/03/2018,PAY01048637,CICL,City Clean,2628.34,Revenue,Brighton & Hove Bus and Coach Co Ltd
Brighton & Hove City Council,http://statistics.data.gov.uk/id/local-authority/00ML,Highways and Transportation,BVAHRT,Public Transport,PTR,Third Party Payments,F,Private Contractors,FJ,28/03/2018,PAY01048637,TPRS,Transport Projects and Eng,6233.33,Revenue,Brighton & Hove Bus and Coach Co Ltd
Brighton & Hove City Council,http://statistics.data.gov.uk/id/local-authority/00ML,Highways and Transportation,BVAHRT,Public Transport,PTR,Transport Related,D,Public Transport,DD,28/03/2018,PAY01048637,CONF,Concessionary Fares,808585.75,Revenue,Brighton & Hove Bus and Coach Co Ltd
Brighton & Hove City Council,http://statistics.data.gov.uk/id/local-authority/00ML,Planning and Development,BVAPLA,Economic Development,ECD,Supplies and Services,E,Miscellaneous Expenses,EM,21/03/2018,PAY01046594,ECOD,Economic Development,5000,Revenue,Brighton & Hove Chamber of Commerce
Brighton & Hove City Council,http://statistics.data.gov.uk/id/local-authority/00ML,Public Health,BVAPHE,Public Health,PHE,Supplies and Services,E,Miscellaneous Expenses,EM,16/03/2018,PAY01045537,PHCM,PH Commissioning,35750,Revenue,Brighton & Hove Citizens Advice Bureau
Brighton & Hove City Council,http://statistics.data.gov.uk/id/local-authority/00ML,Housing General Fund,BVAHOG,Hsing Benefits,HGB,Third Party Payments,F,Other Establishments,FH,21/03/2018,PAY01046498,REVS,Revenues and Benefits,14000,Revenue,Brighton & Hove Citizens Advice Bureau
Brighton & Hove City Council,http://statistics.data.gov.uk/id/local-authority/00ML,Children`s & Education Serv,BVAEDU,Ed Secondary Ed,EJE,Supplies and Services,E,Services,EF,09/03/2018,PAY01043318,OEDS,Other Education Support,259794.56,Revenue,Brighton & Hove City Schools Services Ltd
Brighton & Hove City Council,http://statistics.data.gov.uk/id/local-authority/00ML,Children`s & Education Serv,BVAEDU,Ed Secondary Ed,EJE,Supplies and Services,E,Services,EF,16/03/2018,PAY01045487,OEDS,Other Education Support,14903.6,Revenue,Brighton & Hove City Schools Services Ltd
Brighton & Hove City Council,http://statistics.data.gov.uk/id/local-authority/00ML,Children`s & Education Serv,BVAEDU,Ed Secondary Ed,EJE,Supplies and Services,E,Services,EF,28/03/2018,PAY01048449,OEDS,Other Education Support,704.96,Revenue,Brighton & Hove City Schools Services Ltd
Brighton & Hove City Council,http://statistics.data.gov.uk/id/local-authority/00ML,Housing General Fund,BVAHOG,Hsing Strat Advice and RSLs,HGR,Supplies and Services,E,Grants n Subscriptions,EK,29/03/2018,PAY01050799,HSAD,Housing Strategy & Enabling,39335.68,Revenue,Brighton & Hove Community Land Trust Ltd - CLH
Brighton & Hove City Council,http://statistics.data.gov.uk/id/local-authority/00ML,Planning and Development,BVAPLA,Economic Development,ECD,Supplies and Services,E,Grants n Subscriptions,EK,29/03/2018,PAY01050537,CMNY,Communities and Equalities,12000,Revenue,Brighton & Hove Faith In Action
Brighton & Hove City Council,http://statistics.data.gov.uk/id/local-authority/00ML,Environment & Regulatory Serv,BVAERS,Waste Management,WMT,Third Party Payments,F,Private Contractors,FJ,21/03/2018,PAY01046636,CICL,City Clean,2548.38,Revenue,Brighton & Hove Food Partnership
Brighton & Hove City Council,http://statistics.data.gov.uk/id/local-authority/00ML,Public Health,BVAPHE,Public Health,PHE,Premises Related,C,Rents Payable,CC,21/03/2018,PAY01046636,PHCM,PH Commissioning,570,Revenue,Brighton & Hove Food Partnership
Brighton & Hove City Council,http://statistics.data.gov.uk/id/local-authority/00ML,Environment & Regulatory Serv,BVAERS,Waste Management,WMT,Third Party Payments,F,Private Contractors,FJ,23/03/2018,PAY01047637,CICL,City Clean,1380.6,Revenue,Brighton & Hove Food Partnership
Brighton & Hove City Council,http://statistics.data.gov.uk/id/local-authority/00ML,Children`s & Education Serv,BVAEDU,Ed Ed Other Other,ENF,Third Party Payments,F,Other Establishments,FH,28/03/2018,PAY01048688,SCOR,School Organisation,1850,Revenue,Brighton & Hove Food Partnership
Brighton & Hove City Council,http://statistics.data.gov.uk/id/local-authority/00ML,Environment & Regulatory Serv,BVAERS,Waste Management,WMT,Third Party Payments,F,Private Contractors,FJ,29/03/2018,PAY01049837,CICL,City Clean,3658.81,Revenue,Brighton & Hove Food Partnership
Brighton & Hove City Council,http://statistics.data.gov.uk/id/local-authority/00ML,Children`s & Education Serv,BVAEDU,Ed EY PVI,ENP,Supplies and Services,E,Grants n Subscriptions,EK,07/03/2018,PAY01042218,EYRS,Early Years,2919,Revenue,Brighton & Hove High School- Junior Dept
Brighton & Hove City Council,http://statistics.data.gov.uk/id/local-authority/00ML,Planning and Development,BVAPLA,Economic Development,ECD,Supplies and Services,E,Grants n Subscriptions,EK,02/03/2018,PAY01041470,CMNY,Communities and Equalities,2000,Revenue,Brighton & Hove LGBT Community Safety Forum
Brighton & Hove City Council,http://statistics.data.gov.uk/id/local-authority/00ML,Children`s & Education Serv,BVAEDU,Ed EY PVI,ENP,Supplies and Services,E,Grants n Subscriptions,EK,07/03/2018,PAY01042201,EYRS,Early Years,3630,Revenue,Brighton & Hove Montessori School
Brighton & Hove City Council,http://statistics.data.gov.uk/id/local-authority/00ML,Children`s & Education Serv,BVAEDU,Ed EY Central,EAE,Supplies and Services,E,Grants n Subscriptions,EK,09/03/2018,PAY01043230,EYRS,Early Years,50,Revenue,Brighton & Hove Montessori School
Brighton & Hove City Council,http://statistics.data.gov.uk/id/local-authority/00ML,Children`s & Education Serv,BVAEDU,Ed EY PVI,ENP,Supplies and Services,E,Grants n Subscriptions,EK,09/03/2018,PAY01043230,EYRS,Early Years,429,Revenue,Brighton & Hove Montessori School
Brighton & Hove City Council,http://statistics.data.gov.uk/id/local-authority/00ML,Housing General Fund,BVAHOG,Homelessness,HML,Premises Related,C,Rents Payable,CC,02/03/2018,PAY01041895,TAAS,Temp Accom and Allocations,1000,Revenue,Brighton & Hove Properties Ltd
Brighton & Hove City Council,http://statistics.data.gov.uk/id/local-authority/00ML,Housing General Fund,BVAHOG,Homelessness,HML,Premises Related,C,Rents Payable,CC,29/03/2018,PAY01050676,TAAS,Temp Accom and Allocations,1000,Revenue,Brighton & Hove Properties Ltd
Brighton & Hove City Council,http://statistics.data.gov.uk/id/local-authority/00ML,Children`s & Education Serv,BVAEDU,Ed Ed Other LA Attrib Sch,ELA,Transport Related,D,Other Transport Costs,DG,02/03/2018,PAY01041016,SCOR,School Organisation,20491.4,Revenue,Brighton & Hove Radio Cabs Ltd
Brighton & Hove City Council,http://statistics.data.gov.uk/id/local-authority/00ML,Children`s & Education Serv,BVAEDU,Ed Ed Other LA Attrib Sch,ELA,Transport Related,D,Public Transport,DD,02/03/2018,PAY01041016,SCOR,School Organisation,1959.8,Revenue,Brighton & Hove Radio Cabs Ltd
Brighton & Hove City Council,http://statistics.data.gov.uk/id/local-authority/00ML,Children`s & Education Serv,BVAEDU,Support Services (SSC),PPT,Transport Related,D,Public Transport,DD,02/03/2018,PAY01041016,SCOR,School Organisation,1845.4,Revenue,Brighton & Hove Radio Cabs Ltd
Brighton & Hove City Council,http://statistics.data.gov.uk/id/local-authority/00ML,Highways and Transportation,BVAHRT,Public Transport,PTR,Transport Related,D,Public Transport,DD,02/03/2018,PAY01041016,PARK,Parking Services,364,Revenue,Brighton & Hove Radio Cabs Ltd
Brighton & Hove City Council,http://statistics.data.gov.uk/id/local-authority/00ML,Children`s & Education Serv,BVAEDU,Ed Ed Other LA Attrib Sch,ELA,Transport Related,D,Public Transport,DD,07/03/2018,PAY01042433,SCOR,School Organisation,132,Revenue,Brighton & Hove Radio Cabs Ltd
Brighton & Hove City Council,http://statistics.data.gov.uk/id/local-authority/00ML,Children`s & Education Serv,BVAEDU,Support Services (SSC),PPT,Transport Related,D,Public Transport,DD,07/03/2018,PAY01042433,SCOR,School Organisation,369,Revenue,Brighton & Hove Radio Cabs Ltd
Brighton & Hove City Council,http://statistics.data.gov.uk/id/local-authority/00ML,Children`s & Education Serv,BVAEDU,Ed Ed Other LA Attrib Sch,ELA,Transport Related,D,Public Transport,DD,16/03/2018,PAY01045668,SCOR,School Organisation,2768,Revenue,Brighton & Hove Radio Cabs Ltd
Brighton & Hove City Council,http://statistics.data.gov.uk/id/local-authority/00ML,Children`s & Education Serv,BVAEDU,Support Services (SSC),PPT,Transport Related,D,Public Transport,DD,16/03/2018,PAY01045668,SCOR,School Organisation,3519.82,Revenue,Brighton & Hove Radio Cabs Ltd
Brighton & Hove City Council,http://statistics.data.gov.uk/id/local-authority/00ML,Cultural and Related Serv,BVACUL,Culture and Heritage,CHG,Transport Related,D,Public Transport,DD,21/03/2018,PAY01046582,VENU,Venues,940.26,Revenue,Brighton & Hove Radio Cabs Ltd
Brighton & Hove City Council,http://statistics.data.gov.uk/id/local-authority/00ML,Children`s & Education Serv,BVAEDU,Ed Ed Other LA Attrib Sch,ELA,Transport Related,D,Other Transport Costs,DG,28/03/2018,PAY01048635,SCOR,School Organisation,660,Revenue,Brighton & Hove Radio Cabs Ltd
Brighton & Hove City Council,http://statistics.data.gov.uk/id/local-authority/00ML,Children`s & Education Serv,BVAEDU,Ed Ed Other LA Attrib Sch,ELA,Transport Related,D,Public Transport,DD,28/03/2018,PAY01048635,SCOR,School Organisation,2484.2,Revenue,Brighton & Hove Radio Cabs Ltd
Brighton & Hove City Council,http://statistics.data.gov.uk/id/local-authority/00ML,Children`s & Education Serv,BVAEDU,Support Services (SSC),PPT,Transport Related,D,Public Transport,DD,28/03/2018,PAY01048635,SCOR,School Organisation,2498.54,Revenue,Brighton & Hove Radio Cabs Ltd
Brighton & Hove City Council,http://statistics.data.gov.uk/id/local-authority/00ML,Cultural and Related Serv,BVACUL,Culture and Heritage,CHG,Transport Related,D,Public Transport,DD,28/03/2018,PAY01048635,VENU,Venues,992.6,Revenue,Brighton & Hove Radio Cabs Ltd
Brighton & Hove City Council,http://statistics.data.gov.uk/id/local-authority/00ML,Housing General Fund,BVAHOG,Homelessness,HML,Supplies and Services,E,Contributions to Provisions,EL,21/03/2018,PAY01046688,SSHS,Seaside Homes (BHSCH),476951,Revenue,Brighton & Hove Seaside Community Homes Limited
Brighton & Hove City Council,http://statistics.data.gov.uk/id/local-authority/00ML,Planning and Development,BVAPLA,Economic Development,ECD,Supplies and Services,E,Grants n Subscriptions,EK,29/03/2018,PAY01049579,CMNY,Communities and Equalities,10000,Revenue,Brighton & Hove Social Welfare Educational Trust
Brighton & Hove City Council,http://statistics.data.gov.uk/id/local-authority/00ML,Housing Revenue Account,BVAHOU,Hsing Management - HRA,HGM,Third Party Payments,F,Other Establishments,FH,16/03/2018,PAY01045459,HOHH,Head of Housing HRA,700,Revenue,Brighton & Hove Speak Out
Brighton & Hove City Council,http://statistics.data.gov.uk/id/local-authority/00ML,Central Support and Overheads,BVACEN,Support Services (SSC),PPT,Transport Related,D,Public Transport,DD,14/03/2018,PAY01044539,DEMO,Democratic Services,37.4,Revenue,Brighton & Hove Streamline Taxis Ltd
Brighton & Hove City Council,http://statistics.data.gov.uk/id/local-authority/00ML,Children`s & Education Serv,BVAEDU,Ed Ed Other LA Attrib Sch,ELA,Transport Related,D,Other Transport Costs,DG,14/03/2018,PAY01044539,SCOR,School Organisation,6501,Revenue,Brighton & Hove Streamline Taxis Ltd
Brighton & Hove City Council,http://statistics.data.gov.uk/id/local-authority/00ML,Children`s & Education Serv,BVAEDU,Ed Ed Other LA Attrib Sch,ELA,Transport Related,D,Public Transport,DD,14/03/2018,PAY01044539,SCOR,School Organisation,6319,Revenue,Brighton & Hove Streamline Taxis Ltd
Brighton & Hove City Council,http://statistics.data.gov.uk/id/local-authority/00ML,Highways and Transportation,BVAHRT,Public Transport,PTR,Transport Related,D,Public Transport,DD,14/03/2018,PAY01044539,PARK,Parking Services,1164,Revenue,Brighton & Hove Streamline Taxis Ltd
Brighton & Hove City Council,http://statistics.data.gov.uk/id/local-authority/00ML,Housing Revenue Account,BVAHOU,Hsing Management - HRA,HGM,Transport Related,D,Public Transport,DD,14/03/2018,PAY01044539,HIII,Income Involvement Improvement,16.5,Revenue,Brighton & Hove Streamline Taxis Ltd
Brighton & Hove City Council,http://statistics.data.gov.uk/id/local-authority/00ML,Central Services to the Public,BVACEN,Reg - Birth Death and Marriage,RBD,Transport Related,D,Public Transport,DD,16/03/2018,PAY01045536,REGI,Registrars,28.6,Revenue,Brighton & Hove Streamline Taxis Ltd
Brighton & Hove City Council,http://statistics.data.gov.uk/id/local-authority/00ML,Central Support and Overheads,BVACEN,Support Services (SSC),PPT,Transport Related,D,Public Transport,DD,16/03/2018,PAY01045536,COMU,Communications,22.44,Revenue,Brighton & Hove Streamline Taxis Ltd
Brighton & Hove City Council,http://statistics.data.gov.uk/id/local-authority/00ML,Cultural and Related Serv,BVACUL,Tourism,TRM,Supplies and Services,E,Miscellaneous Expenses,EM,16/03/2018,PAY01045536,TOMA,Tourism and Marketing,51.8,Revenue,Brighton & Hove Streamline Taxis Ltd
Brighton & Hove City Council,http://statistics.data.gov.uk/id/local-authority/00ML,Housing Revenue Account,BVAHOU,Hsing Management - HRA,HGM,Transport Related,D,Public Transport,DD,16/03/2018,PAY01045536,HIII,Income Involvement Improvement,171.93,Revenue,Brighton & Hove Streamline Taxis Ltd
Brighton & Hove City Council,http://statistics.data.gov.uk/id/local-authority/00ML,Central Support and Overheads,BVACEN,Support Services (SSC),PPT,Transport Related,D,Public Transport,DD,21/03/2018,PAY01046497,DEMO,Democratic Services,22.41,Revenue,Brighton & Hove Streamline Taxis Ltd
Brighton & Hove City Council,http://statistics.data.gov.uk/id/local-authority/00ML,Central Support and Overheads,BVACEN,Support Services (SSC),PPT,Transport Related,D,Public Transport,DD,21/03/2018,PAY01046497,MEMB,Members Services,17.41,Revenue,Brighton & Hove Streamline Taxis Ltd
Brighton & Hove City Council,http://statistics.data.gov.uk/id/local-authority/00ML,Children`s & Education Serv,BVAEDU,Support Services (SSC),PPT,Transport Related,D,Public Transport,DD,21/03/2018,PAY01046497,SCOR,School Organisation,4517.6,Revenue,Brighton & Hove Streamline Taxis Ltd
Brighton & Hove City Council,http://statistics.data.gov.uk/id/local-authority/00ML,Housing Revenue Account,BVAHOU,Hsing Management - HRA,HGM,Transport Related,D,Public Transport,DD,21/03/2018,PAY01046497,HIII,Income Involvement Improvement,456.4,Revenue,Brighton & Hove Streamline Taxis Ltd
Brighton & Hove City Council,http://statistics.data.gov.uk/id/local-authority/00ML,Children`s & Education Serv,BVAEDU,Child Srvcs Other,FAX,Transport Related,D,Public Transport,DD,23/03/2018,PAY01047433,YOTS,Youth Service,174.9,Revenue,Brighton & Hove Streamline Taxis Ltd
Brighton & Hove City Council,http://statistics.data.gov.uk/id/local-authority/00ML,Cultural and Related Serv,BVACUL,Management Services (DEC),MGT,Transport Related,D,Public Transport,DD,23/03/2018,PAY01047433,RPMU,Royal Pavilion and Museums,116.49,Revenue,Brighton & Hove Streamline Taxis Ltd
Brighton & Hove City Council,http://statistics.data.gov.uk/id/local-authority/00ML,Cultural and Related Serv,BVACUL,Tourism,TRM,Supplies and Services,E,Miscellaneous Expenses,EM,23/03/2018,PAY01047433,TOMA,Tourism and Marketing,80.7,Revenue,Brighton & Hove Streamline Taxis Ltd
Brighton & Hove City Council,http://statistics.data.gov.uk/id/local-authority/00ML,Central Services to the Public,BVACEN,Elections,ELE,Transport Related,D,Public Transport,DD,28/03/2018,PAY01048518,ELEC,Elections,17.16,Revenue,Brighton & Hove Streamline Taxis Ltd
Brighton & Hove City Council,http://statistics.data.gov.uk/id/local-authority/00ML,Central Support and Overheads,BVACEN,Support Services (SSC),PPT,Transport Related,D,Public Transport,DD,28/03/2018,PAY01048518,FINS,Financial Services,33.55,Revenue,Brighton & Hove Streamline Taxis Ltd
Brighton & Hove City Council,http://statistics.data.gov.uk/id/local-authority/00ML,Children`s & Education Serv,BVAEDU,Ed Ed Other Strat Mgt,ENM,Transport Related,D,Public Transport,DD,28/03/2018,PAY01048518,DOCS,Dir Families Children Learning,23.76,Revenue,Brighton & Hove Streamline Taxis Ltd
Brighton & Hove City Council,http://statistics.data.gov.uk/id/local-authority/00ML,Cultural and Related Serv,BVACUL,Culture and Heritage,CHG,Transport Related,D,Public Transport,DD,28/03/2018,PAY01048518,RPMU,Royal Pavilion and Museums,33.88,Revenue,Brighton & Hove Streamline Taxis Ltd
Brighton & Hove City Council,http://statistics.data.gov.uk/id/local-authority/00ML,Highways and Transportation,BVAHRT,Parking Services,PRK,Transport Related,D,Public Transport,DD,28/03/2018,PAY01048518,PARK,Parking Services,248.16,Revenue,Brighton & Hove Streamline Taxis Ltd
Brighton & Hove City Council,http://statistics.data.gov.uk/id/local-authority/00ML,Housing Revenue Account,BVAHOU,Hsing Management - HRA,HGM,Transport Related,D,Public Transport,DD,28/03/2018,PAY01048518,HIII,Income Involvement Improvement,25.3,Revenue,Brighton & Hove Streamline Taxis Ltd
Brighton & Hove City Council,http://statistics.data.gov.uk/id/local-authority/00ML,Library Services,BVACUL,Library Service,LBR,Transport Related,D,Public Transport,DD,28/03/2018,PAY01048518,LIBS,Libraries,69,Revenue,Brighton & Hove Streamline Taxis Ltd
Brighton & Hove City Council,http://statistics.data.gov.uk/id/local-authority/00ML,Children`s & Education Serv,BVAEDU,Ed EY PVI,ENP,Supplies and Services,E,Grants n Subscriptions,EK,07/03/2018,PAY01042340,EYRS,Early Years,6878.4,Revenue,Brighton & Sussex University Hospitals NHS Trust
Brighton & Hove City Council,http://statistics.data.gov.uk/id/local-authority/00ML,Children`s & Education Serv,BVAEDU,Ed EY PVI,ENP,Supplies and Services,E,Grants n Subscriptions,EK,09/03/2018,PAY01043387,EYRS,Early Years,2745.6,Revenue,Brighton & Sussex University Hospitals NHS Trust
Brighton & Hove City Council,http://statistics.data.gov.uk/id/local-authority/00ML,Environment & Regulatory Serv,BVAERS,Court Services,CRT,Supplies and Services,E,Equip't Furniture n Materials,EA,23/03/2018,PAY01047434,CORO,Coroner,3840.5,Revenue,Brighton & Sussex University Hospitals NHS Trust
Brighton & Hove City Council,http://statistics.data.gov.uk/id/local-authority/00ML,Non-BHC Organisations,BVANON,Trusts,TRT,Supplies and Services,E,Miscellaneous Expenses,EM,23/03/2018,PAY01047434,NBHC,Non Council,624.66,Revenue,Brighton & Sussex University Hospitals NHS Trust
Brighton & Hove City Council,http://statistics.data.gov.uk/id/local-authority/00ML,Public Health,BVAPHE,Public Health,PHE,Third Party Payments,F,Health Authorities,FC,28/03/2018,PAY01048520,PHCM,PH Commissioning,28125,Revenue,Brighton & Sussex University Hospitals NHS Trust
Brighton & Hove City Council,http://statistics.data.gov.uk/id/local-authority/00ML,Public Health,BVAPHE,Public Health,PHE,Third Party Payments,F,Health Authorities,FC,29/03/2018,PAY01049583,PHCM,PH Commissioning,883831,Revenue,Brighton & Sussex University Hospitals NHS Trust
Brighton & Hove City Council,http://statistics.data.gov.uk/id/local-authority/00ML,Non I&E,BVANON,CAP Housing Services GF,4HG,Capital Grants,PF,Capital Grants,PFL5,09/03/2018,PAY01043644,PSHG,Private Sector Housing,400,Capital,Brighton Able Ltd
Brighton & Hove City Council,http://statistics.data.gov.uk/id/local-authority/00ML,Non I&E,BVANON,CAP Housing Services GF,4HG,Capital Grants,PF,Capital Grants,PFL5,28/03/2018,PAY01048674,PSHG,Private Sector Housing,800,Capital,Brighton Able Ltd
Brighton & Hove City Council,http://statistics.data.gov.uk/id/local-authority/00ML,Non I&E,BVANON,CAP Housing Services GF,4HG,Capital Grants,PF,Capital Grants,PFL5,29/03/2018,PAY01049813,PSHG,Private Sector Housing,400,Capital,Brighton Able Ltd
Brighton & Hove City Council,http://statistics.data.gov.uk/id/local-authority/00ML,Housing General Fund,BVAHOG,Private Sector Hsing Renewal,PHR,Customer n Client Receipts,M,Fees n Charges,MB,21/03/2018,PAY01046779,PSHG,Private Sector Housing,960,Revenue,Brighton Accommodation Agency
Brighton & Hove City Council,http://statistics.data.gov.uk/id/local-authority/00ML,Housing General Fund,BVAHOG,Private Sector Hsing Renewal,PHR,Customer n Client Receipts,M,Fees n Charges,MB,23/03/2018,PAY01047836,PSHG,Private Sector Housing,1460,Revenue,Brighton Accommodation Agency
Brighton & Hove City Council,http://statistics.data.gov.uk/id/local-authority/00ML,Children`s & Education Serv,BVAEDU,Ed Mgmt and Support Services,EMG,Supplies and Services,E,Contributions to Provisions,EL,21/03/2018,PAY01046702,ACED,Access to Education,4500,Revenue,Brighton Aldridge Community Academy
Brighton & Hove City Council,http://statistics.data.gov.uk/id/local-authority/00ML,Planning and Development,BVAPLA,Economic Development,ECD,Supplies and Services,E,Grants n Subscriptions,EK,29/03/2018,PAY01050895,CMNY,Communities and Equalities,10000,Revenue,Brighton and Hove Green Spaces Forum
Brighton & Hove City Council,http://statistics.data.gov.uk/id/local-authority/00ML,Housing General Fund,BVAHOG,Homelessness,HML,Customer n Client Receipts,M,Fees n Charges,MB,14/03/2018,PAY01044803,SSHS,Seaside Homes (BHSCH),326974,Revenue,Brighton and Hove Seaside Community Homes Ltd
Brighton & Hove City Council,http://statistics.data.gov.uk/id/local-authority/00ML,Planning and Development,BVAPLA,Economic Development,ECD,Supplies and Services,E,Grants n Subscriptions,EK,21/03/2018,PAY01047191,CMNY,Communities and Equalities,465,Revenue,Brighton and Hove Textile Arts Group 
Brighton & Hove City Council,http://statistics.data.gov.uk/id/local-authority/00ML,Adult Social Care,BVASOC,ASC Mental Health Support,MHP,Third Party Payments,F,Other Establishments,FH,07/03/2018,PAY01042619,MENH,Mental Health Support,9371.52,Revenue,Brighton and Sussex Care Ltd
Brighton & Hove City Council,http://statistics.data.gov.uk/id/local-authority/00ML,Adult Social Care,BVASOC,ASC Physical Support,PHY,Customer n Client Receipts,M,Fees n Charges,MB,29/03/2018,PAY01050066,PHYS,Physical Support,-152,Revenue,Brighton and Sussex Care Ltd
Brighton & Hove City Council,http://statistics.data.gov.uk/id/local-authority/00ML,Adult Social Care,BVASOC,ASC Physical Support,PHY,Third Party Payments,F,Other Establishments,FH,29/03/2018,PAY01050066,PHYS,Physical Support,6625.5,Revenue,Brighton and Sussex Care Ltd
Brighton & Hove City Council,http://statistics.data.gov.uk/id/local-authority/00ML,Non-BHC Organisations,BVANON,Trusts,TRT,Supplies and Services,E,Grants n Subscriptions,EK,01/03/2018,PAY517109,NBHC,Non Council,329,Revenue,Brighton Bed Centre Ltd
Brighton & Hove City Council,http://statistics.data.gov.uk/id/local-authority/00ML,Non I&E,BVANON,Non-Council,NNC,Third Party Payments,F,Other Establishments,FH,23/03/2018,PAY01047426,DEVP,Development Planning,4219.48,Revenue,Brighton BID Limited
Brighton & Hove City Council,http://statistics.data.gov.uk/id/local-authority/00ML,Children`s & Education Serv,BVAEDU,Ed EY PVI,ENP,Supplies and Services,E,Grants n Subscriptions,EK,07/03/2018,PAY01042424,EYRS,Early Years,1167,Revenue,Brighton College
Brighton & Hove City Council,http://statistics.data.gov.uk/id/local-authority/00ML,Non I&E,BVANON,CAP Mgmnt and Suppt Services,4PT,Plant Machinery n Equipment,PE2,Plant Machinery n Equipment,PE2L5,02/03/2018,PAY01041829,DIGF,Digital First,10000,Capital,Brighton Digital Festival CIC
Brighton & Hove City Council,http://statistics.data.gov.uk/id/local-authority/00ML,Planning and Development,BVAPLA,Economic Development,ECD,Supplies and Services,E,Miscellaneous Expenses,EM,14/03/2018,PAY01044974,ECOD,Economic Development,15500,Revenue,Brighton Digital Festival CIC
Brighton & Hove City Council,http://statistics.data.gov.uk/id/local-authority/00ML,Central Support and Overheads,BVACEN,Support Services (SSC),PPT,Premises Related,C,Repair Maint n Alterations,CA,09/03/2018,PAY01043260,PROP,Property and Design,25000,Revenue,Brighton Dome & Festival Ltd
Brighton & Hove City Council,http://statistics.data.gov.uk/id/local-authority/00ML,Non I&E,BVANON,Trusts,TRT,Supplies and Services,E,Miscellaneous Expenses,EM,16/03/2018,PAY01045445,NBHC,Non Council,30673.2,Revenue,Brighton Dome & Festival Ltd
Brighton & Hove City Council,http://statistics.data.gov.uk/id/local-authority/00ML,Cultural and Related Serv,BVACUL,Culture and Heritage,CHG,Premises Related,C,Water Services,CE,23/03/2018,PAY01047343,RPMU,Royal Pavilion and Museums,1442.24,Revenue,Brighton Dome & Festival Ltd
Brighton & Hove City Council,http://statistics.data.gov.uk/id/local-authority/00ML,Children`s & Education Serv,BVAEDU,Ed Ed Other Other,ENF,Third Party Payments,F,Other Establishments,FH,28/03/2018,PAY01048386,VSCH,Virtual School,3592,Revenue,Brighton Dome & Festival Ltd
Brighton & Hove City Council,http://statistics.data.gov.uk/id/local-authority/00ML,Public Health,BVAPHE,Public Health,PHE,Supplies and Services,E,Miscellaneous Expenses,EM,29/03/2018,PAY01049447,PHCM,PH Commissioning,1600,Revenue,Brighton Dome & Festival Ltd
Brighton & Hove City Council,http://statistics.data.gov.uk/id/local-authority/00ML,Adult Social Care,BVASOC,ASC Mental Health Support,MHP,Customer n Client Receipts,M,Fees n Charges,MB,09/03/2018,PAY01043389,MENH,Mental Health Support,-309,Revenue,Brighton Housing Trust
Brighton & Hove City Council,http://statistics.data.gov.uk/id/local-authority/00ML,Adult Social Care,BVASOC,ASC Mental Health Support,MHP,Third Party Payments,F,Other Establishments,FH,09/03/2018,PAY01043389,MENH,Mental Health Support,20517.43,Revenue,Brighton Housing Trust
Brighton & Hove City Council,http://statistics.data.gov.uk/id/local-authority/00ML,Housing General Fund,BVAHOG,Hsing Welfare,HGW,Transfer Payments,G,Supporting People,GF,14/03/2018,PAY01044540,CONT,Contracts,63615.16,Revenue,Brighton Housing Trust 
Brighton & Hove City Council,http://statistics.data.gov.uk/id/local-authority/00ML,Planning and Development,BVAPLA,Economic Development,ECD,Supplies and Services,E,Grants n Subscriptions,EK,23/03/2018,PAY01047778,CMNY,Communities and Equalities,1250,Revenue,Brighton Malayalee Association
Brighton & Hove City Council,http://statistics.data.gov.uk/id/local-authority/00ML,Planning and Development,BVAPLA,Economic Development,ECD,Supplies and Services,E,Grants n Subscriptions,EK,16/03/2018,PAY01045807,CMNY,Communities and Equalities,1000,Revenue,Brighton Male Voice Choir
Brighton & Hove City Council,http://statistics.data.gov.uk/id/local-authority/00ML,Children`s & Education Serv,BVAEDU,Ed Ed Other Other,ENF,Premises Related,C,Repair Maint n Alterations,CA,21/03/2018,PAY01046529,SCOR,School Organisation,1000,Revenue,Brighton Paper Round Ltd
Brighton & Hove City Council,http://statistics.data.gov.uk/id/local-authority/00ML,Children`s & Education Serv,BVAEDU,Ed Ed Other LA Attrib Sch,ELA,Premises Related,C,Rents Payable,CC,14/03/2018,PAY01044428,NQLT,Newly Qualified Teachers,112.5,Revenue,Brighton Quaker Meeting
Brighton & Hove City Council,http://statistics.data.gov.uk/id/local-authority/00ML,Children`s & Education Serv,BVAEDU,Ed Mgmt and Support Services,EMG,Premises Related,C,Rents Payable,CC,14/03/2018,PAY01044428,GOVS,Governor Support,316.5,Revenue,Brighton Quaker Meeting
Brighton & Hove City Council,http://statistics.data.gov.uk/id/local-authority/00ML,Children`s & Education Serv,BVAEDU,Ed Mgmt and Support Services,EMG,Premises Related,C,Rents Payable,CC,28/03/2018,PAY01048395,GOVS,Governor Support,291,Revenue,Brighton Quaker Meeting
Brighton & Hove City Council,http://statistics.data.gov.uk/id/local-authority/00ML,Planning and Development,BVAPLA,Economic Development,ECD,Supplies and Services,E,Grants n Subscriptions,EK,29/03/2018,PAY01049537,CMNY,Communities and Equalities,4250,Revenue,Brighton Science Festival
Brighton & Hove City Council,http://statistics.data.gov.uk/id/local-authority/00ML,Cultural and Related Serv,BVACUL,Culture and Heritage,CHG,Supplies and Services,E,Equip't Furniture n Materials,EA,14/03/2018,PAY01044858,RPMU,Royal Pavilion and Museums,280,Revenue,Brighton Sound System Ltd
Brighton & Hove City Council,http://statistics.data.gov.uk/id/local-authority/00ML,Cultural and Related Serv,BVACUL,Culture and Heritage,CHG,Supplies and Services,E,Miscellaneous Expenses,EM,28/03/2018,PAY01049068,VENU,Venues,318,Revenue,Brighton Spirits Company Ltd
Brighton & Hove City Council,http://statistics.data.gov.uk/id/local-authority/00ML,Children`s & Education Serv,BVAEDU,Ed EY PVI,ENP,Supplies and Services,E,Grants n Subscriptions,EK,07/03/2018,PAY01042537,EYRS,Early Years,6504.3,Revenue,Brighton Steiner School Ltd
Brighton & Hove City Council,http://statistics.data.gov.uk/id/local-authority/00ML,Children`s & Education Serv,BVAEDU,Ed Ed Other Other,ENF,Third Party Payments,F,Other Establishments,FH,14/03/2018,PAY01044662,VSCH,Virtual School,660,Revenue,Brighton Table Tennis Club
Brighton & Hove City Council,http://statistics.data.gov.uk/id/local-authority/00ML,Central Support and Overheads,BVACEN,Support Services (SSC),PPT,Supplies and Services,E,Equip't Furniture n Materials,EA,02/03/2018,PAY01040886,SCOR,School Organisation,1329.16,Revenue,Brighton Tools & Fixings Ltd
Brighton & Hove City Council,http://statistics.data.gov.uk/id/local-authority/00ML,Cultural and Related Serv,BVACUL,Culture and Heritage,CHG,Premises Related,C,Repair Maint n Alterations,CA,07/03/2018,PAY01042341,VENU,Venues,418.43,Revenue,Brighton Tools & Fixings Ltd
Brighton & Hove City Council,http://statistics.data.gov.uk/id/local-authority/00ML,Adult Social Care,BVASOC,ASC Learning Disabilities,ALD,Customer n Client Receipts,M,Fees n Charges,MB,07/03/2018,PAY01042726,LDIS,Adults LD Community Care,-928,Revenue,Brighton Vision
Brighton & Hove City Council,http://statistics.data.gov.uk/id/local-authority/00ML,Adult Social Care,BVASOC,ASC Learning Disabilities,ALD,Third Party Payments,F,Other Establishments,FH,07/03/2018,PAY01042726,LDIS,Adults LD Community Care,9402.72,Revenue,Brighton Vision
Brighton & Hove City Council,http://statistics.data.gov.uk/id/local-authority/00ML,Adult Social Care,BVASOC,ASC Learning Disabilities,ALD,Customer n Client Receipts,M,Fees n Charges,MB,29/03/2018,PAY01050296,LDIS,Adults LD Community Care,-928,Revenue,Brighton Vision
Brighton & Hove City Council,http://statistics.data.gov.uk/id/local-authority/00ML,Adult Social Care,BVASOC,ASC Learning Disabilities,ALD,Third Party Payments,F,Other Establishments,FH,29/03/2018,PAY01050296,LDIS,Adults LD Community Care,9457,Revenue,Brighton Vision
Brighton & Hove City Council,http://statistics.data.gov.uk/id/local-authority/00ML,Public Health,BVAPHE,Community Safety,CMY,Third Party Payments,F,Other Establishments,FH,07/03/2018,PAY01042637,CSTP,Comm Safety Team & Partnership,7086.71,Revenue,Brighton Voices in Exile
Brighton & Hove City Council,http://statistics.data.gov.uk/id/local-authority/00ML,Planning and Development,BVAPLA,Economic Development,ECD,Supplies and Services,E,Grants n Subscriptions,EK,29/03/2018,PAY01050094,CMNY,Communities and Equalities,12000,Revenue,Brighton Voices in Exile
Brighton & Hove City Council,http://statistics.data.gov.uk/id/local-authority/00ML,Housing General Fund,BVAHOG,Hsing Welfare,HGW,Transfer Payments,G,Supporting People,GF,07/03/2018,PAY01042623,CONT,Contracts,46046.22,Revenue,Brighton YMCA
Brighton & Hove City Council,http://statistics.data.gov.uk/id/local-authority/00ML,Planning and Development,BVAPLA,Economic Development,ECD,Supplies and Services,E,Grants n Subscriptions,EK,07/03/2018,PAY01043033,CMNY,Communities and Equalities,1750,Revenue,Brighton Yoga Foundation/Festival
Brighton & Hove City Council,http://statistics.data.gov.uk/id/local-authority/00ML,Public Health,BVAPHE,Public Health,PHE,Premises Related,C,Rents Payable,CC,07/03/2018,PAY01042342,PHCM,PH Commissioning,1742,Revenue,Brighton Youth Centre
Brighton & Hove City Council,http://statistics.data.gov.uk/id/local-authority/00ML,Children`s & Education Serv,BVAEDU,Child Srvcs Adoption,FAA,Customer n Client Receipts,M,Fees n Charges,MB,28/03/2018,PAY01048522,CHIC,Fostering and Adoption,390,Revenue,Brighton Youth Centre
Brighton & Hove City Council,http://statistics.data.gov.uk/id/local-authority/00ML,Children`s & Education Serv,BVAEDU,Ed EY Central,EAE,Supplies and Services,E,Miscellaneous Expenses,EM,21/03/2018,PAY01046404,EYRS,Early Years,250,Revenue,"Brighton, Hove & District Early Childhood Project"
Brighton & Hove City Council,http://statistics.data.gov.uk/id/local-authority/00ML,Children`s & Education Serv,BVAEDU,Ed EY PVI,ENP,Supplies and Services,E,Grants n Subscriptions,EK,07/03/2018,PAY01042733,EYRS,Early Years,13357.26,Revenue,Brightsaurus Nursery
Brighton & Hove City Council,http://statistics.data.gov.uk/id/local-authority/00ML,Children`s & Education Serv,BVAEDU,Ed EY PVI,ENP,Supplies and Services,E,Grants n Subscriptions,EK,09/03/2018,PAY01043934,EYRS,Early Years,343.2,Revenue,Brightsaurus Nursery
Brighton & Hove City Council,http://statistics.data.gov.uk/id/local-authority/00ML,Children`s & Education Serv,BVAEDU,Ed EY PVI,ENP,Supplies and Services,E,Grants n Subscriptions,EK,21/03/2018,PAY01046816,EYRS,Early Years,615,Revenue,Brightsaurus Nursery
Brighton & Hove City Council,http://statistics.data.gov.uk/id/local-authority/00ML,Library Services,BVACUL,Library Service,LBR,Indirect Employees,B,Training,BM,02/03/2018,PAY01041096,LIBS,Libraries,375,Revenue,Brightstone Consulting Ltd
Brighton & Hove City Council,http://statistics.data.gov.uk/id/local-authority/00ML,Central Support and Overheads,BVACEN,Support Services (SSC),PPT,Indirect Employees,B,Training,BM,07/03/2018,PAY01042484,ORGD,Organisational Development,1500,Revenue,Brightstone Consulting Ltd
Brighton & Hove City Council,http://statistics.data.gov.uk/id/local-authority/00ML,Cultural and Related Serv,BVACUL,Culture and Heritage,CHG,Supplies and Services,E,Services,EF,16/03/2018,PAY01046077,RPMU,Royal Pavilion and Museums,840,Revenue,British Path� Limited
Brighton & Hove City Council,http://statistics.data.gov.uk/id/local-authority/00ML,Adult Social Care,BVASOC,ASC Learning Disabilities,ALD,Supplies and Services,E,Communications n Computing,EH,21/03/2018,PAY01046583,RESP,Adults Respite Services,116.6,Revenue,British Telecommunications Plc
Brighton & Hove City Council,http://statistics.data.gov.uk/id/local-authority/00ML,Highways and Transportation,BVAHRT,Highways and Roads - Mntnce,HRM,Supplies and Services,E,Communications n Computing,EH,21/03/2018,PAY01046583,HIGH,Traffic Management,1327.42,Revenue,British Telecommunications Plc
Brighton & Hove City Council,http://statistics.data.gov.uk/id/local-authority/00ML,Housing Revenue Account,BVAHOU,Hsing Management - HRA,HGM,Supplies and Services,E,Communications n Computing,EH,21/03/2018,PAY01046583,HTEN,Tenancy Services,30.6,Revenue,British Telecommunications Plc
Brighton & Hove City Council,http://statistics.data.gov.uk/id/local-authority/00ML,Children`s & Education Serv,BVAEDU,Child Srvcs Other,FAX,Supplies and Services,E,Miscellaneous Expenses,EM,28/03/2018,PAY01048646,YOTS,Youth Service,525,Revenue,British Youth Council
Brighton & Hove City Council,http://statistics.data.gov.uk/id/local-authority/00ML,Central Support and Overheads,BVACEN,Support Services (SSC),PPT,Supplies and Services,E,Communications n Computing,EH,29/03/2018,PAY01050730,ICTA,ICT,1708.64,Revenue,Broadberry Data Systems Ltd
Brighton & Hove City Council,http://statistics.data.gov.uk/id/local-authority/00ML,Housing General Fund,BVAHOG,Hsing Welfare,HGW,Transfer Payments,G,Supporting People,GF,23/03/2018,PAY01048080,CONT,Contracts,4400,Revenue,Broadway Real Enterprises Ltd
Brighton & Hove City Council,http://statistics.data.gov.uk/id/local-authority/00ML,Cultural and Related Serv,BVACUL,Culture and Heritage,CHG,Supplies and Services,E,Miscellaneous Expenses,EM,16/03/2018,PAY01045522,RPMU,Royal Pavilion and Museums,15675,Revenue,Brochure Connect Limited
Brighton & Hove City Council,http://statistics.data.gov.uk/id/local-authority/00ML,Central Support and Overheads,BVACEN,Support Services (SSC),PPT,Supplies and Services,E,Miscellaneous Expenses,EM,07/03/2018,PAY01042300,BIPR,Bulk Insurance Premia,3391.79,Revenue,Browne Jacobson LLP
Brighton & Hove City Council,http://statistics.data.gov.uk/id/local-authority/00ML,Planning and Development,BVAPLA,Community Development,CDV,Third Party Payments,F,Other Establishments,FH,21/03/2018,PAY01046783,CMNY,Communities and Equalities,316.3,Revenue,BSL Link for Communication Ltd
Brighton & Hove City Council,http://statistics.data.gov.uk/id/local-authority/00ML,Environment & Regulatory Serv,BVAERS,Management Services (DEC),MGT,Transport Related,D,Direct Transport Costs,DA,02/03/2018,PAY01040795,CICL,City Clean,222.12,Revenue,BTR Brakes (Sussex) Ltd
Brighton & Hove City Council,http://statistics.data.gov.uk/id/local-authority/00ML,Environment & Regulatory Serv,BVAERS,Management Services (DEC),MGT,Supplies and Services,E,Equip't Furniture n Materials,EA,07/03/2018,PAY01042224,CICL,City Clean,30.76,Revenue,BTR Brakes (Sussex) Ltd
Brighton & Hove City Council,http://statistics.data.gov.uk/id/local-authority/00ML,Environment & Regulatory Serv,BVAERS,Management Services (DEC),MGT,Transport Related,D,Direct Transport Costs,DA,07/03/2018,PAY01042224,CICL,City Clean,370.3,Revenue,BTR Brakes (Sussex) Ltd
Brighton & Hove City Council,http://statistics.data.gov.uk/id/local-authority/00ML,Environment & Regulatory Serv,BVAERS,Management Services (DEC),MGT,Transport Related,D,Direct Transport Costs,DA,23/03/2018,PAY01047344,CICL,City Clean,257.89,Revenue,BTR Brakes (Sussex) Ltd
Brighton & Hove City Council,http://statistics.data.gov.uk/id/local-authority/00ML,Environment & Regulatory Serv,BVAERS,Management Services (DEC),MGT,Transport Related,D,Direct Transport Costs,DA,28/03/2018,PAY01048392,CICL,City Clean,554.71,Revenue,BTR Brakes (Sussex) Ltd
Brighton & Hove City Council,http://statistics.data.gov.uk/id/local-authority/00ML,Highways and Transportation,BVAHRT,Parking Services,PRK,Supplies and Services,E,Equip't Furniture n Materials,EA,16/03/2018,PAY01045540,PARK,Parking Services,748,Revenue,Buchanan Computing Ltd
Brighton & Hove City Council,http://statistics.data.gov.uk/id/local-authority/00ML,Highways and Transportation,BVAHRT,Parking Services,PRK,Indirect Employees,B,Training,BM,21/03/2018,PAY01046505,PARK,Parking Services,650,Revenue,Buchanan Computing Ltd
Brighton & Hove City Council,http://statistics.data.gov.uk/id/local-authority/00ML,Planning and Development,BVAPLA,Planning Policy,PLP,Supplies and Services,E,Services,EF,14/03/2018,PAY01044541,DEVP,Development Planning,2500,Revenue,Building Research Establishment Ltd
Brighton & Hove City Council,http://statistics.data.gov.uk/id/local-authority/00ML,Adult Social Care,BVASOC,ASC Memory Cognition Support,MEM,Customer n Client Receipts,M,Fees n Charges,MB,09/03/2018,PAY01043550,COGN,Memory Cognition Support,-1409,Revenue,BUPA Care Services
Brighton & Hove City Council,http://statistics.data.gov.uk/id/local-authority/00ML,Adult Social Care,BVASOC,ASC Memory Cognition Support,MEM,Third Party Payments,F,Other Establishments,FH,09/03/2018,PAY01043550,COGN,Memory Cognition Support,14099.4,Revenue,BUPA Care Services
Brighton & Hove City Council,http://statistics.data.gov.uk/id/local-authority/00ML,Adult Social Care,BVASOC,ASC Physical Support,PHY,Customer n Client Receipts,M,Fees n Charges,MB,09/03/2018,PAY01043550,PHYS,Physical Support,-11131.04,Revenue,BUPA Care Services
Brighton & Hove City Council,http://statistics.data.gov.uk/id/local-authority/00ML,Adult Social Care,BVASOC,ASC Physical Support,PHY,Third Party Payments,F,Other Establishments,FH,09/03/2018,PAY01043550,PHYS,Physical Support,32385.48,Revenue,BUPA Care Services
Brighton & Hove City Council,http://statistics.data.gov.uk/id/local-authority/00ML,Adult Social Care,BVASOC,ASC Physical Support,PHY,Customer n Client Receipts,M,Fees n Charges,MB,21/03/2018,PAY01046566,PHYS,Physical Support,-834.65,Revenue,BUPA Care Services
Brighton & Hove City Council,http://statistics.data.gov.uk/id/local-authority/00ML,Adult Social Care,BVASOC,ASC Physical Support,PHY,Third Party Payments,F,Other Establishments,FH,21/03/2018,PAY01046566,PHYS,Physical Support,5342.86,Revenue,BUPA Care Services
Brighton & Hove City Council,http://statistics.data.gov.uk/id/local-authority/00ML,Environment & Regulatory Serv,BVAERS,Management Services (DEC),MGT,Transport Related,D,Direct Transport Costs,DA,02/03/2018,PAY01041595,CICL,City Clean,2851.88,Revenue,Burden Bros Agri Ltd
Brighton & Hove City Council,http://statistics.data.gov.uk/id/local-authority/00ML,Environment & Regulatory Serv,BVAERS,Management Services (DEC),MGT,Transport Related,D,Direct Transport Costs,DA,07/03/2018,PAY01042753,CICL,City Clean,9284.6,Revenue,Burden Bros Agri Ltd
Brighton & Hove City Council,http://statistics.data.gov.uk/id/local-authority/00ML,Cultural and Related Serv,BVACUL,Open Spaces,PEN,Supplies and Services,E,Equip't Furniture n Materials,EA,09/03/2018,PAY01043962,CIPK,City Parks,1200,Revenue,Burden Bros Agri Ltd
Brighton & Hove City Council,http://statistics.data.gov.uk/id/local-authority/00ML,Environment & Regulatory Serv,BVAERS,Management Services (DEC),MGT,Transport Related,D,Direct Transport Costs,DA,14/03/2018,PAY01044897,CICL,City Clean,348.28,Revenue,Burden Bros Agri Ltd
Brighton & Hove City Council,http://statistics.data.gov.uk/id/local-authority/00ML,Non I&E,BVANON,CAP Libs Culture and Hertage,4LH,Capital Grants,PF,Capital Grants,PFL5,16/03/2018,PAY01045964,RPMU,Royal Pavilion and Museums,3547.2,Capital,Bursledon Brickworks Industrial Museum
Brighton & Hove City Council,http://statistics.data.gov.uk/id/local-authority/00ML,Environment & Regulatory Serv,BVAERS,Agricultural and Fisheries,AGF,Supplies and Services,E,Services,EF,09/03/2018,PAY01043207,PROP,Property and Design,750,Revenue,Burt Brill & Cardens Solicitors
Brighton & Hove City Council,http://statistics.data.gov.uk/id/local-authority/00ML,Central Support and Overheads,BVACEN,Support Services (SSC),PPT,Supplies and Services,E,Communications n Computing,EH,14/03/2018,PAY01044543,COMU,Communications,2928.25,Revenue,Business Computer Resources Ltd
Brighton & Hove City Council,http://statistics.data.gov.uk/id/local-authority/00ML,Children`s & Education Serv,BVAEDU,Ed EY PVI,ENP,Supplies and Services,E,Grants n Subscriptions,EK,07/03/2018,PAY01042408,EYRS,Early Years,10551.35,Revenue,Busy Bees Brighton
Brighton & Hove City Council,http://statistics.data.gov.uk/id/local-authority/00ML,Children`s & Education Serv,BVAEDU,Ed EY PVI,ENP,Supplies and Services,E,Grants n Subscriptions,EK,09/03/2018,PAY01043553,EYRS,Early Years,838.5,Revenue,Busy Bees Brighton
Brighton & Hove City Council,http://statistics.data.gov.uk/id/local-authority/00ML,Children`s & Education Serv,BVAEDU,Ed EY PVI,ENP,Supplies and Services,E,Grants n Subscriptions,EK,14/03/2018,PAY01044599,EYRS,Early Years,512.7,Revenue,Busy Bees Brighton
Brighton & Hove City Council,http://statistics.data.gov.uk/id/local-authority/00ML,Children`s & Education Serv,BVAEDU,Ed EY PVI,ENP,Supplies and Services,E,Grants n Subscriptions,EK,07/03/2018,PAY01042421,EYRS,Early Years,6885,Revenue,Busy Bees Hove
Brighton & Hove City Council,http://statistics.data.gov.uk/id/local-authority/00ML,Children`s & Education Serv,BVAEDU,Ed EY PVI,ENP,Supplies and Services,E,Grants n Subscriptions,EK,09/03/2018,PAY01043566,EYRS,Early Years,1378,Revenue,Busy Bees Hove
Brighton & Hove City Council,http://statistics.data.gov.uk/id/local-authority/00ML,Cultural and Related Serv,BVACUL,Culture and Heritage,CHG,Premises Related,C,Repair Maint n Alterations,CA,16/03/2018,PAY01045539,VENU,Venues,939.79,Revenue,C Brewer & Sons Ltd
Brighton & Hove City Council,http://statistics.data.gov.uk/id/local-authority/00ML,Environment & Regulatory Serv,BVAERS,Street Cleansing,CLE,Supplies and Services,E,Equip't Furniture n Materials,EA,16/03/2018,PAY01045539,CICL,City Clean,248.96,Revenue,C Brewer & Sons Ltd
